Body Name,Service Label,Expense Category,Date,Transaction Number,Net Amount,Supplier Name
TfGM,Transport,Transport Planning & Monitoring Services,01/10/2013,5100056359,25985,AECOM LTD
TfGM,Transport,Research Services,01/10/2013,5100056436,8415,AECOM LTD
TfGM,Transport,Capital Costs -  Project Management Services,01/10/2013,5100056450,2000,AJILON UK LIMITED T/A COMPUTER PEOP
TfGM,Corporate Services,Procurement Services,01/10/2013,5100056221,6976,ATKINS LTD
TfGM,Transport,Financial and Contract Management Services,01/10/2013,5100056900,8312.5,AUTUS LTD
TfGM,Transport,Capital Costs - Archaeological Services,01/10/2013,5100056663,1782,CFA ARCHAELOGY LTD
TfGM,Transport,Concessionary Reimbursement,01/10/2013,1900029793,1024,COLIN REA
TfGM,Transport,Print & Media,01/10/2013,5100056324,2246,CREATIVE LYNX LTD
TfGM,Transport,Project Management Services,01/10/2013,5100056893,1250,E KELLY
TfGM,Transport,Telecommunications,01/10/2013,5100056452,2385,EASYNET GLOBAL SERVICES
TfGM,Transport,Capital Costs - Project Support Services,01/10/2013,5100055590,2637.5,EKOSGEN
TfGM,Transport,Capital Costs - Utility & Service Diversion Costs,01/10/2013,5100056389,494.99,ELECTRICITY NORTH WEST EHV
TfGM,Transport,Concessionary Reimbursement,01/10/2013,1900029333,620,GMATL
TfGM,Corporate Services,Audit and Financial Services,01/10/2013,5100056473,14576.75,GRANT THORNTON
TfGM,Transport,Concessionary Reimbursement,01/10/2013,1900029783,691,H SHAKERI T/A EUROLYNX TAXIS
TfGM,Transport,Concessionary Reimbursement,01/10/2013,1900029784,1147,H SHAKERI T/A EUROLYNX TAXIS
TfGM,Corporate Services,Temporary Vacancy Cover,01/10/2013,1900029810,12966.21,HAYS SPECIALIST RECRUITMENT LTD
TfGM,Transport,Capital Costs - Programme and Project Management Services,01/10/2013,1900029811,5950.32,HAYS SPECIALIST RECRUITMENT LTD
TfGM,Transport,Capital Costs - Programme and Project Management Services,01/10/2013,5100056653,2647.05,HAYS SPECIALIST RECRUITMENT LTD
TfGM,Transport,Capital Costs - Programme and Project Management Services,01/10/2013,5100056655,2647.05,HAYS SPECIALIST RECRUITMENT LTD
TfGM,Transport,Temporary Vacancy Cover,01/10/2013,5100056299,16480,JACOBS UK LTD
TfGM,Transport,Transport Planning & Monitoring Services,01/10/2013,5100056917,826,JMP LTD
TfGM,Corporate Services,Procurement Services,01/10/2013,5100056853,8400,JULIAN BENSON ASSOCIATES LTD
TfGM,Transport,Human Resource Services,01/10/2013,5100056383,1190,LANDOR LINKS LTD
TfGM,Transport,"Rent, Rates & Service Charges",01/10/2013,1900029734,718,MANCHESTER CITY COUNCIL
TfGM,Transport,"Rent, Rates & Service Charges",01/10/2013,1900029735,1013,MANCHESTER CITY COUNCIL
TfGM,Transport,Concessionary Reimbursement,01/10/2013,1900029782,1326,METRO TAXIS LTD
TfGM,Transport,Capital Costs - Smart Ticketing,01/10/2013,5100056813,12000,MINT RECRUITMENT SOLUTIONS LTD
TfGM,Transport,Capital Costs - Project Support Services,01/10/2013,5100056891,2250,NEIL CLARKE LTD
TfGM,Transport,Heavy Rail Support Services,01/10/2013,5100056425,7231.25,OVE ARUP & PARTNERS INTERNATIONAL L
TfGM,Transport,Concessionary Reimbursement,01/10/2013,1900029791,1235,PARKSHIELD LTD (ABACUS TRAVEL SRVS)
TfGM,Transport,Capital Costs - Safety & Security Support Services,01/10/2013,5100056424,3332.78,POLICE & CRIME COMMISSIONER GTR MCR
TfGM,Transport,Professional Services,01/10/2013,5100056807,5000,PORTOBELLO PARTNERSHIP LTD
TfGM,Transport,Smart Ticketing,01/10/2013,5100056301,2080,PRACTICUS LIMITED
TfGM,Transport,Capital Costs - Passenger Shelters,01/10/2013,5100056642,3632.08,QUEENSBURY SHELTERS LIMITED
TfGM,Transport,Capital Costs - Passenger Shelters,01/10/2013,5100056818,3632.08,QUEENSBURY SHELTERS LIMITED
TfGM,Transport,Concessionary Reimbursement,01/10/2013,1900029776,900,RADIO CABS T/A ECO TRAVEL
TfGM,Transport,Concessionary Reimbursement,01/10/2013,1900029777,1600,RADIO CABS T/A ECO TRAVEL
TfGM,Transport,Capital Costs - Print & Media,01/10/2013,5100056800,490,RCD
TfGM,Transport,Capital Costs - Programme and Project Management Services,01/10/2013,5100056443,1881,Robert Walters Plc
TfGM,Transport,Smart Ticketing,01/10/2013,5100056444,2400.1,Robert Walters Plc
TfGM,Transport,Smart Ticketing,01/10/2013,5100056445,2500,Robert Walters Plc
TfGM,Transport,Smart Ticketing,01/10/2013,5100056446,1920.08,Robert Walters Plc
TfGM,Transport,Smart Ticketing,01/10/2013,5100056447,2950,Robert Walters Plc
TfGM,Transport,"Rent, Rates & Service Charges",01/10/2013,1900029808,10055.12,SADDLEWORTH RANGERS
TfGM,Transport,Print & Media,01/10/2013,5100056849,3000,SALUTIONS LIMITED
TfGM,Transport,Capital Costs - Legal Services,01/10/2013,1900029809,21181.9,"SLEIGH, SON AND BOOTH"
TfGM,Transport,Planning Support Services,01/10/2013,5100056328,7298.1,STEER DAVIES GLEEVE LTD
TfGM,Transport,Capital Costs - Engineering Support Services,01/10/2013,5100056901,1125,STEPHEN J FIRTH
TfGM,Transport,"Rent, Rates & Service Charges",01/10/2013,1900029807,9900,STOCKPORT MBC
TfGM,Transport,Print & Media,01/10/2013,5100056062,2400,TRINITY MIRROR PUBLISHING LTD
TfGM,Transport,Vehicle Costs,02/10/2013,1200026466,1342.54,ALLSTAR
TfGM,Transport,Capital Costs - Planning Support Services,04/10/2013,5100056569,8711,AECOM LTD
TfGM,Transport,Capital Costs - Planning Support Services,04/10/2013,5100056570,2633.5,AECOM LTD
TfGM,Transport,Capital Costs - Engineering Support Services,04/10/2013,5100056308,2028,ATKINS LTD
TfGM,Transport,Capital Costs - Contract Administration Services,04/10/2013,5100056331,12600,ATKINS LTD
TfGM,Transport,Capital Costs - Programme and Project Management Services,04/10/2013,5100056353,8190,ATKINS LTD
TfGM,Transport,Capital Costs - Capital Project Main Contract Works,04/10/2013,5100057050,601692.57,BALFOUR BEATTY CE LTD
TfGM,Corporate Services,Insurance,04/10/2013,5100056998,856,BERRYMANS LACE MAWER LLP
TfGM,Corporate Services,Insurance,04/10/2013,5100056999,888,BERRYMANS LACE MAWER LLP
TfGM,Transport,Driver Intervention Course Delivery Costs,04/10/2013,5100056985,1953.6,BOLTON WHITES HOTEL LTD
TfGM,Transport,Utilities & Energy,04/10/2013,100077093,489.49,BRITISH GAS BUSINESS
TfGM,Transport,IS Support Services,04/10/2013,5100056885,1225,CGI IT UK LTD
TfGM,Corporate Services,Procurement Services,04/10/2013,5100057010,13320,CNC PERFORMANCE LTD
TfGM,Transport,Secondment,04/10/2013,5100056939,2912,CTC
TfGM,Transport,Cyclescheme,04/10/2013,5100056958,833.25,CYCLESCHEME LTD
TfGM,Transport,Driver Intervention Course Delivery Costs,04/10/2013,5100057007,1925,ENTERPRISE SOLUTIONS (NW) LTD
TfGM,Transport,Capital Costs - Engineering Support Services,04/10/2013,5100057028,2800,FREMONT LTD
TfGM,Transport,Research Services,04/10/2013,5100056392,15712.5,HALCROW GROUP LTD
TfGM,Transport,Temporary Vacancy Cover,04/10/2013,1900029845,10132.28,HAYS SPECIALIST RECRUITMENT LTD
TfGM,Transport,Computer Support and Licences,04/10/2013,5100056938,2870,JMP LTD
TfGM,Transport,Capital Costs - Legal Services,04/10/2013,5100057083,1000,KINGS CHAMBERS
TfGM,Transport,Capital Costs - Legal Services,04/10/2013,1900029846,1600,LAMBERT SMITH HAMPTON
TfGM,Transport,Capital Costs - Legal Services,04/10/2013,5100057031,1000,LAMBERT SMITH HAMPTON
TfGM,Transport,Property Support Services,04/10/2013,5100057032,640,LAMBERT SMITH HAMPTON
TfGM,Transport,Vehicle Costs,04/10/2013,5100057051,1258,MANCHESTER COMMUNITY TRANSPORT
TfGM,Transport,Supported Bus Services,04/10/2013,5100056467,18867.46,MERSEYTRAVEL
TfGM,Transport,Programme Management,04/10/2013,5100056386,7920.74,MOTT MACDONALD LTD
TfGM,Transport,Capital Costs - Utility & Service Diversion Costs,04/10/2013,1900029911,2500,NATIONAL GRID PLC
TfGM,Transport,Capital Costs - Capital Project Main Contract Works,04/10/2013,5100056379,405666.34,NETWORK RAIL
TfGM,Transport,Capital Costs - Rail Construction Works,04/10/2013,5100056463,-6179.34,NETWORK RAIL
TfGM,Transport,Capital Costs - Capital Project Main Contract Works,04/10/2013,5100056650,-28013.64,NETWORK RAIL
TfGM,Transport,Capital Costs - Capital Project Main Contract Works,04/10/2013,5100056904,65011.95,NETWORK RAIL
TfGM,Transport,Capital Costs - Capital Project Main Contract Works,04/10/2013,5100056905,36756.58,NETWORK RAIL
TfGM,Transport,Capital Costs - Capital Project Main Contract Works,04/10/2013,5100056906,36127.24,NETWORK RAIL
TfGM,Transport,Property & Equipment Maintenance,04/10/2013,5100056489,2450,OCCUPATIONAL MANAGEMENT CONSULTANTS
TfGM,Transport,Property & Equipment Maintenance,04/10/2013,5100056621,750,OCCUPATIONAL MANAGEMENT CONSULTANTS
TfGM,Corporate Services,Procurement Services,04/10/2013,5100057073,10762.5,OPUS BESTPAY LTD
TfGM,Transport,Capital Costs - Smart Ticketing,04/10/2013,5100057006,10000,OVERWORKED LIMITED
TfGM,Transport,Capital Costs - Programme and Project Management Services,04/10/2013,5100057074,7940,PEAK PERFORMANCE PROFESSIONAL CONTR
TfGM,Transport,Financial and Commercial Support Services,04/10/2013,5100057076,11732.5,PEAK PERFORMANCE PROFESSIONAL CONTR
TfGM,Transport,Traffic and Transportation Surveys,04/10/2013,5100056343,4411.25,PLUSWORK LTD
TfGM,Transport,Traffic and Transportation Surveys,04/10/2013,5100056344,6164.98,PLUSWORK LTD
TfGM,Transport,Traffic and Transportation Surveys,04/10/2013,5100056357,589,PLUSWORK LTD
TfGM,Transport,Temporary Vacancy Cover,04/10/2013,5100056388,566.4,PLUSWORK LTD
TfGM,Transport,Driver Intervention Course Delivery Costs,04/10/2013,5100057086,8525,PROFESSIONAL DRIVER SERVICES LTD
TfGM,Transport,Driver Intervention Course Delivery Costs,04/10/2013,5100057087,-2256,PROFESSIONAL DRIVER SERVICES LTD
TfGM,Transport,Driver Intervention Course Delivery Costs,04/10/2013,5100057088,-2536,PROFESSIONAL DRIVER SERVICES LTD
TfGM,Transport,Driver Intervention Course Delivery Costs,04/10/2013,5100057089,-1104,PROFESSIONAL DRIVER SERVICES LTD
TfGM,Transport,Driver Intervention Course Delivery Costs,04/10/2013,5100057090,-3529,PROFESSIONAL DRIVER SERVICES LTD
TfGM,Transport,Driver Intervention Course Delivery Costs,04/10/2013,5100057091,16215,PROFESSIONAL DRIVER SERVICES LTD
TfGM,Transport,Safety Equipment,04/10/2013,5100057060,1231.4,REVEAL MEDIA LTD
TfGM,Transport,Capital Costs - Print & Media,04/10/2013,5100056714,691,SERVICEPOINT UK
TfGM,Transport,Capital Costs - Programme and Project Management Services,04/10/2013,5100056930,5950,UNIQUE CREATIVE COMMUNICATIONS
TfGM,Transport,Utilities & Energy,04/10/2013,1900029907,1154.64,UNITED UTILITIES WATER PLC
TfGM,Transport,Utilities & Energy,04/10/2013,1900029908,708.36,UNITED UTILITIES WATER PLC
TfGM,Transport,IS Support Services,07/10/2013,5100056922,12320,PMA RECRUITMENT LTD
TfGM,Transport,Driver Intervention Course Delivery Costs,08/10/2013,1900029872,607.75,A MACK
TfGM,Transport,Driver Intervention Course Delivery Costs,08/10/2013,1900029891,1288.48,A WOODWARD
TfGM,Transport,Driver Intervention Course Delivery Costs,08/10/2013,1900029888,2333.84,AIM TO PASS SCHOOL OF MOTORING
TfGM,Transport,Capital Costs -  Project Management Services,08/10/2013,5100056674,2000,AJILON UK LIMITED T/A COMPUTER PEOP
TfGM,Transport,Smart Ticketing,08/10/2013,5100056940,7700,AMSACOM LIMITED
TfGM,Transport,Capital Costs - Smart Ticketing,08/10/2013,5100056245,616250,ATOS IT SERVICES UK LTD
TfGM,Transport,Driver Intervention Course Delivery Costs,08/10/2013,1900029859,2066.44,AVRILS DRIVING SCHOOL
TfGM,Transport,Other Operational Costs,08/10/2013,5100056491,1022,BRAKE BROS LTD
TfGM,Transport,Driver Intervention Course Delivery Costs,08/10/2013,1900029854,2188,BRECK SCHOOL OF MOTORING
TfGM,Transport,Driver Intervention Course Delivery Costs,08/10/2013,1900029871,850.88,C MACCORMACK
TfGM,Transport,Capital Costs - Project Support Services,08/10/2013,5100056366,675,CDI ANDERSELITE LTD
TfGM,Transport,Driver Intervention Course Delivery Costs,08/10/2013,1900029893,1641,CENTURION DRIVER TRAINING
TfGM,Transport,Print & Media,08/10/2013,5100056375,1386,CHAPEL PRESS LTD
TfGM,Transport,Driver Intervention Course Delivery Costs,08/10/2013,1900029857,765.8,COWLEY DRIVING SCHOOL
TfGM,Transport,Driver Intervention Course Delivery Costs,08/10/2013,5100057067,2783.6,CPC TRAINING PROVIDER LTD
TfGM,Transport,Driver Intervention Course Delivery Costs,08/10/2013,1900029858,1689.6,CRUISE DRIVER TRAINING
TfGM,Transport,Driver Intervention Course Delivery Costs,08/10/2013,1900029861,1081.8,D ELLIS
TfGM,Transport,Driver Intervention Course Delivery Costs,08/10/2013,1900029890,1592.33,D WALSH
TfGM,Transport,Driver Intervention Course Delivery Costs,08/10/2013,1900029889,875.2,DAVID WALKER DRIVER TRAINING
TfGM,Transport,Driver Intervention Course Delivery Costs,08/10/2013,1900029879,2625.53,DRIVER ACADEMY
TfGM,Transport,Driver Intervention Course Delivery Costs,08/10/2013,1900029856,547,DRIVERSKILLS
TfGM,Transport,Driver Intervention Course Delivery Costs,08/10/2013,1900029892,2747.13,DS WILLIAMS LTD
TfGM,Transport,Driver Intervention Course Delivery Costs,08/10/2013,1900029880,3038.84,DSM SCHOOL OF MOTORING
TfGM,Transport,Driver Intervention Course Delivery Costs,08/10/2013,1900029887,607.75,E TURTON
TfGM,Transport,Telecommunications,08/10/2013,5100053336,1896.96,EASYNET GLOBAL SERVICES
TfGM,Transport,Telecommunications,08/10/2013,5100057024,-1745.2,EASYNET GLOBAL SERVICES
TfGM,Transport,"Rent, Rates & Service Charges",08/10/2013,5100057023,1162.5,EURO CAR PARKS LTD
TfGM,Transport,Driver Intervention Course Delivery Costs,08/10/2013,1900029855,3294.1,G CLIFFE
TfGM,Transport,Driver Intervention Course Delivery Costs,08/10/2013,1900029883,1750.4,G ROBINSON
TfGM,Transport,Driver Intervention Course Delivery Costs,08/10/2013,5100057065,1871.92,G WEBSTER
TfGM,Transport,Driver Intervention Course Delivery Costs,08/10/2013,5100057015,1154.76,G WHITWORTH
TfGM,Transport,Driver Intervention Course Delivery Costs,08/10/2013,1900029851,1166.91,GARY CAMPBELL LTD
TfGM,Transport,Engineering Support Services,08/10/2013,5100056873,13518.75,GUTTERIDGE HASKINS AND DAVEY LTD
TfGM,Transport,Driver Intervention Course Delivery Costs,08/10/2013,1900029868,2783.59,HOGHTON DRIVING SCHOOL
TfGM,Transport,Driver Intervention Course Delivery Costs,08/10/2013,1900029860,2832.2,I DUFF
TfGM,Corporate Services,IS Support Services,08/10/2013,5100056276,5500,IGROUP LTD
TfGM,Transport,IS Software & Maintenance,08/10/2013,5100055177,6000,INS SUDLOWS LTD
TfGM,Transport,Driver Intervention Course Delivery Costs,08/10/2013,1900029866,753.64,INSIGHT 2 DRIVE
TfGM,Transport,Driver Intervention Course Delivery Costs,08/10/2013,1900029847,2248.76,J AIREY
TfGM,Transport,Driver Intervention Course Delivery Costs,08/10/2013,1900029848,607.75,J BOGGIANO
TfGM,Transport,Driver Intervention Course Delivery Costs,08/10/2013,1900029874,1470.8,J MCGREAL
TfGM,Transport,Driver Intervention Course Delivery Costs,08/10/2013,1900029875,729.3,J MILNE
TfGM,Transport,Driver Intervention Course Delivery Costs,08/10/2013,1900029881,717.16,J RIGGS
TfGM,Transport,Exhibitions & Conferences,08/10/2013,5100057038,764.5,JCT LTD
TfGM,Transport,Driver Intervention Course Delivery Costs,08/10/2013,5100057102,2751.12,LISA ATKINSON DTS
TfGM,Transport,Driver Intervention Course Delivery Costs,08/10/2013,1900029850,2151.52,M BRENNAN
TfGM,Transport,Capital Costs -  Project Support Services,08/10/2013,5100056498,6307,MANCHESTER CITY COUNCIL
TfGM,Transport,Smart Ticketing,08/10/2013,5100057214,10500,MARBLE LTD
TfGM,Transport,Smart Ticketing,08/10/2013,5100057217,9712.5,MARBLE LTD
TfGM,Transport,Driver Intervention Course Delivery Costs,08/10/2013,1900029849,2528.32,MICHAEL BOLTON DRIVER TRAINING
TfGM,Transport,Driver Intervention Course Delivery Costs,08/10/2013,1900029876,1125.35,MORRIS SCHOOL OF MOTORING
TfGM,Transport,Capital Costs - Mechanical & Engineering Support Services,08/10/2013,5100056682,9092.09,MOTT MACDONALD LTD
TfGM,Transport,Capital Costs - Mechanical & Engineering Support Services,08/10/2013,5100056684,3109.63,MOTT MACDONALD LTD
TfGM,Transport,Capital Costs - Mechanical & Engineering Support Services,08/10/2013,5100056694,7000,MOTT MACDONALD LTD
TfGM,Transport,Capital Costs - Utility & Service Diversion Costs,08/10/2013,5100057118,6546.09,NATIONAL GRID PLC
TfGM,Transport,Capital Costs - Project Support Services,08/10/2013,5100057130,2625,NEIL CLARKE LTD
TfGM,Transport,Driver Intervention Course Delivery Costs,08/10/2013,1900029853,3356.05,P CLARKE
TfGM,Transport,Capital Costs - Legal Services,08/10/2013,5100057000,1690,PANNONE AND PARTNERS
TfGM,Transport,Capital Costs - Legal Services,08/10/2013,5100057123,20384.1,PANNONE AND PARTNERS
TfGM,Transport,Print & Media,08/10/2013,5100056421,540,PARAGON PRINTING COMPANY LTD
TfGM,Transport,Driver Intervention Course Delivery Costs,08/10/2013,1900029885,2613.4,PAS DRIVING
TfGM,Transport,Capital Costs - Programme and Project Management Services,08/10/2013,5100056439,1701.75,PERTEMPS PROFESSIONAL STAFFING LTD
TfGM,Transport,Driver Intervention Course Delivery Costs,08/10/2013,5100057017,1896.23,PETERS DRIVING SCHOOL
TfGM,Transport,Driver Intervention Course Delivery Costs,08/10/2013,1900029865,2856.51,R GREENOUGH
TfGM,Transport,Driver Intervention Course Delivery Costs,08/10/2013,1900029867,2625.54,R HILL
TfGM,Transport,Driver Intervention Course Delivery Costs,08/10/2013,5100056907,1604.52,R LORD
TfGM,Transport,Driver Intervention Course Delivery Costs,08/10/2013,5100056762,1312.8,R MOTT
TfGM,Transport,Capital Costs - Print & Media,08/10/2013,5100057110,882,RCD
TfGM,Transport,"Rent, Rates & Service Charges",08/10/2013,1900029930,1624.95,ROCHDALE MBC
TfGM,Transport,"Rent, Rates & Service Charges",08/10/2013,1900029931,2367.75,ROCHDALE MBC
TfGM,Transport,Traffic Signal Works,08/10/2013,5100057136,8555.02,ROSGAL LTD
TfGM,Transport,Print & Media,08/10/2013,5100056936,5100,ROUNDTHORN PROPERTIES LTD
TfGM,Transport,Driver Intervention Course Delivery Costs,08/10/2013,1900029852,1932.72,S M CHARLSON
TfGM,Transport,Print & Media,08/10/2013,5100056428,495,SERVICE GRAPHICS LTD
TfGM,Transport,Driver Intervention Course Delivery Costs,08/10/2013,1900029878,1069.68,SHELLIS SCHOOL OF MOTORING
TfGM,Transport,Driver Intervention Course Delivery Costs,08/10/2013,1900029864,1482.96,SHIRLEYS DRIVING SCHOOL
TfGM,Transport,Driver Intervention Course Delivery Costs,08/10/2013,1900029862,1179.04,SMJ SCHOOL OF MOTORING
TfGM,Transport,Capital Costs - Planning Support Services,08/10/2013,5100056739,8500,STEER DAVIES GLEEVE LTD
TfGM,Transport,Driver Intervention Course Delivery Costs,08/10/2013,1900029869,2759.28,STEVEN LLOYD APPROVED SCHOOL OF MOT
TfGM,Transport,Driver Intervention Course Delivery Costs,08/10/2013,1900029882,1531.6,T RIMMER
TfGM,Corporate Services,Printer Consumables,08/10/2013,5100056313,2439.9,TOTAL COMPUTERS LTD
TfGM,Transport,Computer Support and Licences,08/10/2013,5100056086,24256.4,TRAPEZE GROUP (UK) LTD
TfGM,Transport,Driver Intervention Course Delivery Costs,08/10/2013,1900029863,2734.95,VINCENT'S DRIVING SCHOOL
TfGM,Transport,Vehicle Costs,09/10/2013,1200026493,1137.96,ALLSTAR
TfGM,Corporate Services,Employee Reimbursed Costs,09/10/2013,5100057268,7379,CHILDCARE VOUCHERS LTD
TfGM,Transport,Capital Costs - Capital Project Main Contract Works,09/10/2013,5100056329,1084812,WIGAN COUNCIL
TfGM,Transport,Replacement Bus Services,10/10/2013,5100056667,104977.2,METROLINK RATP DEV LTD
TfGM,Transport,Print & Media,10/10/2013,5100056892,1427.45,METROLINK RATP DEV LTD
TfGM,Transport,Metrolink Operating Costs,10/10/2013,5100056983,1221783,METROLINK RATP DEV LTD
TfGM,Transport,Metrolink Operating Costs,10/10/2013,5100056984,283948,METROLINK RATP DEV LTD
TfGM,Transport,Metrolink Operating Costs,10/10/2013,5100057061,82299.43,METROLINK RATP DEV LTD
TfGM,Transport,Metrolink Operating Costs,10/10/2013,5100057062,440032,METROLINK RATP DEV LTD
TfGM,Transport,Light Rail Support Services,11/10/2013,5100056928,11400,AD2 LTD
TfGM,Transport,Research Services,11/10/2013,5100056454,22500,AECOM LTD
TfGM,Corporate Services,Insurance,11/10/2013,1900029962,2627,ALLIANZ INSURANCE PLC
TfGM,Transport,IS Support Services,11/10/2013,5100056887,2800,AMAZE COMMUNICATION SERVICES LTD
TfGM,Transport,Signage Costs,11/10/2013,5100056584,742,ASTRA SIGNS
TfGM,Transport,Capital Costs - Light Rail Support Services,11/10/2013,5100056449,4476.75,ATKINS LTD
TfGM,Transport,IS Software & Maintenance,11/10/2013,5100056500,5163.3,ATKINS LTD
TfGM,Transport,Capital Costs - Engineering Support Services,11/10/2013,5100057026,19950,ATKINS LTD
TfGM,Transport,Capital Costs - Engineering Support Services,11/10/2013,5100057034,5076.85,ATKINS LTD
TfGM,Transport,Cycle Training Scheme,11/10/2013,5100056732,840,BIKE RIGHT!
TfGM,Transport,Capital Costs - Capital Project Main Contract Works,11/10/2013,5100056700,134153.48,BIRSE CIVILS LTD
TfGM,Transport,Capital Costs - Capital Project Main Contract Works,11/10/2013,5100056972,39209.4,BOURNE CONSTRUCTION ENGINEERING LTD
TfGM,Transport,Capital Costs - Capital Project Main Contract Works,11/10/2013,5100056973,43857.6,BOURNE CONSTRUCTION ENGINEERING LTD
TfGM,Transport,Capital Costs - IS Software & Maintenance,11/10/2013,5100056455,6184,BT ENGAGE IT
TfGM,Transport,Cycling Equipment,11/10/2013,5100056440,756,CYCLES RECYCLED CIC
TfGM,Transport,Telecommunications,11/10/2013,5100057242,6580.76,DAISY COMMUNICATIONS
TfGM,Transport,Capital Costs - Land Acquisition and Related Costs,11/10/2013,1900030007,256500,DLA PIPER UK LLP
TfGM,Corporate Services,IS Support Services,11/10/2013,5100056765,2500,DREAMBANK SYSTEMS LTD
TfGM,Transport,Capital Costs - Capital Project Main Contract Works,11/10/2013,5100056487,1099.95,EC HARRIS LLP
TfGM,Transport,Capital Costs - Capital Project Main Contract Works,11/10/2013,5100056488,5976.4,EC HARRIS LLP
TfGM,Transport,Capital Costs - Utility & Service Diversion Costs,11/10/2013,5100055333,8788.89,ELECTRICITY NORTH WEST EHV
TfGM,Transport,Capital Costs - Utility & Service Diversion Costs,11/10/2013,5100057041,7624.91,ELECTRICITY NORTH WEST EHV
TfGM,Transport,Capital Costs - Utility & Service Diversion Costs,11/10/2013,5100057042,16854.55,ELECTRICITY NORTH WEST EHV
TfGM,Transport,Capital Costs - Utility & Service Diversion Costs,11/10/2013,5100057053,11545.13,ELECTRICITY NORTH WEST EHV
TfGM,Transport,Postage Costs,11/10/2013,5100057096,1080,ING LEASE UK LTD
TfGM,Transport,Capital Costs - Mechanical & Engineering Support Services,11/10/2013,5100056485,900,JACOBS UK LTD
TfGM,Corporate Services,Procurement Services,11/10/2013,5100056926,6500,JETFIRE ASSOCIATES LIMITED
TfGM,Transport,Capital Costs - Programme and Project Management Services,11/10/2013,5100057113,4650,MACE LTD
TfGM,Transport,Capital Costs - Vehicle Costs,11/10/2013,5100056990,764.72,MANCHESTER CITY COUNCIL
TfGM,Corporate Services,IS Support Services,11/10/2013,5100057171,9625,MAPSAR LTD
TfGM,Transport,Light Rail Support Services,11/10/2013,5100057054,8800,MARBLE LTD
TfGM,Transport,Capital Costs - Programme and Project Management Services,11/10/2013,5100056591,1950,MORSON INTERNATIONAL
TfGM,Transport,Programme and Project Management Services,11/10/2013,5100056593,915.2,MORSON INTERNATIONAL
TfGM,Transport,Capital Costs - Programme and Project Management Services,11/10/2013,5100056594,1720,MORSON INTERNATIONAL
TfGM,Transport,Capital Costs - Project Management Services,11/10/2013,5100056595,1881.25,MORSON INTERNATIONAL
TfGM,Transport,Capital Costs - Programme and Project Management Services,11/10/2013,5100056599,1690,MORSON INTERNATIONAL
TfGM,Transport,Capital Costs - Programme and Project Management Services,11/10/2013,5100056600,1664,MORSON INTERNATIONAL
TfGM,Transport,Capital Costs - Programme and Project Management Services,11/10/2013,5100056770,1950,MORSON INTERNATIONAL
TfGM,Transport,Capital Costs - Capital Project Main Contract Works,11/10/2013,5100055602,135000,NETWORK RAIL
TfGM,Transport,Rail Franchise,11/10/2013,1200026493,5331286.21,NORTHERN RAIL LTD
TfGM,Transport,Capital Costs - Legal Services,11/10/2013,1900029912,5000,OLDHAM MBC
TfGM,Transport,Temporary Vacancy Cover,11/10/2013,5100056442,620.28,PLUSWORK LTD
TfGM,Transport,Temporary Vacancy Cover,11/10/2013,5100056579,566.4,PLUSWORK LTD
TfGM,Transport,Traffic and Transportation Surveys,11/10/2013,5100056580,532,PLUSWORK LTD
TfGM,Transport,Traffic and Transportation Surveys,11/10/2013,5100056601,4447.5,PLUSWORK LTD
TfGM,Transport,Temporary Vacancy Cover,11/10/2013,5100056602,4311.79,PLUSWORK LTD
TfGM,Transport,Temporary Vacancy Cover,11/10/2013,5100056603,837.99,PLUSWORK LTD
TfGM,Transport,Traffic and Transportation Surveys,11/10/2013,5100056604,6838.49,PLUSWORK LTD
TfGM,Transport,Smart Ticketing,11/10/2013,5100056437,2600,PRACTICUS LIMITED
TfGM,Transport,Capital Costs - Programme and Project Management Services,11/10/2013,5100056477,1400,PRACTICUS LIMITED
TfGM,Transport,Training,11/10/2013,5100057331,2550,R W Parker
TfGM,Transport,Capital Costs - Print & Media,11/10/2013,5100057323,490,RCD
TfGM,Transport,Capital Costs - Print & Media,11/10/2013,5100057324,490,RCD
TfGM,Transport,Capital Costs - Print & Media,11/10/2013,5100057325,882,RCD
TfGM,Transport,Capital Costs - Cycle Safety Equipment,11/10/2013,5100056728,2073.3,RITHERDON & CO LTD
TfGM,Transport,"Rent, Rates & Service Charges",11/10/2013,1900029958,24842.34,ROCHDALE MBC
TfGM,Transport,Postage Costs,11/10/2013,5100057290,1232.08,ROYAL MAIL GROUP PLC
TfGM,Transport,Capital Costs -  Project Management Services,11/10/2013,5100057021,8740,SB PROJECT MANAGEMENT LTD
TfGM,Transport,Print & Media,11/10/2013,5100056585,565,SERVICE GRAPHICS LTD
TfGM,Transport,Capital Costs - Print & Media,11/10/2013,5100056715,605.71,SERVICEPOINT UK
TfGM,Transport,Traffic Signal Works,11/10/2013,5100056637,96041.62,SIEMENS PLC
TfGM,Transport,Traffic Signal Works,11/10/2013,5100056638,96885.59,SIEMENS PLC
TfGM,Transport,Traffic and Transportation Surveys,11/10/2013,5100056490,4495.4,SKY HIGH TECHNOLOGY LTD
TfGM,Transport,Print & Media,11/10/2013,5100056457,1870,THE IMAGE GROUP
TfGM,Transport,Capital Costs - Environmental Feasibility Support,11/10/2013,5100056596,7015.27,URS INFRASTRUCTURE & ENVIRONMENT UK
TfGM,Corporate Services,IS Consumables,11/10/2013,5100056802,8784,VIGLEN
TfGM,Transport,Training,11/10/2013,5100057126,550,WIGAN COMMUNITY TRANSPORT
TfGM,Transport,"Rent, Rates & Service Charges",11/10/2013,1900029973,3011.52,WIGAN COUNCIL
TfGM,Transport,Capital Costs - Print & Media,11/10/2013,5100056589,2500,WYTHENSHAWE WORLD LTD
TfGM,Corporate Services,CCTV Support Services,11/10/2013,5100056419,900,ZOOM CCTV LTD
TfGM,Transport,Accessible Transport,12/10/2013,1200026493,441667,GMATT
TfGM,Transport,Vehicle Costs,13/10/2013,1200026896,1180.8,ALLSTAR
TfGM,Transport,Supported Bus Services,15/10/2013,1900030121,2500,5 STAR PRIVATE HIRE
TfGM,Transport,Capital Costs - Engineering Support Services,15/10/2013,5100056060,6022.5,AECOM LTD
TfGM,Transport,Capital Costs - Engineering Support Services,15/10/2013,5100056431,22680,AECOM LTD
TfGM,Transport,Temporary Vacancy Cover,15/10/2013,5100056760,8875,AECOM LTD
TfGM,Transport,Engineering Support Services,15/10/2013,5100056767,7090.75,AECOM LTD
TfGM,Transport,Capital Costs -  Project Management Services,15/10/2013,5100056929,2000,AJILON UK LIMITED T/A COMPUTER PEOP
TfGM,Transport,Capital Costs - Equipment Installation,15/10/2013,5100057428,3117.73,APOLLO ENERGY LTD
TfGM,Transport,Supported Bus Services,15/10/2013,1700018676,-732.42,ARRIVA MANCHESTER
TfGM,Transport,Supported Bus Services,15/10/2013,1900029980,1231,ARRIVA MANCHESTER
TfGM,Transport,Concessionary Reimbursement,15/10/2013,1900030047,377417,ARRIVA MANCHESTER
TfGM,Transport,Supported Bus Services,15/10/2013,1900030124,128352.51,ARRIVA MANCHESTER
TfGM,Transport,Supported Bus Services,15/10/2013,1900030125,120935.26,ARRIVA MANCHESTER
TfGM,Transport,Supported Bus Services,15/10/2013,1900030133,5707.16,ARRIVA MANCHESTER
TfGM,Transport,Signage Costs,15/10/2013,5100056583,1650,ASTRA SIGNS
TfGM,Transport,Capital Costs - Planning Support Services,15/10/2013,5100056612,505,ATKINS LTD
TfGM,Transport,Capital Costs - Architectural Services,15/10/2013,5100056613,12501,ATKINS LTD
TfGM,Transport,Capital Costs - Design Support Services,15/10/2013,5100056614,3497,ATKINS LTD
TfGM,Transport,Capital Costs - Design Support Services,15/10/2013,5100056616,487,ATKINS LTD
TfGM,Transport,Data Analysis,15/10/2013,5100057285,3812.5,ATKINS LTD
TfGM,Transport,Driver Intervention Course Delivery Costs,15/10/2013,5100057446,917.5,BEACON LANGUAGES LTD
TfGM,Transport,Supported Bus Services,15/10/2013,1900030109,108404.9,BELLE VUE (MANCHESTER) LTD
TfGM,Transport,Print & Media,15/10/2013,5100056743,488,BLUETREE DESIGN AND PRINT LTD
TfGM,Transport,Capital Costs - Print & Media,15/10/2013,5100056744,462,BLUETREE DESIGN AND PRINT LTD
TfGM,Transport,Training,15/10/2013,5100057411,550,BOLTON COMMUNITY TRANSPORT
TfGM,Transport,Capital Costs - Land Acquisition and Related Costs,15/10/2013,5100056786,5000,BOLTON METROPOLITAN BOROUGH COUNCIL
TfGM,Transport,Capital Costs - Design Support Services,15/10/2013,5100056790,4000,BOLTON METROPOLITAN BOROUGH COUNCIL
TfGM,Transport,Capital Costs - LRT Vehicles,15/10/2013,5100057316,187389.88,BOMBARDIER TRANSPORTATION UK LTD
TfGM,Transport,Print & Media,15/10/2013,5100056720,1472.35,BREEZE LTD
TfGM,Transport,Print & Media,15/10/2013,5100056721,559.35,BREEZE LTD
TfGM,Transport,IS Support Services,15/10/2013,5100056791,5600,BT ENGAGE IT
TfGM,Transport,Supported Bus Services,15/10/2013,1900030131,2020.83,BULLITT CARS
TfGM,Transport,Concessionary Reimbursement,15/10/2013,1900030048,2300,BULLOCKS
TfGM,Transport,Supported Bus Services,15/10/2013,1900030118,17365.45,BULLOCKS
TfGM,Transport,Supported Bus Services,15/10/2013,1900030119,1269.55,BULLOCKS
TfGM,Transport,Concessionary Reimbursement,15/10/2013,1900030049,12000,BURNLEY AND PENDLE
TfGM,Transport,Print & Media,15/10/2013,5100057299,17449.93,CARAT MEDIA UK LIMITED
TfGM,Transport,Print & Media,15/10/2013,5100057300,18009.66,CARAT MEDIA UK LIMITED
TfGM,Transport,Concessionary Reimbursement,15/10/2013,1900030030,600,CASTLEROYLE PRIVATE HIRE
TfGM,Transport,Capital Costs - Project Support Services,15/10/2013,5100056605,1575,CDI ANDERSELITE LTD
TfGM,Transport,Capital Costs - Project Support Services,15/10/2013,5100056607,1370,CDI ANDERSELITE LTD
TfGM,Transport,Concessionary Reimbursement,15/10/2013,1900030051,15092,CENTREBUS LTD
TfGM,Transport,Capital Costs - Archaeological Services,15/10/2013,5100057134,2380,CFA ARCHAELOGY LTD
TfGM,Transport,Print & Media,15/10/2013,5100056725,2298,CHAPEL PRESS LTD
TfGM,Transport,Print & Media,15/10/2013,5100056726,1323,CHAPEL PRESS LTD
TfGM,Transport,Concessionary Reimbursement,15/10/2013,1900030053,3300,CHECKMATE TRANSPORT LTD
TfGM,Transport,Supported Bus Services,15/10/2013,1900030091,10218.7,CHECKMATE TRANSPORT LTD
TfGM,Transport,Supported Bus Services,15/10/2013,1900030134,7772.72,CHESTERS COACHES
TfGM,Transport,Supported Bus Services,15/10/2013,1900030132,5872.73,CI WALLEY TA RINGWAY MINIBUS HIRE
TfGM,Transport,Concessionary Reimbursement,15/10/2013,1900030054,17250,CUMFY BUS LTD
TfGM,Transport,Supported Bus Services,15/10/2013,1900030105,27611.25,CUMFY BUS LTD
TfGM,Transport,Cycling Equipment,15/10/2013,5100056897,567,CYCLES RECYCLED CIC
TfGM,Transport,Supported Bus Services,15/10/2013,1900030104,12405.33,ECO TRAVEL
TfGM,Transport,Programme Assurance Services,15/10/2013,5100056981,94090,ERNST & YOUNG
TfGM,Transport,Concessionary Reimbursement,15/10/2013,1900030057,3000,FE FINCH
TfGM,Transport,Pass Withdrawal Scheme,15/10/2013,1900030005,600,FINGLANDS
TfGM,Transport,Concessionary Reimbursement,15/10/2013,1900030055,35000,FINGLANDS
TfGM,Transport,Supported Bus Services,15/10/2013,1900030092,27653.2,FINGLANDS
TfGM,Transport,Supported Bus Services,15/10/2013,1900030093,33094.95,FINGLANDS
TfGM,Transport,Concessionary Reimbursement,15/10/2013,1900030056,9000,FIRST CALDERLINE
TfGM,Transport,Supported Bus Services,15/10/2013,1700018666,-2743.42,FIRST MANCHESTER
TfGM,Transport,Supported Bus Services,15/10/2013,1900029983,10474,FIRST MANCHESTER
TfGM,Transport,Pass Withdrawal Scheme,15/10/2013,1900030006,1440,FIRST MANCHESTER
TfGM,Transport,Pass Withdrawal Scheme,15/10/2013,1900030012,1110,FIRST MANCHESTER
TfGM,Transport,Concessionary Reimbursement,15/10/2013,1900030058,145000,FIRST MANCHESTER
TfGM,Transport,Supported Bus Services,15/10/2013,1900030116,294226.21,FIRST MANCHESTER
TfGM,Transport,Supported Bus Services,15/10/2013,1900030117,338519.08,FIRST MANCHESTER
TfGM,Transport,Postage Costs,15/10/2013,1200026513,3500,FP TELESET
TfGM,Transport,Capital Costs - Engineering Support Services,15/10/2013,5100057170,1750,FREMONT LTD
TfGM,Transport,Supported Bus Services,15/10/2013,1900030136,21723,GB COACHES
TfGM,Transport,Concessionary Reimbursement,15/10/2013,1900030082,9976.5,GMATL
TfGM,Transport,Supported Bus Services,15/10/2013,1900030103,11968.33,GMATL
TfGM,Transport,Supported Bus Services,15/10/2013,5100057369,2500,GMATL
TfGM,Transport,Supported Bus Services,15/10/2013,1900030100,41362.55,GO GOODWINS COACHES LTD
TfGM,Transport,Supported Bus Services,15/10/2013,1900030101,93932.09,GO GOODWINS COACHES LTD
TfGM,Transport,Supported Bus Services,15/10/2013,1900029984,761,GREEN TRIANGLE BUSES LTD
TfGM,Transport,Concessionary Reimbursement,15/10/2013,1900030059,79620,GREEN TRIANGLE BUSES LTD
TfGM,Transport,Supported Bus Services,15/10/2013,1900030129,36446.7,GREEN TRIANGLE BUSES LTD
TfGM,Transport,Supported Bus Services,15/10/2013,1900030130,80708.61,GREEN TRIANGLE BUSES LTD
TfGM,Transport,Concessionary Reimbursement,15/10/2013,1900030025,727,H SHAKERI T/A EUROLYNX TAXIS
TfGM,Transport,Temporary Vacancy Cover,15/10/2013,1900030079,9816.3,HAYS SPECIALIST RECRUITMENT LTD
TfGM,Transport,Capital Costs - Programme and Project Management Services,15/10/2013,5100057127,2647.05,HAYS SPECIALIST RECRUITMENT LTD
TfGM,Transport,Capital Costs - Programme and Project Management Services,15/10/2013,5100057291,2647.05,HAYS SPECIALIST RECRUITMENT LTD
TfGM,Transport,Concessionary Reimbursement,15/10/2013,1900030083,700,HORWICH PRIVATE HIRE LIMITED
TfGM,Transport,Supported Bus Services,15/10/2013,1900030096,2333.33,HORWICH PRIVATE HIRE LIMITED
TfGM,Transport,Capital Costs - Environmental & Ecological Support Services,15/10/2013,5100056882,3269.49,HYDER CONSULTING LTD
TfGM,Corporate Services,Computer Support and Licences,15/10/2013,5100056821,2259.15,IGROUP LTD
TfGM,Corporate Services,Computer Support and Licences,15/10/2013,5100056822,6629.49,IGROUP LTD
TfGM,Transport,Concessionary Reimbursement,15/10/2013,1900030060,29500,JIM STONES COACHES
TfGM,Transport,Supported Bus Services,15/10/2013,1900030127,9859.91,JIM STONES COACHES
TfGM,Transport,Supported Bus Services,15/10/2013,1900030128,11908.98,JIM STONES COACHES
TfGM,Transport,Supported Bus Services,15/10/2013,1700018672,-650.59,JP EXECUTIVE
TfGM,Transport,Supported Bus Services,15/10/2013,1900029985,937,JP EXECUTIVE
TfGM,Transport,Concessionary Reimbursement,15/10/2013,1900030061,49000,JP EXECUTIVE
TfGM,Transport,Supported Bus Services,15/10/2013,1900030122,37517.36,JP EXECUTIVE
TfGM,Transport,Supported Bus Services,15/10/2013,1900030123,43580.08,JP EXECUTIVE
TfGM,Transport,Concessionary Reimbursement,15/10/2013,1900030021,554,K & M CARS
TfGM,Transport,Print & Media,15/10/2013,5100056680,1362.5,KREATIVE BOMB LIMITED
TfGM,Transport,Supported Bus Services,15/10/2013,1900030120,17208.54,LAINTON COACHES LTD
TfGM,Transport,Concessionary Reimbursement,15/10/2013,1900030062,16500,LANCASHIRE UTD
TfGM,Transport,Supported Bus Services,15/10/2013,1900030108,3285.91,LEISURE TRAVEL
TfGM,Transport,Concessionary Reimbursement,15/10/2013,1900030065,600,M TRAVEL
TfGM,Transport,Supported Bus Services,15/10/2013,1900030110,42917.26,M TRAVEL
TfGM,Transport,Supported Bus Services,15/10/2013,1900030111,13941.67,M TRAVEL
TfGM,Transport,Concessionary Reimbursement,15/10/2013,1900030066,33273,MANCHESTER COMMUNITY TRANSPORT
TfGM,Transport,Supported Bus Services,15/10/2013,1900030097,25385.09,MANCHESTER COMMUNITY TRANSPORT
TfGM,Transport,Supported Bus Services,15/10/2013,1900030098,182730.57,MANCHESTER COMMUNITY TRANSPORT
TfGM,Transport,Print & Media,15/10/2013,5100057344,4950,MERE PR
TfGM,Transport,Concessionary Reimbursement,15/10/2013,1900030024,1256,METRO TAXIS LTD
TfGM,Transport,Capital Costs - Project Support Services,15/10/2013,5100057389,1875,NEIL CLARKE LTD
TfGM,Transport,Supported Bus Services,15/10/2013,1900030102,59710.37,OLYMPIA TRAVEL
TfGM,Transport,Print & Media,15/10/2013,5100057005,1338.5,OMEGA PRINT AND DESIGN LTD
TfGM,Transport,Capital Costs - Legal Services,15/10/2013,5100057125,8235.6,PANNONE AND PARTNERS
TfGM,Transport,Capital Costs - Programme and Project Management Services,15/10/2013,5100056780,1701.75,PERTEMPS PROFESSIONAL STAFFING LTD
TfGM,Transport,Capital Costs - Programme and Project Management Services,15/10/2013,5100056756,1400,PRACTICUS LIMITED
TfGM,Transport,Smart Ticketing,15/10/2013,5100056758,3562.5,PRACTICUS LIMITED
TfGM,Transport,Smart Ticketing,15/10/2013,5100056779,2600,PRACTICUS LIMITED
TfGM,Transport,Vehicle Costs,15/10/2013,1200026513,1166.3,Quartix Ltd
TfGM,Transport,Supported Bus Services,15/10/2013,1900030140,31667.09,R S TYRER LTD
TfGM,Transport,Concessionary Reimbursement,15/10/2013,1900030086,3176,RADIO CABS T/A ECO TRAVEL
TfGM,Transport,Supported Bus Services,15/10/2013,1900030099,30178.33,RADIO CABS T/A ECO TRAVEL
TfGM,Transport,Capital Costs - Print & Media,15/10/2013,5100057378,500,RCD
TfGM,Transport,Smart Ticketing,15/10/2013,5100056733,2000,Robert Walters Plc
TfGM,Transport,Smart Ticketing,15/10/2013,5100056734,800,Robert Walters Plc
TfGM,Transport,Smart Ticketing,15/10/2013,5100056735,2400.1,Robert Walters Plc
TfGM,Transport,Smart Ticketing,15/10/2013,5100056752,4000,Robert Walters Plc
TfGM,Transport,Smart Ticketing,15/10/2013,5100056753,2950,Robert Walters Plc
TfGM,Transport,Concessionary Reimbursement,15/10/2013,1900030085,10907,ROCHDALE COMMUNITY TRANSPORT
TfGM,Transport,Supported Bus Services,15/10/2013,1900030094,43021.59,ROCHDALE COMMUNITY TRANSPORT
TfGM,Transport,Supported Bus Services,15/10/2013,1900030095,41968.41,ROCHDALE COMMUNITY TRANSPORT
TfGM,Transport,Concessionary Reimbursement,15/10/2013,1900030078,4000,ROJAY SERVICES LTD T/A WIGAN COACHW
TfGM,Transport,Supported Bus Services,15/10/2013,1700018653,-584.83,ROSSENDALE TRANSPORT
TfGM,Transport,Supported Bus Services,15/10/2013,1900029988,1018,ROSSENDALE TRANSPORT
TfGM,Transport,Concessionary Reimbursement,15/10/2013,1900030067,100000,ROSSENDALE TRANSPORT
TfGM,Transport,Supported Bus Services,15/10/2013,1900030106,184506.76,ROSSENDALE TRANSPORT
TfGM,Transport,Supported Bus Services,15/10/2013,1900030107,67066.02,ROSSENDALE TRANSPORT
TfGM,Transport,Supported Bus Services,15/10/2013,1900030137,62933.28,SELWYNS TRAVEL LTD
TfGM,Transport,Traffic Signal Works,15/10/2013,5100056611,1368,SERCO LTD
TfGM,Transport,Supported Bus Services,15/10/2013,1900029989,6104,STAGECOACH SERVICES LTD
TfGM,Transport,Pass Withdrawal Scheme,15/10/2013,1900030009,1155,STAGECOACH SERVICES LTD
TfGM,Transport,Pass Withdrawal Scheme,15/10/2013,1900030014,630,STAGECOACH SERVICES LTD
TfGM,Transport,Concessionary Reimbursement,15/10/2013,1900030069,1338278,STAGECOACH SERVICES LTD
TfGM,Transport,Concessionary Reimbursement,15/10/2013,1900030070,22000,STAGECOACH SERVICES LTD
TfGM,Transport,Concessionary Reimbursement,15/10/2013,1900030071,247083,STAGECOACH SERVICES LTD
TfGM,Transport,Supported Bus Services,15/10/2013,1900030113,231792.45,STAGECOACH SERVICES LTD
TfGM,Transport,Supported Bus Services,15/10/2013,1900030114,348543.16,STAGECOACH SERVICES LTD
TfGM,Transport,Concessionary Reimbursement,15/10/2013,1900030072,11000,STOTTS TOURS
TfGM,Transport,Supported Bus Services,15/10/2013,1900030138,24339.88,STOTTS TOURS
TfGM,Transport,Supported Bus Services,15/10/2013,1900030139,42375.05,STOTTS TOURS
TfGM,Transport,Capital Costs - Traffic Monitoring Equipment & Services,15/10/2013,5100056722,3475,TDC SYSTEMS LTD
TfGM,Transport,Capital Costs - Traffic Monitoring Equipment & Services,15/10/2013,5100056723,2012,TDC SYSTEMS LTD
TfGM,Transport,Capital Costs - Traffic Monitoring Equipment & Services,15/10/2013,5100056724,19959,TDC SYSTEMS LTD
TfGM,Transport,Capital Costs - Traffic Monitoring Equipment & Services,15/10/2013,5100056764,30736,TDC SYSTEMS LTD
TfGM,Transport,Concessionary Reimbursement,15/10/2013,1700018042,-1015.95,TELECARS
TfGM,Transport,Concessionary Reimbursement,15/10/2013,1900030080,0,TELECARS
TfGM,Transport,Supported Bus Services,15/10/2013,1900030081,503.35,TELECARS
TfGM,Transport,Concessionary Reimbursement,15/10/2013,1900030087,2036,TELECARS
TfGM,Transport,Supported Bus Services,15/10/2013,1900030126,11958.33,TELECARS
TfGM,Transport,Concessionary Reimbursement,15/10/2013,1900030073,1800,TRAVELMASTER MCR LTD
TfGM,Transport,Supported Bus Services,15/10/2013,1900030090,3243.45,TRAVELMASTER MCR LTD
TfGM,Transport,Supported Bus Services,15/10/2013,1900030112,2936.36,UK COACHWAYS LTD
TfGM,Transport,Capital Costs - Consultation Support,15/10/2013,5100056745,19041.04,URBAN VISION PARTNERSHIP LTD
TfGM,Transport,Capital Costs - Rail Support Services,15/10/2013,5100056759,1000,URS INFRASTRUCTURE & ENVIRONMENT UK
TfGM,Transport,Concessionary Reimbursement,15/10/2013,1900030074,1500,VALE OF LLANGOLLEN TRAVEL LTD
TfGM,Transport,Supported Bus Services,15/10/2013,1900030115,3436.36,VIKING COACHES
TfGM,Transport,Concessionary Reimbursement,15/10/2013,1900030076,9000,WARRINGTON BOROUGH TRANSPORT LTD
TfGM,Transport,Concessionary Reimbursement,15/10/2013,1900030077,6300,WIGAN BUSES LTD
TfGM,Transport,Supported Bus Services,15/10/2013,1900030135,21642.5,WIGAN BUSES LTD
TfGM,Transport,Supported Bus Services,15/10/2013,1900030089,6533.17,WIGAN COMMUNITY TRANSPORT
TfGM,Transport,Concessionary Reimbursement,15/10/2013,1900030027,2292,WYTHENSHAWE PRIVATE HIRE
TfGM,Transport,Vehicle Costs,16/10/2013,1200026513,1271.74,ALLSTAR
TfGM,Transport,Capital Costs - Land Acquisition and Related Costs,17/10/2013,1900030178,77000,BOLTON METROPOLITAN BOROUGH COUNCIL
TfGM,Transport,Vehicle Costs,18/10/2013,5100056991,500,ACTIA UK LTD
TfGM,Transport,Research Services,18/10/2013,5100056881,4071,AECOM LTD
TfGM,Transport,Capital Costs - Engineering Support Services,18/10/2013,5100056909,9855,AECOM LTD
TfGM,Transport,Traffic Management Services,18/10/2013,5100056935,1496,AECOM LTD
TfGM,Transport,Capital Costs - Equipment Installation,18/10/2013,5100057507,1206.34,APOLLO ENERGY LTD
TfGM,Transport,Capital Costs - Programme and Project Management Services,18/10/2013,5100057502,9198.31,ARK PROJECT MANAGEMENT LTD
TfGM,Transport,Capital Costs - Print & Media,18/10/2013,5100056661,7518.75,ASTRA SIGNS
TfGM,Transport,Capital Costs - Quantity Surveying Services,18/10/2013,5100056701,11021.68,ATKINS LTD
TfGM,Transport,Capital Costs - Quantity Surveying Services,18/10/2013,5100056702,5247.04,ATKINS LTD
TfGM,Transport,Capital Costs - Health & Safety Support Services,18/10/2013,5100057494,1875,ATKINS LTD
TfGM,Transport,Driver Intervention Course Delivery Costs,18/10/2013,5100057501,1181.5,BEACON LANGUAGES LTD
TfGM,Transport,Capital Costs - Capital Project Main Contract Works,18/10/2013,5100057554,185735.13,BIRSE CIVILS LTD
TfGM,Transport,Capital Costs - LRT Vehicles,18/10/2013,5100057473,468474.69,BOMBARDIER TRANSPORTATION UK LTD
TfGM,Transport,Other Operational Costs,18/10/2013,5100057351,1444.4,BRAKE BROS LTD
TfGM,Transport,Other Operational Costs,18/10/2013,5100057562,982.27,BRAKE BROS LTD
TfGM,Transport,Capital Costs - Community Transport Support Services,18/10/2013,5100057587,666,BREAKTHROUGH UK LTD
TfGM,Transport,Property & Equipment Maintenance,18/10/2013,5100056976,453,BURDENS LTD
TfGM,Transport,Capital Costs - Print & Media,18/10/2013,5100056665,3438,CREATIVE CONCERN
TfGM,Transport,Capital Costs - Print & Media,18/10/2013,5100056666,4643,CREATIVE CONCERN
TfGM,Transport,Capital Costs - Print & Media,18/10/2013,5100056668,6152,CREATIVE CONCERN
TfGM,Transport,Capital Costs - Print & Media,18/10/2013,5100056676,5808,CREATIVE CONCERN
TfGM,Transport,Capital Costs - Print & Media,18/10/2013,5100056677,2940.95,CREATIVE CONCERN
TfGM,Transport,Capital Costs - Print & Media,18/10/2013,5100056678,1370.4,CREATIVE CONCERN
TfGM,Transport,Print & Media,18/10/2013,5100056747,792,CREATIVE CONCERN
TfGM,Transport,Capital Costs - Computer & Communications Equipment,18/10/2013,5100056730,18039.4,DIMENSION DATA ADVANCED INFRASTRUCT
TfGM,Transport,Paper and Printing Consumables,18/10/2013,5100056982,10782.96,ESP SYSTEX LTD
TfGM,Transport,Secondment,18/10/2013,5100056798,7480,FIRST KEOLIS TRANSPENNINE LTD
TfGM,Transport,Capital Costs - Engineering Support Services,18/10/2013,5100057364,1400,FREMONT LTD
TfGM,Transport,Temporary Vacancy Cover,18/10/2013,1900030177,10322,HAYS SPECIALIST RECRUITMENT LTD
TfGM,Transport,Print & Media,18/10/2013,5100056737,796,HUDSON AND PEARSON LTD
TfGM,Transport,Print & Media,18/10/2013,5100056738,3195,HUDSON AND PEARSON LTD
TfGM,Transport,Capital Costs - Computer Support and Licences,18/10/2013,5100056417,15249,ITSO LTD
TfGM,Transport,Capital Costs - Capital Project Main Contract Works,18/10/2013,5100057394,791170.61,KIER CONSTRUCTION - NORTHERN
TfGM,Transport,Capital Costs - Legal Services,18/10/2013,1900030161,1280,MANCHESTER CITY COUNCIL
TfGM,Transport,Print & Media,18/10/2013,5100057337,7500,MARKETING MANCHESTER
TfGM,Transport,Capital Costs - Programme and Project Management Services,18/10/2013,5100056854,1664,MORSON INTERNATIONAL
TfGM,Transport,Capital Costs - Programme and Project Management Services,18/10/2013,5100056868,2150,MORSON INTERNATIONAL
TfGM,Transport,Capital Costs - Programme and Project Management Services,18/10/2013,5100056869,1560,MORSON INTERNATIONAL
TfGM,Transport,Capital Costs - Programme and Project Management Services,18/10/2013,5100056870,1950,MORSON INTERNATIONAL
TfGM,Transport,Capital Costs - Project Management Services,18/10/2013,5100056871,2150,MORSON INTERNATIONAL
TfGM,Transport,Capital Costs - Project Management Services,18/10/2013,5100056872,1881.25,MORSON INTERNATIONAL
TfGM,Transport,Capital Costs - Programme and Project Management Services,18/10/2013,5100056890,1690,MORSON INTERNATIONAL
TfGM,Transport,Capital Costs - Quantity Surveying Services,18/10/2013,5100056051,13771.82,MOTT MACDONALD LTD
TfGM,Transport,Capital Costs - Utility & Service Diversion Costs,18/10/2013,1900030160,466,NATIONAL GRID PLC
TfGM,Transport,Capital Costs - Capital Project Main Contract Works,18/10/2013,5100056986,12265.8,NETWORK RAIL
TfGM,Transport,Property & Equipment Maintenance,18/10/2013,5100056864,20572.97,NOVUS PROPERTY SOLUTIONS LTD
TfGM,Transport,Property & Equipment Maintenance,18/10/2013,5100056866,26310.79,NOVUS PROPERTY SOLUTIONS LTD
TfGM,Transport,Property & Equipment Maintenance,18/10/2013,5100056867,20381.61,NOVUS PROPERTY SOLUTIONS LTD
TfGM,Transport,Environmental & Ecological Support Services,18/10/2013,5100056413,1878.33,NQA
TfGM,Transport,Temporary Vacancy Cover,18/10/2013,5100056657,620.28,PLUSWORK LTD
TfGM,Transport,Traffic and Transportation Surveys,18/10/2013,5100056968,532,PLUSWORK LTD
TfGM,Transport,Temporary Vacancy Cover,18/10/2013,5100056995,4681.58,PLUSWORK LTD
TfGM,Transport,Traffic and Transportation Surveys,18/10/2013,5100057002,6502.59,PLUSWORK LTD
TfGM,Transport,Traffic and Transportation Surveys,18/10/2013,5100057003,4258.24,PLUSWORK LTD
TfGM,Transport,Temporary Vacancy Cover,18/10/2013,5100057033,453.12,PLUSWORK LTD
TfGM,Transport,Street Funiture Equipment,18/10/2013,5100056886,2472,QUEENSBURY SHELTERS LIMITED
TfGM,Transport,Capital Costs - Print & Media,18/10/2013,5100057517,490,RCD
TfGM,Transport,Capital Costs - Print & Media,18/10/2013,5100057518,490,RCD
TfGM,Transport,Capital Costs - Print & Media,18/10/2013,5100057522,881,RCD
TfGM,Transport,Capital Costs - Print & Media,18/10/2013,5100057559,490,RCD
TfGM,Transport,Capital Costs - Print & Media,18/10/2013,5100057561,490,RCD
TfGM,Transport,Smart Ticketing,18/10/2013,5100057129,2400.1,Robert Walters Plc
TfGM,Transport,Training,18/10/2013,5100057503,550,ROCHDALE COMMUNITY TRANSPORT
TfGM,Transport,Capital Costs - Print & Media,18/10/2013,5100057226,518,SERVICEPOINT UK
TfGM,Transport,Traffic Signal Works,18/10/2013,5100056961,6156.23,SIEMENS PLC
TfGM,Transport,Traffic Signal Works,18/10/2013,5100056962,3976.18,SIEMENS PLC
TfGM,Transport,Traffic Signal Works,18/10/2013,5100056963,8237.75,SIEMENS PLC
TfGM,Transport,Traffic Signal Works,18/10/2013,5100056996,8230.31,SIEMENS PLC
TfGM,Transport,Capital Costs - Planning Support Services,18/10/2013,5100056979,9232,STEER DAVIES GLEEVE LTD
TfGM,Transport,Capital Costs - Capital Project Main Contract Works,18/10/2013,5100057614,179256,THALES TRANSPORT & SECURITY LTD
TfGM,Transport,Print & Media,18/10/2013,5100056789,2890,THE IMAGE GROUP
TfGM,Transport,Print & Media,18/10/2013,5100057381,486,THE IMAGE GROUP
TfGM,Transport,Capital Costs - Passenger Shelters,18/10/2013,5100056156,36982.29,TRUEFORM ENGINEERING LTD
TfGM,Transport,Capital Costs - Passenger Shelters,18/10/2013,5100056178,20722.69,TRUEFORM ENGINEERING LTD
TfGM,Transport,Cleaning,18/10/2013,5100057464,462,TUDOR CONTRACT CLEANERS LTD
TfGM,Transport,Capital Costs - Quantity Surveying Services,18/10/2013,5100056801,1899.5,TURNER & TOWNSEND PROJECT MANAGEMEN
TfGM,Transport,Utilities & Energy,18/10/2013,1900030159,3394.31,UNITED UTILITIES WATER PLC
TfGM,Corporate Services,Legal Services,18/10/2013,5100057514,39948.5,WEIGHTMANS LLP
TfGM,Corporate Services,Legal Services,18/10/2013,5100057596,-1721.5,WEIGHTMANS LLP
TfGM,Transport,Capital Costs - Capital Project Main Contract Works,21/10/2013,5100057660,68500,MPACT THALES
TfGM,Transport,Security Services,21/10/2013,5100057661,15639.77,MPACT THALES
TfGM,Transport,Capital Costs - Capital Project Main Contract Works,21/10/2013,5100057662,3080250,MPACT THALES
TfGM,Transport,Capital Costs - Capital Project Main Contract Works,21/10/2013,5100057663,45000,MPACT THALES
TfGM,Transport,Capital Costs - Capital Project Main Contract Works,21/10/2013,5100057664,500000,MPACT THALES
TfGM,Transport,Capital Costs - Capital Project Main Contract Works,21/10/2013,5100057665,674581.14,MPACT THALES
TfGM,Transport,Capital Costs - Capital Project Main Contract Works,21/10/2013,5100057666,157267.89,MPACT THALES
TfGM,Transport,Capital Costs - Capital Project Main Contract Works,21/10/2013,5100057667,206243.36,MPACT THALES
TfGM,Transport,Capital Costs - Capital Project Main Contract Works,21/10/2013,5100057668,180000,MPACT THALES
TfGM,Transport,Capital Costs - Capital Project Main Contract Works,21/10/2013,5100057669,5327,MPACT THALES
TfGM,Transport,Capital Costs - Capital Project Main Contract Works,21/10/2013,5100057670,36801,MPACT THALES
TfGM,Transport,Capital Costs - Capital Project Main Contract Works,21/10/2013,5100057671,3250900,MPACT THALES
TfGM,Transport,Capital Costs - Capital Project Main Contract Works,21/10/2013,5100057672,1036042.94,MPACT THALES
TfGM,Transport,Capital Costs - Capital Project Main Contract Works,21/10/2013,5100057673,773889,MPACT THALES
TfGM,Transport,Security Services,21/10/2013,5100057674,25000,MPACT THALES
TfGM,Transport,Capital Costs - Capital Project Main Contract Works,21/10/2013,5100057675,795857.63,MPACT THALES
TfGM,Transport,Capital Costs - Capital Project Main Contract Works,21/10/2013,5100057676,-151844.11,MPACT THALES
TfGM,Transport,Capital Costs - Capital Project Main Contract Works,21/10/2013,5100057677,580000,MPACT THALES
TfGM,Transport,Other Operational Costs,22/10/2013,5100057077,718.91,1ST FOOD & DRINK
TfGM,Transport,Capital Costs - Programme and Project Management Services,22/10/2013,5100057509,7800,ACUITY PROGRAMME MANAGEMENT LTD
TfGM,Transport,Capital Costs - Programme and Project Management Services,22/10/2013,5100057511,1812.5,ACUITY PROGRAMME MANAGEMENT LTD
TfGM,Transport,Capital Costs - Programme and Project Management Services,22/10/2013,5100057512,9520.2,ACUITY PROGRAMME MANAGEMENT LTD
TfGM,Transport,Capital Costs - Programme and Project Management Services,22/10/2013,5100057513,10500,ACUITY PROGRAMME MANAGEMENT LTD
TfGM,Transport,Architectural Services,22/10/2013,5100057059,2200,AEDAS ARCHITECTS LTD
TfGM,Transport,Capital Costs - Infrastructure Support Services,22/10/2013,5100056942,32925,APPLIED CARD TECHNOLOGIES
TfGM,Transport,Capital Costs - Protective Clothing,22/10/2013,5100057382,507.94,ARCO LTD
TfGM,Transport,Capital Costs - Signage Costs,22/10/2013,5100056658,9490,ASTRA SIGNS
TfGM,Transport,Capital Costs - Quantity Surveying Services,22/10/2013,5100056262,14461.5,ATKINS LTD
TfGM,Transport,Smart Ticketing,22/10/2013,5100057097,457627,ATOS IT SERVICES UK LTD
TfGM,Transport,Capital Costs - Engineering Support Services,22/10/2013,5100057173,1980.88,AUSTINSMITH LORD LLP
TfGM,Corporate Services,Rail Support Services,22/10/2013,5100057240,12250,BENNETTS ASSOCIATES
TfGM,Transport,Driver Intervention Course Delivery Costs,22/10/2013,5100057390,5340,BOLTON MIDDLEBROOK LEISURE TRUST
TfGM,Transport,Capital Costs - IS Software & Maintenance,22/10/2013,5100057046,4500,BT ENGAGE IT
TfGM,Transport,Driver Intervention Course Delivery Costs,22/10/2013,5100057332,1847.6,C JEFFREY
TfGM,Transport,Print & Media,22/10/2013,5100057301,33729.7,CARAT MEDIA UK LIMITED
TfGM,Transport,Print & Media,22/10/2013,5100057302,3323.32,CARAT MEDIA UK LIMITED
TfGM,Transport,Print & Media,22/10/2013,5100057303,3421.74,CARAT MEDIA UK LIMITED
TfGM,Transport,Security Services,22/10/2013,5100057099,7010.52,CARLISLE SECURITY SERVICES LTD
TfGM,Transport,Driver Intervention Course Delivery Costs,22/10/2013,5100057535,6070,CARRINGTON BUSINESS PARK (CBPK)
TfGM,Transport,Capital Costs - Project Support Services,22/10/2013,5100056894,1575,CDI ANDERSELITE LTD
TfGM,Transport,Capital Costs - Project Support Services,22/10/2013,5100056895,2027.6,CDI ANDERSELITE LTD
TfGM,Transport,Capital Costs - Project Support Services,22/10/2013,5100057537,1233,CDI ANDERSELITE LTD
TfGM,Corporate Services,Payroll Support Services,22/10/2013,5100057684,1012.68,CGI IT UK LTD
TfGM,Transport,Print & Media,22/10/2013,5100057080,617.5,CHAPEL PRESS LTD
TfGM,Corporate Services,Computer Support and Licences,22/10/2013,5100057049,12000,CONJECT
TfGM,Transport,Cycling Equipment,22/10/2013,5100056898,560,CYCLES RECYCLED CIC
TfGM,Transport,Capital Costs - Engineering Support Services,22/10/2013,5100057609,3261.5,EC HARRIS LLP
TfGM,Transport,Capital Costs - Engineering Support Services,22/10/2013,5100057610,5462.21,EC HARRIS LLP
TfGM,Transport,Capital Costs - Engineering Support Services,22/10/2013,5100057611,3299.85,EC HARRIS LLP
TfGM,Transport,Capital Costs - Engineering Support Services,22/10/2013,5100057612,3849.83,EC HARRIS LLP
TfGM,Transport,Project Support Services,22/10/2013,5100057063,2789.95,EKOSGEN
TfGM,Transport,Capital Costs - Utility & Service Diversion Costs,22/10/2013,5100055334,31657.04,ELECTRICITY NORTH WEST EHV
TfGM,Transport,Human Resource Services,22/10/2013,5100057154,700,EMAP LTD
TfGM,Transport,Capital Costs - Architectural Services,22/10/2013,5100057377,18000,GILLESPIES
TfGM,Transport,Capital Costs - Architectural Services,22/10/2013,5100057425,2239.84,GILLESPIES
TfGM,Transport,Concessionary Reimbursement,22/10/2013,1900030190,1144,GLENNYS GLOVER T/A MAINLINE DOLPHIN
TfGM,Transport,Signage Costs,22/10/2013,5100057044,626,GR LABELS LTD
TfGM,Transport,Capital Costs - Health & Safety Support Services,22/10/2013,5100056988,1703.3,HALCROW GROUP LTD
TfGM,Transport,Capital Costs - Engineering Support Services,22/10/2013,5100057001,4800,HALCROW GROUP LTD
TfGM,Transport,Print & Media,22/10/2013,5100056874,4950,HEMISPHERE DESIGN & MRKTNG
TfGM,Transport,Print & Media,22/10/2013,5100057254,7675,HEMISPHERE DESIGN & MRKTNG
TfGM,Transport,Print & Media,22/10/2013,5100057255,9075,HEMISPHERE DESIGN & MRKTNG
TfGM,Transport,Print & Media,22/10/2013,5100057256,9300,HEMISPHERE DESIGN & MRKTNG
TfGM,Transport,Print & Media,22/10/2013,5100057257,9865,HEMISPHERE DESIGN & MRKTNG
TfGM,Transport,Print & Media,22/10/2013,5100057261,3625,HEMISPHERE DESIGN & MRKTNG
TfGM,Transport,Print & Media,22/10/2013,5100057262,4330,HEMISPHERE DESIGN & MRKTNG
TfGM,Transport,Print & Media,22/10/2013,5100057263,1970,HEMISPHERE DESIGN & MRKTNG
TfGM,Transport,Print & Media,22/10/2013,5100057264,8425,HEMISPHERE DESIGN & MRKTNG
TfGM,Transport,Print & Media,22/10/2013,5100057265,6470,HEMISPHERE DESIGN & MRKTNG
TfGM,Transport,Driver Intervention Course Delivery Costs,22/10/2013,5100056912,4200,HOLIDAY INN EXPRESS
TfGM,Transport,Driver Intervention Course Delivery Costs,22/10/2013,5100057085,1750,HOLIDAY INN MANCHESTER CENTRAL PARK
TfGM,Transport,Driver Intervention Course Delivery Costs,22/10/2013,5100057168,2479.17,HOLIDAY INN MANCHESTER EAST
TfGM,Transport,Print & Media,22/10/2013,5100057445,4120,HUDSON AND PEARSON LTD
TfGM,Transport,Capital Costs - Environmental & Ecological Support Services,22/10/2013,5100057012,748.37,HYDER CONSULTING LTD
TfGM,Transport,Capital Costs - Environmental & Ecological Support Services,22/10/2013,5100057018,1243.01,HYDER CONSULTING LTD
TfGM,Transport,Print & Media,22/10/2013,5100056911,1400,ILLUSTRATION LTD
TfGM,Corporate Services,IS Software & Maintenance,22/10/2013,5100057322,1000,INS SUDLOWS LTD
TfGM,Transport,Capital Costs - Project Management Services,22/10/2013,5100056769,1368,ISS LABOUR LTD
TfGM,Transport,Capital Costs - Project Management Services,22/10/2013,5100056855,3069,ISS LABOUR LTD
TfGM,Transport,Capital Costs - Engineering Support Services,22/10/2013,5100057239,1818,ITS Testing Services (UK) Ltd
TfGM,Transport,Capital Costs - Quantity Surveying Services,22/10/2013,5100056708,6908,JACOBS UK LTD
TfGM,Corporate Services,Planning Support Services,22/10/2013,5100057213,5000,JONES LANG LASALLE LTD
TfGM,Transport,Capital Costs - Programme and Project Management Services,22/10/2013,5100057022,6525,JSLM PROGRAMME SERVICES LTD
TfGM,Corporate Services,Procurement Services,22/10/2013,5100057642,11025,JULIAN BENSON ASSOCIATES LTD
TfGM,Transport,Capital Costs - Legal Services,22/10/2013,5100057401,2000,LAMBERT SMITH HAMPTON
TfGM,Transport,Vehicle Costs,22/10/2013,5100057558,1293.79,LEX AUTOLEASE LTD
TfGM,Transport,Print & Stationery ,22/10/2013,5100057158,508.41,LYRECO UK LTD
TfGM,Transport,Capital Costs - QBC Support Services,22/10/2013,5100056799,1666,MANCHESTER CITY COUNCIL
TfGM,Transport,Exhibitions and Conferences,22/10/2013,5100057409,513.4,MCR CENTRAL CONVENTION COMPLEX LTD
TfGM,Transport,Print & Media,22/10/2013,5100057578,600,MERE PR
TfGM,Transport,Metrolink Operating Costs,22/10/2013,5100056669,28220,METROLINK RATP DEV LTD
TfGM,Transport,Capital Costs - Project Support Services,22/10/2013,5100056695,4714.39,METROLINK RATP DEV LTD
TfGM,Transport,Capital Costs - Smart Ticketing,22/10/2013,5100057209,5000,MINT RECRUITMENT SOLUTIONS LTD
TfGM,Transport,Print & Media,22/10/2013,5100057333,482.02,MIRAGE DISPLAY LTD
TfGM,Transport,Cleaning,22/10/2013,5100056825,7734.61,MITIE CLEANING & SUPPORT SERVS LTD
TfGM,Transport,Cleaning,22/10/2013,5100056836,535.82,MITIE CLEANING & SUPPORT SERVS LTD
TfGM,Transport,Capital Costs - Programme and Project Management Services,22/10/2013,5100056877,5850,MOTT MACDONALD LTD
TfGM,Transport,Capital Costs - Mechanical & Engineering Support Services,22/10/2013,5100057269,2345,MOTT MACDONALD LTD
TfGM,Transport,Capital Costs - Mechanical & Engineering Support Services,22/10/2013,5100057270,4200,MOTT MACDONALD LTD
TfGM,Transport,Capital Costs - Mechanical & Engineering Support Services,22/10/2013,5100057271,912,MOTT MACDONALD LTD
TfGM,Transport,Capital Costs - Mechanical & Engineering Support Services,22/10/2013,5100057272,2940,MOTT MACDONALD LTD
TfGM,Transport,Capital Costs - Mechanical & Engineering Support Services,22/10/2013,5100057273,5918.34,MOTT MACDONALD LTD
TfGM,Transport,Capital Costs - Mechanical & Engineering Support Services,22/10/2013,5100057274,44649.33,MOTT MACDONALD LTD
TfGM,Transport,Capital Costs - Mechanical & Engineering Support Services,22/10/2013,5100057275,5249.4,MOTT MACDONALD LTD
TfGM,Transport,Capital Costs - Mechanical & Engineering Support Services,22/10/2013,5100057276,1831.66,MOTT MACDONALD LTD
TfGM,Transport,Capital Costs - Mechanical & Engineering Support Services,22/10/2013,5100057277,38290,MOTT MACDONALD LTD
TfGM,Transport,Capital Costs - Mechanical & Engineering Support Services,22/10/2013,5100057278,992.5,MOTT MACDONALD LTD
TfGM,Transport,Capital Costs - Mechanical & Engineering Support Services,22/10/2013,5100057279,4368.5,MOTT MACDONALD LTD
TfGM,Transport,Capital Costs - Mechanical & Engineering Support Services,22/10/2013,5100057280,18943.19,MOTT MACDONALD LTD
TfGM,Transport,Capital Costs - Mechanical & Engineering Support Services,22/10/2013,5100057281,1620,MOTT MACDONALD LTD
TfGM,Transport,Capital Costs - Mechanical & Engineering Support Services,22/10/2013,5100057282,532.01,MOTT MACDONALD LTD
TfGM,Transport,Capital Costs - Mechanical & Engineering Support Services,22/10/2013,5100057283,7480.67,MOTT MACDONALD LTD
TfGM,Transport,Capital Costs - Mechanical & Engineering Support Services,22/10/2013,5100057543,2340.66,MOTT MACDONALD LTD
TfGM,Transport,Print & Media,22/10/2013,5100057406,611,ORION SECURE PRINT SYSTEMS
TfGM,Transport,Occupational Health,22/10/2013,5100057128,5162.5,PAM WELLBEING
TfGM,Transport,Capital Costs - Programme and Project Management Services,22/10/2013,5100057008,1021.05,PERTEMPS PROFESSIONAL STAFFING LTD
TfGM,Corporate Services,IS Software & Maintenance,22/10/2013,5100057135,5129.23,PINNACLE TECHNOLOGY GROUP PLC
TfGM,Transport,Smart Ticketing,22/10/2013,5100057055,2600,PRACTICUS LIMITED
TfGM,Transport,Smart Ticketing,22/10/2013,5100057058,1875,PRACTICUS LIMITED
TfGM,Transport,Driver Intervention Course Delivery Costs,22/10/2013,5100057308,1686,PROFESSIONAL DRIVER SERVICES LTD
TfGM,Transport,Driver Intervention Course Delivery Costs,22/10/2013,5100057309,800,PROFESSIONAL DRIVER SERVICES LTD
TfGM,Transport,Driver Intervention Course Delivery Costs,22/10/2013,5100057310,3608,PROFESSIONAL DRIVER SERVICES LTD
TfGM,Transport,Driver Intervention Course Delivery Costs,22/10/2013,5100057311,7524,PROFESSIONAL DRIVER SERVICES LTD
TfGM,Transport,Driver Intervention Course Delivery Costs,22/10/2013,5100057312,800,PROFESSIONAL DRIVER SERVICES LTD
TfGM,Transport,Driver Intervention Course Delivery Costs,22/10/2013,5100057313,5163,PROFESSIONAL DRIVER SERVICES LTD
TfGM,Transport,Driver Intervention Course Delivery Costs,22/10/2013,5100057515,-1856.4,PROFESSIONAL DRIVER SERVICES LTD
TfGM,Transport,Driver Intervention Course Delivery Costs,22/10/2013,5100057516,-1231.1,PROFESSIONAL DRIVER SERVICES LTD
TfGM,Transport,Capital Costs - Computer & Communications Equipment,22/10/2013,5100057417,8245,R & R ENGINEERING LIMITED
TfGM,Transport,CCTV Support Services,22/10/2013,5100056925,3570,ROSGAL LTD
TfGM,Transport,Traffic Signal Works,22/10/2013,5100056927,1650,ROSGAL LTD
TfGM,Transport,Concessionary Reimbursement,22/10/2013,1900030196,960,ROYAL EXPRESS PRIVATE HIRE LTD
TfGM,Transport,Equipment - Fixtures and Fittings,22/10/2013,5100056834,1080,SENATOR INTERNATIONAL LTD
TfGM,Transport,Property & Equipment Maintenance,22/10/2013,5100056899,4601.83,SERCO LTD
TfGM,Transport,Capital Costs - Print & Media,22/10/2013,5100057218,1912.91,SERVICEPOINT UK
TfGM,Transport,Capital Costs - Print & Media,22/10/2013,5100057220,700,SERVICEPOINT UK
TfGM,Transport,Capital Costs - Print & Media,22/10/2013,5100057221,1114.29,SERVICEPOINT UK
TfGM,Transport,Capital Costs - Print & Media,22/10/2013,5100057229,661.07,SERVICEPOINT UK
TfGM,Transport,Print & Media,22/10/2013,5100057293,3282.4,SERVICEPOINT UK
TfGM,Transport,Traffic Signal Works,22/10/2013,5100056943,11613.55,SIEMENS PLC
TfGM,Transport,Traffic Signal Works,22/10/2013,5100056944,7889.79,SIEMENS PLC
TfGM,Transport,Traffic Signal Works,22/10/2013,5100056945,28106.59,SIEMENS PLC
TfGM,Transport,Traffic Signal Works,22/10/2013,5100056946,15689.96,SIEMENS PLC
TfGM,Transport,Traffic Signal Works,22/10/2013,5100056947,10095.14,SIEMENS PLC
TfGM,Transport,Traffic Signal Works,22/10/2013,5100056948,27847.99,SIEMENS PLC
TfGM,Transport,Traffic Signal Works,22/10/2013,5100056949,7414.66,SIEMENS PLC
TfGM,Transport,Traffic Signal Works,22/10/2013,5100056950,94615.04,SIEMENS PLC
TfGM,Transport,Traffic Signal Works,22/10/2013,5100056951,31252,SIEMENS PLC
TfGM,Transport,Traffic Signal Works,22/10/2013,5100056953,4653.11,SIEMENS PLC
TfGM,Transport,Traffic Signal Works,22/10/2013,5100056964,8448.05,SIEMENS PLC
TfGM,Transport,Traffic Signal Works,22/10/2013,5100056992,18710.97,SIEMENS PLC
TfGM,Transport,Traffic Signal Works,22/10/2013,5100056993,13398.55,SIEMENS PLC
TfGM,Transport,Traffic Signal Works,22/10/2013,5100056994,7227.74,SIEMENS PLC
TfGM,Transport,Traffic Signal Works,22/10/2013,5100057137,23835.66,SIEMENS PLC
TfGM,Transport,Traffic Signal Works,22/10/2013,5100057327,5571.93,SIEMENS PLC
TfGM,Transport,Traffic Signal Works,22/10/2013,5100057329,237305.44,SIEMENS PLC
TfGM,Transport,Traffic Signal Works,22/10/2013,5100057407,5774.87,SIEMENS PLC
TfGM,Transport,Software Support Services,22/10/2013,5100057478,100000,SIEMENS PLC
TfGM,Transport,Traffic and Transportation Surveys,22/10/2013,5100056955,9895,SKY HIGH TECHNOLOGY LTD
TfGM,Transport,Traffic and Transportation Surveys,22/10/2013,5100056956,8490,SKY HIGH TECHNOLOGY LTD
TfGM,Transport,Exhibitions and Conferences,22/10/2013,5100056903,4246.5,SMG EUROPE HOLDINGS LTD
TfGM,Transport,Transport Planning & Monitoring Services,22/10/2013,5100057131,1000,SUSTRANS LTD
TfGM,Transport,Transport Planning & Monitoring Services,22/10/2013,5100057132,3412.19,SUSTRANS LTD
TfGM,Transport,Capital Costs - Capital Project Main Contract Works,22/10/2013,5100057692,128040,THALES TRANSPORT & SECURITY LTD
TfGM,Transport,Print & Media,22/10/2013,5100057045,5911,THE IMAGE GROUP
TfGM,Transport,Cleaning,22/10/2013,5100057176,622.44,TUDOR CONTRACT CLEANERS LTD
TfGM,Transport,Cleaning,22/10/2013,5100057178,829.92,TUDOR CONTRACT CLEANERS LTD
TfGM,Transport,Cleaning,22/10/2013,5100057185,587,TUDOR CONTRACT CLEANERS LTD
TfGM,Transport,Cleaning,22/10/2013,5100057187,532.48,TUDOR CONTRACT CLEANERS LTD
TfGM,Transport,Cleaning,22/10/2013,5100057190,531.96,TUDOR CONTRACT CLEANERS LTD
TfGM,Transport,Cleaning,22/10/2013,5100057195,8709.75,TUDOR CONTRACT CLEANERS LTD
TfGM,Transport,Cleaning,22/10/2013,5100057196,3090.06,TUDOR CONTRACT CLEANERS LTD
TfGM,Transport,Cleaning,22/10/2013,5100057197,13291.12,TUDOR CONTRACT CLEANERS LTD
TfGM,Transport,Cleaning,22/10/2013,5100057198,679.49,TUDOR CONTRACT CLEANERS LTD
TfGM,Transport,Cleaning,22/10/2013,5100057201,685.2,TUDOR CONTRACT CLEANERS LTD
TfGM,Transport,Cleaning,22/10/2013,5100057202,759.43,TUDOR CONTRACT CLEANERS LTD
TfGM,Transport,Cleaning,22/10/2013,5100057204,725.17,TUDOR CONTRACT CLEANERS LTD
TfGM,Transport,Cleaning,22/10/2013,5100057205,793.69,TUDOR CONTRACT CLEANERS LTD
TfGM,Transport,Cleaning,22/10/2013,5100057206,1022.09,TUDOR CONTRACT CLEANERS LTD
TfGM,Transport,Cleaning,22/10/2013,5100057467,17379.16,TUDOR CONTRACT CLEANERS LTD
TfGM,Transport,CCTV Support Services,22/10/2013,5100056888,7151,TYCO INTEGRATED SYSTEMS
TfGM,Transport,Capital Costs - Miscellaneous External costs,22/10/2013,5100056941,520,TYCO INTEGRATED SYSTEMS
TfGM,Transport,Print & Media,22/10/2013,5100057100,4000,WALKDEN WAREHOUSING LTD
TfGM,Transport,Print & Media,22/10/2013,5100057101,5400,WALKDEN WAREHOUSING LTD
TfGM,Transport,Vehicle Repairs & Maintenance,22/10/2013,5100056977,609.58,Walton Summit Truck Centre
TfGM,Transport,Vehicle Repairs & Maintenance,22/10/2013,5100056987,1994.06,Walton Summit Truck Centre
TfGM,Transport,Vehicle Repairs & Maintenance,22/10/2013,5100056997,1406.21,Walton Summit Truck Centre
TfGM,Transport,Vehicle Repairs & Maintenance,22/10/2013,5100057628,1216.96,Walton Summit Truck Centre
TfGM,Transport,Concessionary Reimbursement,22/10/2013,1900030192,923,WYTHENSHAWE PRIVATE HIRE
TfGM,Transport,Vehicle Costs,23/10/2013,1200026538,1071.92,ALLSTAR
TfGM,Transport,Capital Costs - Capital Project Main Contract Works,24/10/2013,5100057808,2219571,BOMBARDIER TRANSPORTATION UK LTD
TfGM,Transport,Capital Costs - Street Furniture Costs,25/10/2013,5100057838,1974,ACE FURNITURE
TfGM,Transport,Capital Costs -  Project Support Services,25/10/2013,5100057352,17798.4,AECOM LTD
TfGM,Transport,Capital Costs - Design Support Services,25/10/2013,5100057487,5770.1,AECOM LTD
TfGM,Transport,Traffic Management Services,25/10/2013,5100057536,6400,AECOM LTD
TfGM,Transport,Capital Costs - Project Management Services,25/10/2013,5100057383,2000,AJILON UK LIMITED T/A COMPUTER PEOP
TfGM,Transport,Capital Costs - Project Management Services,25/10/2013,5100057484,2000,AJILON UK LIMITED T/A COMPUTER PEOP
TfGM,Transport,Capital Costs - Project Management Services,25/10/2013,5100057699,2000,AJILON UK LIMITED T/A COMPUTER PEOP
TfGM,Transport,Capital Costs - Print & Media,25/10/2013,5100057169,2100,ANDY BURGESS
TfGM,Transport,Paper and Printing Consumables,25/10/2013,5100057550,723.35,ANTALIS LTD
TfGM,Transport,Paper and Printing Consumables,25/10/2013,5100057678,1446.7,ANTALIS LTD
TfGM,Corporate Services,IS Software & Maintenance,25/10/2013,5100057320,19408.48,APPLIED CARD TECHNOLOGIES
TfGM,Transport,Cycling Equipment,25/10/2013,5100057395,428.4,ARCO LTD
TfGM,Transport,Supported Bus Services,25/10/2013,5100057342,2442.12,ARRIVA MANCHESTER
TfGM,Transport,Print & Media,25/10/2013,5100057525,495,ASTRA SIGNS
TfGM,Transport,Capital Costs - Signage Costs,25/10/2013,5100057526,3230,ASTRA SIGNS
TfGM,Transport,Capital Costs - Signage Costs,25/10/2013,5100057787,985,ASTRA SIGNS
TfGM,Transport,Print & Media,25/10/2013,5100057843,485,ASTRA SIGNS
TfGM,Transport,Capital Costs - Health & Safety Support Services,25/10/2013,5100055802,1514.1,ATKINS LTD
TfGM,Transport,Capital Costs - Engineering Support Services,25/10/2013,5100056318,939,ATKINS LTD
TfGM,Transport,Capital Costs - Engineering Support Services,25/10/2013,5100056448,1196.63,ATKINS LTD
TfGM,Transport,Capital Costs - Programme and Project Management Services,25/10/2013,5100057078,7277,ATKINS LTD
TfGM,Transport,Capital Costs - Engineering Support Services,25/10/2013,5100057353,1672,ATKINS LTD
TfGM,Transport,Capital Costs - Engineering Support Services,25/10/2013,5100057354,1986.25,ATKINS LTD
TfGM,Transport,Capital Costs - Mechanical & Engineering Support Services,25/10/2013,5100057355,1176.75,ATKINS LTD
TfGM,Transport,Capital Costs - Engineering Support Services,25/10/2013,5100057366,2957,ATKINS LTD
TfGM,Transport,Capital Costs - Programme and Project Management Services,25/10/2013,5100057498,11576.25,ATKINS LTD
TfGM,Corporate Services,Procurement Services,25/10/2013,5100057788,8640,ATKINS LTD
TfGM,Transport,Capital Costs - Engineering Support Services,25/10/2013,5100057792,19950,ATKINS LTD
TfGM,Transport,Capital Costs - Print & Media,25/10/2013,5100057438,1029,BLUETREE DESIGN AND PRINT LTD
TfGM,Transport,Print & Media,25/10/2013,5100057735,872,BLUETREE DESIGN AND PRINT LTD
TfGM,Transport,Print & Media,25/10/2013,5100057737,1972,BLUETREE DESIGN AND PRINT LTD
TfGM,Transport,Capital Costs - Miscellaneous External costs,25/10/2013,5100057319,2500,BOLTON METROPOLITAN BOROUGH COUNCIL
TfGM,Transport,Capital Costs - Architectural Services,25/10/2013,5100057530,2140,BOWKER SADLER PARTNERSHIP LIMITED
TfGM,Transport,Utilities & Energy,25/10/2013,1900030211,951.09,BRITISH GAS BUSINESS
TfGM,Transport,Capital Costs - IS Software & Maintenance,25/10/2013,5100057434,900,BT ENGAGE IT
TfGM,Corporate Services,IS Support & Maintenance,25/10/2013,5100057531,1170.75,BT ENGAGE IT
TfGM,Corporate Services,IS Support & Maintenance,25/10/2013,5100057533,10988.25,BT ENGAGE IT
TfGM,Corporate Services,IS Support & Maintenance,25/10/2013,5100057534,2815.75,BT ENGAGE IT
TfGM,Transport,Print & Media,25/10/2013,5100057805,4202.82,CARAT MEDIA UK LIMITED
TfGM,Transport,Capital Costs - Project Support Services,25/10/2013,5100057164,2027.6,CDI ANDERSELITE LTD
TfGM,Transport,Capital Costs - Project Support Services,25/10/2013,5100057357,1370,CDI ANDERSELITE LTD
TfGM,Transport,Capital Costs - Project Support Services,25/10/2013,5100057646,2027.6,CDI ANDERSELITE LTD
TfGM,Transport,Capital Costs - Archaeological Services,25/10/2013,5100057474,3331.5,CFA ARCHAELOGY LTD
TfGM,Transport,Print & Media,25/10/2013,5100057617,634,CHAPEL PRESS LTD
TfGM,Transport,Print & Media,25/10/2013,5100057618,724,CHAPEL PRESS LTD
TfGM,Transport,Capital Costs - Environmental Feasibility Support,25/10/2013,5100057802,4057.35,CONTRACT ECOLOGY LTD
TfGM,Transport,Capital Costs - Print & Media,25/10/2013,5100057588,699.6,CREATIVE CONCERN
TfGM,Transport,Print & Media,25/10/2013,5100057701,4975,CREATIVE CONCERN
TfGM,Transport,Print & Media,25/10/2013,5100057524,1580,CREATIVE LYNX LTD
TfGM,Transport,Capital Costs - Capital Project Main Contract Works,25/10/2013,5100057705,2053.24,EC HARRIS LLP
TfGM,Transport,Capital Costs - Capital Project Main Contract Works,25/10/2013,5100057706,1283.28,EC HARRIS LLP
TfGM,Transport,Capital Costs - Programme and Project Management Services,25/10/2013,5100057707,9000.45,EC HARRIS LLP
TfGM,Transport,Capital Costs - Capital Project Main Contract Works,25/10/2013,5100057736,4766.45,EC HARRIS LLP
TfGM,Transport,Vehicle Repairs & Maintenance,25/10/2013,5100057499,518.12,ENZA MOTORS
TfGM,Transport,Vehicle Repairs & Maintenance,25/10/2013,5100057629,559.1,ENZA MOTORS
TfGM,Transport,Vehicle Repairs & Maintenance,25/10/2013,5100057630,531.3,ENZA MOTORS
TfGM,Transport,Vehicle Repairs & Maintenance,25/10/2013,5100057631,502.49,ENZA MOTORS
TfGM,Transport,Vehicle Repairs & Maintenance,25/10/2013,5100057637,581.93,ENZA MOTORS
TfGM,Transport,Vehicle Repairs & Maintenance,25/10/2013,5100057789,554.87,ENZA MOTORS
TfGM,Transport,Vehicle Repairs & Maintenance,25/10/2013,5100057813,458.12,ENZA MOTORS
TfGM,Transport,Vehicle Repairs & Maintenance,25/10/2013,5100057815,561.12,ENZA MOTORS
TfGM,Transport,Vehicle Repairs & Maintenance,25/10/2013,5100057823,688.83,ENZA MOTORS
TfGM,Corporate Services,Taxation Services,25/10/2013,5100057849,2800,ERNST & YOUNG
TfGM,Transport,Paper and Printing Consumables,25/10/2013,5100057780,12752.35,ESP SYSTEX LTD
TfGM,Transport,Capital Costs - Programme and Project Management Services,25/10/2013,5100057328,3915,FIRCROFT ENGINEERING SERVICES LTD
TfGM,Transport,Capital Costs - Engineering Support Services,25/10/2013,5100057603,1400,FREMONT LTD
TfGM,Corporate Services,Computer Support and Licences,25/10/2013,5100057249,607,GBM DIGITAL TECHNOLOGIES LTD
TfGM,Transport,Exhibitions and Conferences,25/10/2013,5100057233,1341,GRAPHIC AD
TfGM,Transport,Capital Costs - Traffic Signal Works,25/10/2013,5100057820,12619.44,GREATER MANCHESTER COMBINED AUTHORI
TfGM,Transport,Capital Costs - Traffic Signal Works,25/10/2013,5100057827,18224.93,GREATER MANCHESTER COMBINED AUTHORI
TfGM,Transport,Capital Costs - Traffic Signal Works,25/10/2013,5100057828,8700.47,GREATER MANCHESTER COMBINED AUTHORI
TfGM,Transport,Capital Costs - Traffic Signal Works,25/10/2013,5100057829,10073.43,GREATER MANCHESTER COMBINED AUTHORI
TfGM,Transport,Capital Costs - Traffic Signal Works,25/10/2013,5100057830,1186,GREATER MANCHESTER COMBINED AUTHORI
TfGM,Transport,Capital Costs - Traffic Signal Works,25/10/2013,5100057831,27816.5,GREATER MANCHESTER COMBINED AUTHORI
TfGM,Transport,Capital Costs - Traffic Signal Works,25/10/2013,5100057832,22768.32,GREATER MANCHESTER COMBINED AUTHORI
TfGM,Transport,Capital Costs - Traffic Signal Works,25/10/2013,5100057834,6674.41,GREATER MANCHESTER COMBINED AUTHORI
TfGM,Transport,Capital Costs - Traffic Signal Works,25/10/2013,5100057836,8230.31,GREATER MANCHESTER COMBINED AUTHORI
TfGM,Transport,Capital Costs - Engineering Support Services,25/10/2013,5100057356,5760,HALCROW GROUP LTD
TfGM,Transport,Heavy Rail Support Services,25/10/2013,5100057482,11591,HALCROW GROUP LTD
TfGM,Transport,Temporary Vacancy Cover,25/10/2013,1900030228,6449.07,HAYS SPECIALIST RECRUITMENT LTD
TfGM,Transport,Capital Costs - Programme and Project Management Services,25/10/2013,5100057579,2117.64,HAYS SPECIALIST RECRUITMENT LTD
TfGM,Transport,Capital Costs - Programme and Project Management Services,25/10/2013,5100057852,2647.05,HAYS SPECIALIST RECRUITMENT LTD
TfGM,Transport,Print & Media,25/10/2013,1900030249,0,HEMISPHERE DESIGN & MRKTNG
TfGM,Corporate Services,Legal Services,25/10/2013,5100057326,6344,IAN ALLAN ASSOCIATES (UK) LTD
TfGM,Corporate Services,IS Software & Maintenance,25/10/2013,5100057758,534.74,INS SUDLOWS LTD
TfGM,Transport,Capital Costs - Smart Ticketing,25/10/2013,5100057702,10710,INTELLIGENT SOLUTIONS IN TRANSPORT
TfGM,Transport,Capital Costs - Computer Support and Licences,25/10/2013,5100057585,663,ITSO LTD
TfGM,Transport,Capital Costs - Programme and Project Management Services,25/10/2013,5100057392,9690,JACOBS UK LTD
TfGM,Transport,Capital Costs - Capital Project Main Contract Works,25/10/2013,5100057738,24442,JAMIESON CONTRACTING (MCR) LTD
TfGM,Transport,Traffic Signal Works,25/10/2013,5100057601,463.98,JONES LIGHTING
TfGM,Transport,Capital Costs - Land Acquisition and Related Costs,25/10/2013,5100057404,1200,LAMBERT SMITH HAMPTON
TfGM,Transport,Capital Costs - Land Acquisition and Related Costs,25/10/2013,5100057408,3000,LAMBERT SMITH HAMPTON
TfGM,Corporate Services,IS Support Services,25/10/2013,5100057604,3000,LEARNING POOL LTD
TfGM,Transport,Capital Costs - Property Support Services,25/10/2013,5100057111,8479.81,LESLIE ROBERTS AND CO LTD
TfGM,Transport,Capital Costs - Property Support Services,25/10/2013,5100057266,7219.37,LESLIE ROBERTS AND CO LTD
TfGM,Transport,Capital Costs - Land Acquisition and Related Costs,25/10/2013,5100057586,2304,LESLIE ROBERTS AND CO LTD
TfGM,Transport,Property Support Services,25/10/2013,5100057803,3866.99,LESLIE ROBERTS AND CO LTD
TfGM,Transport,Bus Support Services,25/10/2013,5100056910,8120,Lloyd Morgan Group
TfGM,Transport,Capital Costs - Programme and Project Management Services,25/10/2013,5100056954,7830,MACE LTD
TfGM,Transport,Capital Costs -  Project Support Services,25/10/2013,5100057318,8264,MANCHESTER CITY COUNCIL
TfGM,Transport,Capital Costs - Vehicle Costs,25/10/2013,5100057723,729.96,MANCHESTER CITY COUNCIL
TfGM,Transport,Capital Costs - Computer & Communications Equipment,25/10/2013,5100057580,567.1,MAYFLEX UK LTD T/A CABLES AND STUFF
TfGM,Transport,Print & Media,25/10/2013,5100057704,4950,MERE PR
TfGM,Transport,Print & Media,25/10/2013,5100057778,4950,MERE PR
TfGM,Transport,Security Services,25/10/2013,5100056670,6691.96,METROLINK RATP DEV LTD
TfGM,Transport,Security Services,25/10/2013,5100056671,7138.09,METROLINK RATP DEV LTD
TfGM,Transport,Capital Costs - Project Support Services,25/10/2013,5100057243,26010,METROLINK RATP DEV LTD
TfGM,Transport,Replacement Bus Services,25/10/2013,5100057244,14069,METROLINK RATP DEV LTD
TfGM,Transport,Replacement Bus Services,25/10/2013,5100057246,1350,METROLINK RATP DEV LTD
TfGM,Transport,Replacement Bus Services,25/10/2013,5100057250,673,METROLINK RATP DEV LTD
TfGM,Transport,Replacement Bus Services,25/10/2013,5100057251,675,METROLINK RATP DEV LTD
TfGM,Transport,Capital Costs - Project Support Services,25/10/2013,5100057472,34774.04,METROLINK RATP DEV LTD
TfGM,Transport,Replacement Bus Services,25/10/2013,5100057689,675,METROLINK RATP DEV LTD
TfGM,Transport,Capital Costs - Project Management Services,25/10/2013,5100057116,4300,MORSON INTERNATIONAL
TfGM,Transport,Capital Costs - Project Management Services,25/10/2013,5100057119,1881.25,MORSON INTERNATIONAL
TfGM,Transport,Capital Costs - Programme and Project Management Services,25/10/2013,5100057120,2150,MORSON INTERNATIONAL
TfGM,Transport,Capital Costs - Programme and Project Management Services,25/10/2013,5100057121,1950,MORSON INTERNATIONAL
TfGM,Transport,Capital Costs - Programme and Project Management Services,25/10/2013,5100057122,1950,MORSON INTERNATIONAL
TfGM,Transport,Capital Costs - Programme and Project Management Services,25/10/2013,5100057159,1690,MORSON INTERNATIONAL
TfGM,Transport,Capital Costs - Programme and Project Management Services,25/10/2013,5100057160,1664,MORSON INTERNATIONAL
TfGM,Transport,Capital Costs - Programme and Project Management Services,25/10/2013,5100057360,1170,MORSON INTERNATIONAL
TfGM,Transport,Capital Costs - Programme and Project Management Services,25/10/2013,5100057391,1690,MORSON INTERNATIONAL
TfGM,Transport,Capital Costs - Programme and Project Management Services,25/10/2013,5100057396,1664,MORSON INTERNATIONAL
TfGM,Transport,Capital Costs - Project Management Services,25/10/2013,5100057397,1881.25,MORSON INTERNATIONAL
TfGM,Transport,Capital Costs - Programme and Project Management Services,25/10/2013,5100057398,1950,MORSON INTERNATIONAL
TfGM,Transport,Capital Costs - Project Management Services,25/10/2013,5100057399,2150,MORSON INTERNATIONAL
TfGM,Transport,Capital Costs - Programme and Project Management Services,25/10/2013,5100057400,1773.75,MORSON INTERNATIONAL
TfGM,Transport,Capital Costs - Programme and Project Management Services,25/10/2013,5100057633,1950,MORSON INTERNATIONAL
TfGM,Transport,Capital Costs - Programme and Project Management Services,25/10/2013,5100057634,1950,MORSON INTERNATIONAL
TfGM,Transport,Capital Costs - Programme and Project Management Services,25/10/2013,5100057635,1664,MORSON INTERNATIONAL
TfGM,Transport,Capital Costs - Programme and Project Management Services,25/10/2013,5100057636,1690,MORSON INTERNATIONAL
TfGM,Transport,Capital Costs - Project Management Services,25/10/2013,5100057638,2150,MORSON INTERNATIONAL
TfGM,Transport,Capital Costs - Project Management Services,25/10/2013,5100057639,1505,MORSON INTERNATIONAL
TfGM,Transport,Capital Costs - Mechanical & Engineering Support Services,25/10/2013,5100057241,9334.51,MOTT MACDONALD LTD
TfGM,Transport,Capital Costs - Planning Support Services,25/10/2013,5100057619,10330,MVA LTD
TfGM,Transport,Capital Costs -  Software Support Services,25/10/2013,5100057615,2900,MXDATA LTD
TfGM,Transport,Software Support Services,25/10/2013,5100057616,2200,MXDATA LTD
TfGM,Transport,Capital Costs - Utility & Service Diversion Costs,25/10/2013,1900030231,551,NATIONAL GRID PLC
TfGM,Transport,Traffic and Transportation Surveys,25/10/2013,5100057385,22700,NATIONWIDE DATA COLLECTION LTD
TfGM,Transport,Driver Intervention Course Delivery Costs,25/10/2013,5100057371,293920,NDORS LTD
TfGM,Transport,Staff Rail Passes,25/10/2013,5100057052,1629.25,NORTHERN RAIL LIMITED
TfGM,Transport,Vehicle Repairs & Maintenance,25/10/2013,5100057092,4785,OPTARE LTD
TfGM,Transport,Vehicle Repairs & Maintenance,25/10/2013,5100057093,6435,OPTARE LTD
TfGM,Transport,Vehicle Repairs & Maintenance,25/10/2013,5100057094,1749.99,OPTARE LTD
TfGM,Transport,Vehicle Repairs & Maintenance,25/10/2013,5100057095,18666.58,OPTARE LTD
TfGM,Transport,Capital Costs - Light Rail Support Services,25/10/2013,5100057693,4251.15,OVE ARUP & PARTNERS INTERNATIONAL L
TfGM,Transport,Capital Costs - Computer and Printing Hardware,25/10/2013,5100057755,1354.49,PARTEX MARKING SYSTEMS
TfGM,Transport,Capital Costs - Programme and Project Management Services,25/10/2013,5100057349,1701.75,PERTEMPS PROFESSIONAL STAFFING LTD
TfGM,Transport,Capital Costs - Programme and Project Management Services,25/10/2013,5100057584,1701.75,PERTEMPS PROFESSIONAL STAFFING LTD
TfGM,Transport,Capital Costs - Programme and Project Management Services,25/10/2013,5100057747,1701.75,PERTEMPS PROFESSIONAL STAFFING LTD
TfGM,Transport,Temporary Vacancy Cover,25/10/2013,5100057048,620.28,PLUSWORK LTD
TfGM,Transport,Temporary Vacancy Cover,25/10/2013,5100057237,566.4,PLUSWORK LTD
TfGM,Transport,Traffic and Transportation Surveys,25/10/2013,5100057296,589,PLUSWORK LTD
TfGM,Transport,Traffic and Transportation Surveys,25/10/2013,5100057304,5240.04,PLUSWORK LTD
TfGM,Transport,Traffic and Transportation Surveys,25/10/2013,5100057314,2659.21,PLUSWORK LTD
TfGM,Transport,Temporary Vacancy Cover,25/10/2013,5100057542,620.28,PLUSWORK LTD
TfGM,Transport,Temporary Vacancy Cover,25/10/2013,5100057547,620.28,PLUSWORK LTD
TfGM,Transport,Temporary Vacancy Cover,25/10/2013,5100057606,566.4,PLUSWORK LTD
TfGM,Transport,Traffic and Transportation Surveys,25/10/2013,5100057658,4532.84,PLUSWORK LTD
TfGM,Transport,Traffic and Transportation Surveys,25/10/2013,5100057659,9113.34,PLUSWORK LTD
TfGM,Transport,Traffic and Transportation Surveys,25/10/2013,5100057683,532,PLUSWORK LTD
TfGM,Transport,Temporary Vacancy Cover,25/10/2013,5100057709,566.4,PLUSWORK LTD
TfGM,Transport,Traffic and Transportation Surveys,25/10/2013,5100057711,532,PLUSWORK LTD
TfGM,Transport,Traffic and Transportation Surveys,25/10/2013,5100057714,5446.54,PLUSWORK LTD
TfGM,Transport,Temporary Vacancy Cover,25/10/2013,5100057725,4678.54,PLUSWORK LTD
TfGM,Transport,Temporary Vacancy Cover,25/10/2013,5100057726,4314.83,PLUSWORK LTD
TfGM,Transport,Temporary Vacancy Cover,25/10/2013,5100057732,620.28,PLUSWORK LTD
TfGM,Transport,Temporary Vacancy Cover,25/10/2013,5100057806,4646.68,PLUSWORK LTD
TfGM,Transport,Traffic and Transportation Surveys,25/10/2013,5100057816,5289.88,PLUSWORK LTD
TfGM,Transport,Capital Costs - Computer & Communications Equipment,25/10/2013,5100057483,842.75,RITTAL LIMITED
TfGM,Transport,Smart Ticketing,25/10/2013,5100057440,2400.1,Robert Walters Plc
TfGM,Transport,Smart Ticketing,25/10/2013,5100057441,2950,Robert Walters Plc
TfGM,Transport,Smart Ticketing,25/10/2013,5100057442,3200,Robert Walters Plc
TfGM,Transport,Capital Costs - Programme and Project Management Services,25/10/2013,5100057443,1692.9,Robert Walters Plc
TfGM,Transport,Smart Ticketing,25/10/2013,5100057565,2950,Robert Walters Plc
TfGM,Transport,Smart Ticketing,25/10/2013,5100057567,2400.1,Robert Walters Plc
TfGM,Transport,Smart Ticketing,25/10/2013,5100057569,2000,Robert Walters Plc
TfGM,Transport,Smart Ticketing,25/10/2013,5100057571,2000,Robert Walters Plc
TfGM,Transport,Smart Ticketing,25/10/2013,5100057572,4000,Robert Walters Plc
TfGM,Transport,Training,25/10/2013,5100057485,5750,ROCHDALE COMMUNITY TRANSPORT
TfGM,Transport,Capital Costs - Transport Planning & Monitoring Services,25/10/2013,5100057519,802,ROCHDALE MBC
TfGM,Transport,Training,25/10/2013,5100057435,990,SALFORD GIS LTD
TfGM,Corporate Services,IS Software & Maintenance,25/10/2013,5100057740,2904,SATISNET LIMITED
TfGM,Transport,Property & Equipment Maintenance,25/10/2013,5100057695,4601.83,SERCO LTD
TfGM,Transport,Traffic Signal Works,25/10/2013,5100057721,170009.08,SIEMENS PLC
TfGM,Transport,Traffic and Transportation Surveys,25/10/2013,5100057379,5292,SKY HIGH TECHNOLOGY LTD
TfGM,Transport,Traffic and Transportation Surveys,25/10/2013,5100057380,3491,SKY HIGH TECHNOLOGY LTD
TfGM,Transport,Traffic and Transportation Surveys,25/10/2013,5100057581,5145,SKY HIGH TECHNOLOGY LTD
TfGM,Transport,Traffic and Transportation Surveys,25/10/2013,5100057582,4903,SKY HIGH TECHNOLOGY LTD
TfGM,Transport,Traffic and Transportation Surveys,25/10/2013,5100057583,1690,SKY HIGH TECHNOLOGY LTD
TfGM,Transport,Traffic and Transportation Surveys,25/10/2013,5100057718,5386,SKY HIGH TECHNOLOGY LTD
TfGM,Transport,Capital Costs -  Project Support Services,25/10/2013,5100057593,3483.31,SOIL ENGINEERING GEOSERVICES LIMITE
TfGM,Transport,Capital Costs - Planning Support Services,25/10/2013,5100057430,12450,STEER DAVIES GLEEVE LTD
TfGM,Transport,Capital Costs - Planning Support Services,25/10/2013,5100057432,4800,STEER DAVIES GLEEVE LTD
TfGM,Transport,Print & Media,25/10/2013,5100057287,1780,THE HAMILTON PROJECT
TfGM,Corporate Services,IS Software & Maintenance,25/10/2013,5100057469,581.25,THE PHONE CO OP LTD
TfGM,Corporate Services,IS Consumables,25/10/2013,5100057047,740,TOTAL COMPUTERS LTD
TfGM,Corporate Services,IS Consumables,25/10/2013,5100057286,7596.9,TOTAL COMPUTERS LTD
TfGM,Corporate Services,IS Consumables,25/10/2013,5100057419,959,TOTAL COMPUTERS LTD
TfGM,Corporate Services,Printer Consumables,25/10/2013,5100057420,2010.4,TOTAL COMPUTERS LTD
TfGM,Corporate Services,IS Consumables,25/10/2013,5100057455,642,TOTAL COMPUTERS LTD
TfGM,Corporate Services,IS Consumables,25/10/2013,5100057539,3842,TOTAL COMPUTERS LTD
TfGM,Corporate Services,Printer Consumables,25/10/2013,5100057599,1672,TOTAL COMPUTERS LTD
TfGM,Corporate Services,IS Consumables,25/10/2013,5100057697,11396,TOTAL COMPUTERS LTD
TfGM,Corporate Services,IS Consumables,25/10/2013,5100057794,2395.75,TOTAL COMPUTERS LTD
TfGM,Corporate Services,Printer Consumables,25/10/2013,5100057851,499.9,TOTAL COMPUTERS LTD
TfGM,Corporate Services,Computer Equipment Maintenance,25/10/2013,5100057172,1346.4,TOUCHSTAR TECHNOLOGIES LTD
TfGM,Transport,Cleaning,25/10/2013,5100057465,2300,TUDOR CONTRACT CLEANERS LTD
TfGM,Transport,CCTV Support Services,25/10/2013,5100057431,6039.25,TYCO INTEGRATED SYSTEMS
TfGM,Transport,Audit and Financial Services,25/10/2013,5100057374,1750,UHY HACKER YOUNG LLP
TfGM,Transport,Utilities & Energy,25/10/2013,1900030218,3289.38,UNITED UTILITIES WATER PLC
TfGM,Transport,Capital Costs - Project Management Services,25/10/2013,5100057424,1813.33,URBAN VISION PARTNERSHIP LTD
TfGM,Transport,Telecommunications,25/10/2013,5100057724,2050.96,VODAFONE CONNECT LTD
TfGM,Transport,Supported Bus Services,25/10/2013,5100057362,5437,WEST YORKSHIRE PTE
TfGM,Transport,Supported Bus Services,25/10/2013,5100057365,5262,WEST YORKSHIRE PTE
TfGM,Transport,Training,25/10/2013,5100057691,2976,WIGAN COMMUNITY TRANSPORT
TfGM,Transport,Bus Support Services,25/10/2013,5100057305,9750,YOURBUS LTD
TfGM,Transport,Vehicle Costs,30/10/2013,1200026610,1437.35,ALLSTAR
TfGM,Transport,Postage Costs,31/10/2013,1200026610,3500,FP TELESET
TfGM,Transport,Concessionary Reimbursement,05/11/2013,1900030294,505,1919 TAXIS
TfGM,Transport,Capital Costs - Programme and Project Management Services,05/11/2013,5100058209,927,ACUITY PROGRAMME MANAGEMENT LTD
TfGM,Transport,Capital Costs -  Light Rail Support Services,05/11/2013,5100057868,10800,AD2 LTD
TfGM,Transport,Capital Costs - Architectural Services,05/11/2013,5100055795,6613.33,AEDAS ARCHITECTS LTD
TfGM,Transport,Capital Costs - Architectural Services,05/11/2013,5100055796,8555.66,AEDAS ARCHITECTS LTD
TfGM,Transport,IS Support Services,05/11/2013,5100058167,4125,AMAZE COMMUNICATION SERVICES LTD
TfGM,Transport,Capital Costs - Equipment Installation,05/11/2013,5100058053,589.06,APOLLO ENERGY LTD
TfGM,Transport,Concessionary Reimbursement,05/11/2013,1900030361,523,ARSHAD HAFEEZ T/A NO 1 CAB CO.
TfGM,Transport,Health & Safety Support Services,05/11/2013,5100055883,600,ATKINS LTD
TfGM,Transport,Financial and Contract Management Services,05/11/2013,5100058123,10212.5,AUTUS LTD
TfGM,Transport,Training,05/11/2013,5100058017,2265,BOLTON COMMUNITY TRANSPORT
TfGM,Transport,Capital Costs - Land Acquisition and Related Costs,05/11/2013,1900030365,705950,BOLTON METROPOLITAN BOROUGH COUNCIL
TfGM,Transport,Capital Costs - LRT Vehicles,05/11/2013,5100057315,318648.99,BOMBARDIER TRANSPORTATION UK LTD
TfGM,Transport,Driver Intervention Course Delivery Costs,05/11/2013,5100057475,6600,BURY MBC
TfGM,Transport,Capital Costs - Project Support Services,05/11/2013,5100057163,1350,CDI ANDERSELITE LTD
TfGM,Transport,Capital Costs - Project Support Services,05/11/2013,5100057359,1350,CDI ANDERSELITE LTD
TfGM,Transport,Capital Costs - Legal Services,05/11/2013,5100057865,750,DLA PIPER UK LLP
TfGM,Corporate Services,IS Software & Maintenance,05/11/2013,5100057540,5375,DOTTED EYES LTD
TfGM,Transport,Programme Management,05/11/2013,5100057869,4800,EDGERTON MANAGEMENT SERVICES LTD
TfGM,Transport,Programme Management,05/11/2013,5100057870,4800,EDGERTON MANAGEMENT SERVICES LTD
TfGM,Transport,Capital Costs - Project Support Services,05/11/2013,5100057019,2637.5,EKOSGEN
TfGM,Transport,Capital Costs - Utility & Service Diversion Costs,05/11/2013,5100057934,240235.73,ELECTRICITY NORTH WEST EHV
TfGM,Transport,Capital Costs - Utility & Service Diversion Costs,05/11/2013,5100057979,628.78,ELECTRICITY NORTH WEST EHV
TfGM,Transport,Driver Intervention Course Delivery Costs,05/11/2013,5100058137,2450,ENTERPRISE SOLUTIONS (NW) LTD
TfGM,Transport,Security Services,05/11/2013,5100057529,1653.58,G4S CASH SERVICES UK LTD
TfGM,Transport,Temporary Vacancy Cover,05/11/2013,1900030340,9752.09,HAYS SPECIALIST RECRUITMENT LTD
TfGM,Transport,Engineering Support Services,05/11/2013,5100058194,19789,IAN ROWE ASSOCIATES LTD
TfGM,Transport,Training,05/11/2013,5100058195,9636,IAN ROWE ASSOCIATES LTD
TfGM,Transport,Concessionary Reimbursement,05/11/2013,1900030303,991,JR'S PRIVATE HIRE
TfGM,Transport,Driver Intervention Course Delivery Costs,05/11/2013,5100057997,1040,K EKERT
TfGM,Transport,Concessionary Reimbursement,05/11/2013,1900030354,2038,MAGNUM WHITELINE PRIVATE HIRE
TfGM,Transport,Training,05/11/2013,5100058128,1610,MANCHESTER COLLEGE
TfGM,Transport,Print & Media,05/11/2013,5100058164,6000,MANCHESTER PRIDE EVENTS LTD
TfGM,Transport,Print & Media,05/11/2013,5100058142,4500,MANDY MARTINEZ
TfGM,Transport,Capital Costs - Engineering Support Services,05/11/2013,5100055716,14668.75,MARSTON & GRUNDY LLP
TfGM,Transport,Print & Media,05/11/2013,5100057886,4950,MERE PR
TfGM,Transport,Print & Media,05/11/2013,5100057888,770,MERE PR
TfGM,Transport,Concessionary Reimbursement,05/11/2013,1900030300,1715,METRO CARS BOLTON
TfGM,Transport,Concessionary Reimbursement,05/11/2013,1900030293,1527,METRO TAXIS LTD
TfGM,Transport,Capital Costs - Mechanical & Engineering Support Services,05/11/2013,5100056690,6103,MOTT MACDONALD LTD
TfGM,Transport,Metrolink Operating Costs,05/11/2013,5100057899,15478.74,MPACT THALES
TfGM,Transport,Metrolink Operating Costs,05/11/2013,5100057900,6283.88,MPACT THALES
TfGM,Transport,Metrolink Operating Costs,05/11/2013,5100057901,76507.54,MPACT THALES
TfGM,Transport,Metrolink Operating Costs,05/11/2013,5100057902,5542.52,MPACT THALES
TfGM,Transport,Metrolink Operating Costs,05/11/2013,5100057903,23322.71,MPACT THALES
TfGM,Transport,Metrolink Operating Costs,05/11/2013,5100057933,82344.26,MPACT THALES
TfGM,Transport,Metrolink Operating Costs,05/11/2013,5100057935,240218.08,MPACT THALES
TfGM,Transport,Metrolink Operating Costs,05/11/2013,5100057942,3172.18,MPACT THALES
TfGM,Transport,Metrolink Operating Costs,05/11/2013,5100057945,629.25,MPACT THALES
TfGM,Transport,Metrolink Operating Costs,05/11/2013,5100057946,286854.82,MPACT THALES
TfGM,Transport,Metrolink Operating Costs,05/11/2013,5100057949,66837.68,MPACT THALES
TfGM,Transport,Metrolink Operating Costs,05/11/2013,5100057951,18560.88,MPACT THALES
TfGM,Transport,Capital Costs - Utility & Service Diversion Costs,05/11/2013,5100058039,4956.27,NATIONAL GRID PLC
TfGM,Transport,Capital Costs - Utility & Service Diversion Costs,05/11/2013,5100058040,31173.86,NATIONAL GRID PLC
TfGM,Transport,Capital Costs - Utility & Service Diversion Costs,05/11/2013,5100058041,115127.96,NATIONAL GRID PLC
TfGM,Transport,Capital Costs - Utility & Service Diversion Costs,05/11/2013,5100058043,7956.07,NATIONAL GRID PLC
TfGM,Transport,Capital Costs - Utility & Service Diversion Costs,05/11/2013,5100058044,2391.15,NATIONAL GRID PLC
TfGM,Transport,Capital Costs - Utility & Service Diversion Costs,05/11/2013,5100058045,22667.86,NATIONAL GRID PLC
TfGM,Transport,Capital Costs - Utility & Service Diversion Costs,05/11/2013,5100058048,7538.72,NATIONAL GRID PLC
TfGM,Transport,Capital Costs - Utility & Service Diversion Costs,05/11/2013,5100058049,-17236.94,NATIONAL GRID PLC
TfGM,Transport,Capital Costs - Project Support Services,05/11/2013,5100058163,2625,NEIL CLARKE LTD
TfGM,Corporate Services,IS Support Services,05/11/2013,5100057577,11200,PMA RECRUITMENT LTD
TfGM,Transport,Driver Intervention Course Delivery Costs,05/11/2013,5100058141,1094,R MOTT
TfGM,Transport,Concessionary Reimbursement,05/11/2013,1900030351,1400,RADIO CABS T/A ECO TRAVEL
TfGM,Transport,Capital Costs - Print & Media,05/11/2013,5100057950,490,RCD
TfGM,Transport,Travel and Accommodation,05/11/2013,1900030333,832.55,Redacted
TfGM,Transport,Print & Media,05/11/2013,5100057876,1371.38,RICOH UK LTD
TfGM,Transport,Supported Bus Services,05/11/2013,1900030276,0,ROCHDALE COMMUNITY TRANSPORT
TfGM,Transport,Print & Media,05/11/2013,5100058011,3120,ROUNDTHORN PROPERTIES LTD
TfGM,Transport,Traffic Signal Works,05/11/2013,5100058054,6400,SIEMENS PLC
TfGM,Transport,Capital Costs - Planning Support Services,05/11/2013,5100056586,1370,STEER DAVIES GLEEVE LTD
TfGM,Transport,Planning Support Services,05/11/2013,5100058138,11559.02,STEER DAVIES GLEEVE LTD
TfGM,Transport,Capital Costs - Engineering Support Services,05/11/2013,5100058067,1125,STEPHEN J FIRTH
TfGM,Transport,Capital Costs - Computer & Communications Equipment,05/11/2013,5100057862,3547.75,TOTAL COMPUTERS LTD
TfGM,Transport,Training,05/11/2013,5100056505,1017.85,TRIBAL EDUCATION LTD
TfGM,Transport,Capital Costs -  Cycle Infrastructure,05/11/2013,1900030342,500,UPFRONT FINANCIAL SERVICES
TfGM,Transport,Capital Costs - Environmental Feasibility Support,05/11/2013,5100057708,9688.27,URS INFRASTRUCTURE & ENVIRONMENT UK
TfGM,Transport,Capital Costs - Environmental Feasibility Support,05/11/2013,5100057708,9688.27,URS INFRASTRUCTURE & ENVIRONMENT UK
TfGM,Transport,Capital Costs - Environmental Feasibility Support,05/11/2013,5100057719,-1555.84,URS INFRASTRUCTURE & ENVIRONMENT UK
TfGM,Transport,Capital Costs - Environmental Feasibility Support,05/11/2013,5100057719,-1555.84,URS INFRASTRUCTURE & ENVIRONMENT UK
TfGM,Transport,CCTV Support Services,05/11/2013,5100057810,7200,URS INFRASTRUCTURE & ENVIRONMENT UK
TfGM,Transport,CCTV Support Services,05/11/2013,5100057810,7200,URS INFRASTRUCTURE & ENVIRONMENT UK
TfGM,Transport,CCTV Support Services,05/11/2013,5100058015,1615.75,URS INFRASTRUCTURE & ENVIRONMENT UK
TfGM,Transport,CCTV Support Services,05/11/2013,5100058015,1615.75,URS INFRASTRUCTURE & ENVIRONMENT UK
TfGM,Transport,Capital Costs - Engineering Support Services,05/11/2013,5100056430,10000,WATERMAN CIVILS LTD
TfGM,Transport,Concessionary Reimbursement,05/11/2013,1900030302,576,ZEB CARS (2011) LTD
TfGM,Transport,Vehicle Costs,06/11/2013,1200026887,924.21,ALLSTAR
TfGM,Transport,Metrolink Operating Costs,06/11/2013,5100057873,544.38,METROLINK RATP DEV LTD
TfGM,Transport,Metrolink Operating Costs,06/11/2013,5100057960,283948,METROLINK RATP DEV LTD
TfGM,Transport,Metrolink Operating Costs,06/11/2013,5100057961,3048.52,METROLINK RATP DEV LTD
TfGM,Transport,Metrolink Operating Costs,06/11/2013,5100057963,6098.24,METROLINK RATP DEV LTD
TfGM,Transport,Metrolink Operating Costs,06/11/2013,5100057965,82299.43,METROLINK RATP DEV LTD
TfGM,Transport,Metrolink Operating Costs,06/11/2013,5100057966,3019.58,METROLINK RATP DEV LTD
TfGM,Transport,Metrolink Operating Costs,06/11/2013,5100057967,16909.67,METROLINK RATP DEV LTD
TfGM,Transport,Metrolink Operating Costs,06/11/2013,5100058009,440032,METROLINK RATP DEV LTD
TfGM,Transport,Metrolink Operating Costs,06/11/2013,5100058014,1221783,METROLINK RATP DEV LTD
TfGM,Transport,Capital Costs - Capital Project Main Contract Works,06/11/2013,5100057943,224070,THALES TRANSPORT & SECURITY LTD
TfGM,Transport,Capital Costs - Capital Project Main Contract Works,06/11/2013,5100057953,230073,THALES TRANSPORT & SECURITY LTD
TfGM,Transport,Capital Costs - Capital Project Main Contract Works,07/11/2013,5100058242,177656,THALES TRANSPORT & SECURITY LTD
TfGM,Transport,Capital Costs - Capital Project Main Contract Works,07/11/2013,5100058244,156849,THALES TRANSPORT & SECURITY LTD
TfGM,Transport,Capital Costs - Capital Project Main Contract Works,07/11/2013,5100058246,215000,THALES TRANSPORT & SECURITY LTD
TfGM,Transport,Capital Costs - Programme and Project Management Services,08/11/2013,5100058243,9245.6,ACUITY PROGRAMME MANAGEMENT LTD
TfGM,Transport,Capital Costs - Programme and Project Management Services,08/11/2013,5100058309,5462.5,ACUITY PROGRAMME MANAGEMENT LTD
TfGM,Transport,Capital Costs - Project Management Services,08/11/2013,5100057916,2000,AJILON UK LIMITED T/A COMPUTER PEOP
TfGM,Transport,Smart Ticketing,08/11/2013,5100058221,8400,AMSACOM LIMITED
TfGM,Transport,Capital Costs - Light Rail Support Services,08/11/2013,5100057566,5255.31,ATKINS LTD
TfGM,Transport,Capital Costs - Engineering Support Services,08/11/2013,5100057784,955.5,ATKINS LTD
TfGM,Transport,Driver Intervention Course Delivery Costs,08/11/2013,5100058348,2178,BOLTON WHITES HOTEL LTD
TfGM,Transport,Capital Costs - LRT Vehicles,08/11/2013,5100057809,187389.88,BOMBARDIER TRANSPORTATION UK LTD
TfGM,Transport,Capital Costs - Print & Media,08/11/2013,5100058290,2000,CAMMDESIGN
TfGM,Corporate Services,Employee Reimbursed Costs,08/11/2013,5100058368,7378,CHILDCARE VOUCHERS LTD
TfGM,Corporate Services,Procurement Services,08/11/2013,5100058370,14400,CNC PERFORMANCE LTD
TfGM,Transport,Driver Intervention Course Delivery Costs,08/11/2013,5100058233,1079,DRAGON DRIVING
TfGM,Transport,Project Management Services,08/11/2013,5100058230,1250,E KELLY
TfGM,Transport,Capital Costs - Utility & Service Diversion Costs,08/11/2013,5100058153,133000,ELECTRICITY NORTH WEST EHV
TfGM,Transport,Capital Costs - Utility & Service Diversion Costs,08/11/2013,5100058254,141155.03,ELECTRICITY NORTH WEST EHV
TfGM,Corporate Services,Taxation Services,08/11/2013,5100058301,2494.9,ERNST & YOUNG
TfGM,Transport,Equipment Hire,08/11/2013,5100057500,1792,EUROMEC CONTRACTS LTD
TfGM,Transport,Property & Equipment Maintenance,08/11/2013,5100058358,6696.67,GILBEY ELECTRICAL WHOLESALERS LTD
TfGM,Transport,Traffic Signal Works,08/11/2013,5100057821,933.45,GREATER MANCHESTER COMBINED AUTHORI
TfGM,Transport,Capital Costs - Transport Planning & Monitoring Services,08/11/2013,5100057826,726,GREATER MANCHESTER COMBINED AUTHORI
TfGM,Transport,Street Furniture Equipment,08/11/2013,5100057521,4165,HALSALL SIGNS LTD
TfGM,Transport,Driver Intervention Course Delivery Costs,08/11/2013,5100058228,1400,HOLIDAY INN MANCHESTER CENTRAL PARK
TfGM,Transport,Exhibitions and Conferences,08/11/2013,5100058359,1125.95,HOUSE OF COMMONS CATERING SERVS
TfGM,Transport,Temporary Vacancy Cover,08/11/2013,5100057361,13184,JACOBS UK LTD
TfGM,Transport,"Rent, Rates & Service Charges",08/11/2013,5100057922,9667.04,MANCHESTER AIRPORT PLC
TfGM,Transport,"Rent, Rates & Service Charges",08/11/2013,5100057926,13321.5,MANCHESTER AIRPORT PLC
TfGM,Transport,Insurance,08/11/2013,5100058367,20705,MPACT THALES
TfGM,Transport,Capital Costs - Capital Project Main Contract Works,08/11/2013,5100057560,152276.9,NETWORK RAIL
TfGM,Transport,Capital Costs - Capital Project Main Contract Works,08/11/2013,5100057568,24812.95,NETWORK RAIL
TfGM,Transport,Capital Costs - Capital Project Main Contract Works,08/11/2013,5100057589,399155.44,NETWORK RAIL
TfGM,Transport,Capital Costs - Capital Project Main Contract Works,08/11/2013,5100057694,3258.66,NETWORK RAIL
TfGM,Transport,Capital Costs - Rail Construction Works,08/11/2013,5100057703,-6179.34,NETWORK RAIL
TfGM,Transport,Rail Franchise,08/11/2013,1200026887,5331286.21,NORTHERN RAIL LTD
TfGM,Corporate Services,IS Software & Maintenance,08/11/2013,5100057872,17346.19,ORACLE CORPORATION UK LTD
TfGM,Transport,Heavy Rail Support Services,08/11/2013,5100057620,8215,OVE ARUP & PARTNERS INTERNATIONAL L
TfGM,Transport,Capital Costs - Smart Ticketing,08/11/2013,5100058249,11500,OVERWORKED LIMITED
TfGM,Transport,Capital Costs - Legal Services,08/11/2013,5100054697,21371.4,PANNONE AND PARTNERS
TfGM,Transport,Smart Ticketing,08/11/2013,5100058258,1530,PRACTICUS LIMITED
TfGM,Transport,Smart Ticketing,08/11/2013,5100058259,5100,PRACTICUS LIMITED
TfGM,Transport,Smart Ticketing,08/11/2013,5100058297,1180,Robert Walters Plc
TfGM,Transport,Smart Ticketing,08/11/2013,5100058300,2950,Robert Walters Plc
TfGM,Transport,Capital Costs -  Project Management Services,08/11/2013,5100058174,11040,SB PROJECT MANAGEMENT LTD
TfGM,Transport,Capital Costs - Print & Media,08/11/2013,5100057904,683.29,SERVICEPOINT UK
TfGM,Transport,IS Support Services,08/11/2013,5100058335,1298,STEPHEN TRAVIS LTD
TfGM,Transport,Capital Costs -  Project Support Services,08/11/2013,5100052759,6196.5,URS INFRASTRUCTURE & ENVIRONMENT UK
TfGM,Transport,Capital Costs - Mechanical & Engineering Support Services,08/11/2013,5100056781,14945.51,URS INFRASTRUCTURE & ENVIRONMENT UK
TfGM,Transport,CCTV Support Services,08/11/2013,5100058086,5500,URS INFRASTRUCTURE & ENVIRONMENT UK
TfGM,Transport,Research Services,08/11/2013,5100057915,18920.89,WSP UK LTD
TfGM,Transport,Driver Intervention Course Delivery Costs,12/11/2013,1900030417,960.28,A WOODWARD
TfGM,Transport,Capital Costs - Project Management Services,12/11/2013,5100058207,11760,ACUITY PROGRAMME MANAGEMENT LTD
TfGM,Transport,Capital Costs - Planning Support Services,12/11/2013,5100057796,8924.5,AECOM LTD
TfGM,Transport,Capital Costs - Planning Support Services,12/11/2013,5100057797,5845,AECOM LTD
TfGM,Transport,Driver Intervention Course Delivery Costs,12/11/2013,1900030414,1920.55,AIM TO PASS SCHOOL OF MOTORING
TfGM,Transport,Driver Intervention Course Delivery Costs,12/11/2013,1900030385,1276.32,AVRILS DRIVING SCHOOL
TfGM,Transport,Driver Intervention Course Delivery Costs,12/11/2013,1900030396,729.3,B LONERGAN
TfGM,Transport,Cycle Training Scheme,12/11/2013,5100058172,900,BIKE RIGHT!
TfGM,Transport,Capital Costs - LRT Vehicles,12/11/2013,5100058376,317087.41,BOMBARDIER TRANSPORTATION UK LTD
TfGM,Transport,Capital Costs - LRT Vehicles,12/11/2013,5100058377,420439.83,BOMBARDIER TRANSPORTATION UK LTD
TfGM,Transport,Driver Intervention Course Delivery Costs,12/11/2013,1900030380,2625.6,BRECK SCHOOL OF MOTORING
TfGM,Transport,Capital Costs - Utility & Service Diversion Costs,12/11/2013,5100057877,2692.38,BT OPENREACH (SALFORD)
TfGM,Transport,Driver Intervention Course Delivery Costs,12/11/2013,5100058234,2321.68,C JEFFREY
TfGM,Transport,Driver Intervention Course Delivery Costs,12/11/2013,1900030397,1701.76,C MACCORMACK
TfGM,Transport,Driver Intervention Course Delivery Costs,12/11/2013,1900030419,1750.4,CENTURION DRIVER TRAINING
TfGM,Transport,Capital Costs - Environmental Feasibility Support,12/11/2013,5100058418,3750,COMPLETE WEED CONTROL
TfGM,Transport,Capital Costs - Environmental Feasibility Support,12/11/2013,5100058415,4751.25,CONTRACT ECOLOGY LTD
TfGM,Transport,Driver Intervention Course Delivery Costs,12/11/2013,1900030383,984.6,COWLEY DRIVING SCHOOL
TfGM,Transport,Concessionary Reimbursement,12/11/2013,1900030480,600,COZY CARS
TfGM,Transport,Driver Intervention Course Delivery Costs,12/11/2013,5100058235,3488.6,CPC TRAINING PROVIDER LTD
TfGM,Transport,Driver Intervention Course Delivery Costs,12/11/2013,1900030384,2236.6,CRUISE DRIVER TRAINING
TfGM,Corporate Services,Cyclescheme,12/11/2013,5100058426,416.67,CYCLESCHEME LTD
TfGM,Transport,Driver Intervention Course Delivery Costs,12/11/2013,1900030387,1166.89,D ELLIS
TfGM,Transport,Driver Intervention Course Delivery Costs,12/11/2013,1900030416,2187.96,D WALSH
TfGM,Transport,Driver Intervention Course Delivery Costs,12/11/2013,1900030415,1203.4,DAVID WALKER DRIVER TRAINING
TfGM,Transport,Supported Bus Services,12/11/2013,5100057731,9815.64,DERBYSHIRE COUNTY COUNCIL
TfGM,Transport,Driver Intervention Course Delivery Costs,12/11/2013,1900030404,2394.59,DRIVER ACADEMY
TfGM,Transport,Driver Intervention Course Delivery Costs,12/11/2013,1900030382,1896.24,DRIVERSKILLS
TfGM,Transport,Driver Intervention Course Delivery Costs,12/11/2013,1900030418,2734.99,DS WILLIAMS LTD
TfGM,Transport,Driver Intervention Course Delivery Costs,12/11/2013,1900030405,2649.87,DSM SCHOOL OF MOTORING
TfGM,Transport,Driver Intervention Course Delivery Costs,12/11/2013,1900030413,607.75,E TURTON
TfGM,Transport,Capital Costs - Programme and Project Management Services,12/11/2013,5100057734,20649.93,EC HARRIS LLP
TfGM,Transport,Capital Costs - Engineering Support Services,12/11/2013,5100058052,11969.37,EC HARRIS LLP
TfGM,Transport,Capital Costs - Engineering Support Services,12/11/2013,5100058055,9654.49,EC HARRIS LLP
TfGM,Transport,Capital Costs - Engineering Support Services,12/11/2013,5100058124,949.95,EC HARRIS LLP
TfGM,Transport,Capital Costs - Engineering Support Services,12/11/2013,5100058231,1750,FREMONT LTD
TfGM,Transport,Driver Intervention Course Delivery Costs,12/11/2013,1900030381,2662.03,G CLIFFE
TfGM,Transport,Driver Intervention Course Delivery Costs,12/11/2013,1900030408,1859.8,G ROBINSON
TfGM,Transport,Driver Intervention Course Delivery Costs,12/11/2013,5100058245,2115.04,G WEBSTER
TfGM,Transport,Driver Intervention Course Delivery Costs,12/11/2013,5100058250,1823.32,G WHITWORTH
TfGM,Transport,Driver Intervention Course Delivery Costs,12/11/2013,1900030377,1191.23,GARY CAMPBELL LTD
TfGM,Transport,Temporary Vacancy Cover,12/11/2013,1900030447,10965.37,HAYS SPECIALIST RECRUITMENT LTD
TfGM,Transport,Driver Intervention Course Delivery Costs,12/11/2013,1900030394,3184.7,HOGHTON DRIVING SCHOOL
TfGM,Transport,Driver Intervention Course Delivery Costs,12/11/2013,1900030386,3051,I DUFF
TfGM,Transport,Capital Costs - Engineering Support Services,12/11/2013,5100058236,1350,IAN ROWE ASSOCIATES LTD
TfGM,Transport,Driver Intervention Course Delivery Costs,12/11/2013,1900030392,2151.51,INSIGHT 2 DRIVE
TfGM,Transport,Driver Intervention Course Delivery Costs,12/11/2013,1900030373,2382.48,J AIREY
TfGM,Transport,Driver Intervention Course Delivery Costs,12/11/2013,1900030399,2832.2,J MCGREAL
TfGM,Transport,Driver Intervention Course Delivery Costs,12/11/2013,1900030400,607.75,J MILNE
TfGM,Transport,Driver Intervention Course Delivery Costs,12/11/2013,1900030406,717.16,J RIGGS
TfGM,Transport,Temporary Vacancy Cover,12/11/2013,5100057858,2985,JACOBS UK LTD
TfGM,Transport,Capital Costs - Environmental & Ecological Support Services,12/11/2013,5100057998,1692.62,JACOBS UK LTD
TfGM,Transport,Traffic Signal Works,12/11/2013,5100057750,463.98,JONES LIGHTING
TfGM,Transport,Driver Intervention Course Delivery Costs,12/11/2013,1900030427,996.75,K EKERT
TfGM,Transport,Driver Intervention Course Delivery Costs,12/11/2013,5100058248,3002.39,LISA ATKINSON DTS
TfGM,Transport,Driver Intervention Course Delivery Costs,12/11/2013,1900030376,1799,M BRENNAN
TfGM,Transport,Driver Intervention Course Delivery Costs,12/11/2013,1900030375,1908.4,MICHAEL BOLTON DRIVER TRAINING
TfGM,Transport,Driver Intervention Course Delivery Costs,12/11/2013,1900030401,899.3,MORRIS SCHOOL OF MOTORING
TfGM,Transport,Capital Costs - Utility & Service Diversion Costs,12/11/2013,5100058416,136950,NATIONAL GRID PLC
TfGM,Transport,Supported Bus Services,12/11/2013,5100058393,3325,NTH CHESHIRE JEWISH PRIMARY SCHOOL
TfGM,Transport,Capital Costs - LRT Vehicles,12/11/2013,5100057753,30942,ORION PROJECTS LTD
TfGM,Transport,Driver Intervention Course Delivery Costs,12/11/2013,1900030379,3155.72,P CLARKE
TfGM,Transport,Driver Intervention Course Delivery Costs,12/11/2013,1900030411,3282,P STANDRING
TfGM,Transport,Capital Costs - Programme and Project Management Services,12/11/2013,5100056397,2708.55,PARSONS BRINCKERHOFF LTD
TfGM,Transport,Capital Costs - Programme and Project Management Services,12/11/2013,5100056398,14895.47,PARSONS BRINCKERHOFF LTD
TfGM,Transport,Capital Costs - Programme and Project Management Services,12/11/2013,5100056399,6237.79,PARSONS BRINCKERHOFF LTD
TfGM,Transport,Capital Costs - Project Management Services,12/11/2013,5100056400,13084.17,PARSONS BRINCKERHOFF LTD
TfGM,Transport,Capital Costs - Programme and Project Management Services,12/11/2013,5100056401,30364.45,PARSONS BRINCKERHOFF LTD
TfGM,Transport,Capital Costs - Programme and Project Management Services,12/11/2013,5100056402,5252.88,PARSONS BRINCKERHOFF LTD
TfGM,Transport,Capital Costs - Programme and Project Management Services,12/11/2013,5100056403,14469.89,PARSONS BRINCKERHOFF LTD
TfGM,Transport,Capital Costs - Programme and Project Management Services,12/11/2013,5100056404,16588.89,PARSONS BRINCKERHOFF LTD
TfGM,Transport,Capital Costs - Programme and Project Management Services,12/11/2013,5100056405,66998.69,PARSONS BRINCKERHOFF LTD
TfGM,Transport,Capital Costs - Programme and Project Management Services,12/11/2013,5100056406,15138.6,PARSONS BRINCKERHOFF LTD
TfGM,Transport,Capital Costs - Programme and Project Management Services,12/11/2013,5100056407,11162.37,PARSONS BRINCKERHOFF LTD
TfGM,Transport,Capital Costs - Programme and Project Management Services,12/11/2013,5100056659,494217.64,PARSONS BRINCKERHOFF LTD
TfGM,Transport,Capital Costs - Programme and Project Management Services,12/11/2013,5100056662,132781.94,PARSONS BRINCKERHOFF LTD
TfGM,Transport,Capital Costs - Programme and Project Management Services,12/11/2013,5100056664,227282.35,PARSONS BRINCKERHOFF LTD
TfGM,Transport,Capital Costs - Programme and Project Management Services,12/11/2013,5100056824,-1596370.21,PARSONS BRINCKERHOFF LTD
TfGM,Transport,Capital Costs - Programme and Project Management Services,12/11/2013,5100057741,8400,PARSONS BRINCKERHOFF LTD
TfGM,Transport,Capital Costs - Programme and Project Management Services,12/11/2013,5100057764,1313.22,PARSONS BRINCKERHOFF LTD
TfGM,Transport,Capital Costs - Programme and Project Management Services,12/11/2013,5100057765,18725.74,PARSONS BRINCKERHOFF LTD
TfGM,Transport,Capital Costs - Programme and Project Management Services,12/11/2013,5100057766,32800.3,PARSONS BRINCKERHOFF LTD
TfGM,Transport,Capital Costs - Project Management Services,12/11/2013,5100057767,12232.67,PARSONS BRINCKERHOFF LTD
TfGM,Transport,Capital Costs - Programme and Project Management Services,12/11/2013,5100057768,7320.18,PARSONS BRINCKERHOFF LTD
TfGM,Transport,Capital Costs - Programme and Project Management Services,12/11/2013,5100057770,9934.53,PARSONS BRINCKERHOFF LTD
TfGM,Transport,Capital Costs - Programme and Project Management Services,12/11/2013,5100057771,7879.32,PARSONS BRINCKERHOFF LTD
TfGM,Transport,Capital Costs - Project Management Services,12/11/2013,5100057772,640.6,PARSONS BRINCKERHOFF LTD
TfGM,Transport,Capital Costs - Programme and Project Management Services,12/11/2013,5100057773,19369.99,PARSONS BRINCKERHOFF LTD
TfGM,Transport,Capital Costs - Programme and Project Management Services,12/11/2013,5100057774,13193.13,PARSONS BRINCKERHOFF LTD
TfGM,Transport,Capital Costs - Programme and Project Management Services,12/11/2013,5100057775,78112.72,PARSONS BRINCKERHOFF LTD
TfGM,Transport,Capital Costs - Programme and Project Management Services,12/11/2013,5100057776,110420.28,PARSONS BRINCKERHOFF LTD
TfGM,Transport,Capital Costs - Project Management Services,12/11/2013,5100057790,16743.56,PARSONS BRINCKERHOFF LTD
TfGM,Transport,Capital Costs - Programme and Project Management Services,12/11/2013,5100057890,699295.02,PARSONS BRINCKERHOFF LTD
TfGM,Transport,Driver Intervention Course Delivery Costs,12/11/2013,1900030410,2978.08,PAS DRIVING
TfGM,Transport,Capital Costs - Programme and Project Management Services,12/11/2013,5100058374,9528,PEAK PERFORMANCE PROFESSIONAL CONTR
TfGM,Transport,Financial and Commercial Support Services,12/11/2013,5100058384,11732.5,PEAK PERFORMANCE PROFESSIONAL CONTR
TfGM,Transport,Driver Intervention Course Delivery Costs,12/11/2013,5100058251,1786.84,PETERS DRIVING SCHOOL
TfGM,Transport,Driver Intervention Course Delivery Costs,12/11/2013,5100058252,437.6,PETERS DRIVING SCHOOL
TfGM,Transport,Driver Intervention Course Delivery Costs,12/11/2013,1900030391,2552.61,R GREENOUGH
TfGM,Transport,Driver Intervention Course Delivery Costs,12/11/2013,1900030393,2455.38,R HILL
TfGM,Transport,Driver Intervention Course Delivery Costs,12/11/2013,5100058232,2127.2,R LORD
TfGM,Transport,Capital Costs - Print & Media,12/11/2013,5100058419,490,RCD
TfGM,Transport,Smart Ticketing,12/11/2013,5100057896,2950,Robert Walters Plc
TfGM,Transport,Smart Ticketing,12/11/2013,5100057897,2500,Robert Walters Plc
TfGM,Transport,Traffic Signal Works,12/11/2013,5100058025,25000,ROSGAL LTD
TfGM,Transport,Vehicle Repairs & Maintenance,12/11/2013,5100058345,1035.64,RRG ACCIDENT REPAIR CENTRE
TfGM,Transport,Driver Intervention Course Delivery Costs,12/11/2013,1900030378,1385.72,S M CHARLSON
TfGM,Transport,Driver Intervention Course Delivery Costs,12/11/2013,1900030403,850.88,SHELLIS SCHOOL OF MOTORING
TfGM,Transport,Driver Intervention Course Delivery Costs,12/11/2013,1900030390,935.96,SHIRLEYS DRIVING SCHOOL
TfGM,Transport,Driver Intervention Course Delivery Costs,12/11/2013,1900030388,1324.91,SMJ SCHOOL OF MOTORING
TfGM,Transport,Capital Costs -  Project Support Services,12/11/2013,5100057623,2619,SOIL ENGINEERING GEOSERVICES LIMITE
TfGM,Transport,Driver Intervention Course Delivery Costs,12/11/2013,1900030395,2856.5,STEVEN LLOYD APPROVED SCHOOL OF MOT
TfGM,Transport,Driver Intervention Course Delivery Costs,12/11/2013,1900030407,1531.6,T RIMMER
TfGM,Transport,Training,12/11/2013,5100058296,895.51,THE INSPIRATIONIST LTD
TfGM,Transport,Driver Intervention Course Delivery Costs,12/11/2013,1900030424,547,V EDWARDS
TfGM,Transport,Driver Intervention Course Delivery Costs,12/11/2013,1900030389,2686.34,VINCENT'S DRIVING SCHOOL
TfGM,Transport,Capital Costs - Utility & Service Diversion Costs,13/11/2013,1900030487,1102,NATIONAL GRID PLC
TfGM,Transport,Capital Costs - Computer & Communications Equipment,13/11/2013,5100058552,491.69,SAFETELL LIMITED
TfGM,Transport,Supported Bus Services,15/11/2013,1900030567,2500,5 STAR PRIVATE HIRE
TfGM,Transport,Transport Planning & Monitoring Services,15/11/2013,5100058664,926.68,AECOM LTD
TfGM,Transport,Paper and Printing Consumables,15/11/2013,5100057898,723.35,ANTALIS LTD
TfGM,Transport,Paper and Printing Consumables,15/11/2013,5100058528,723.35,ANTALIS LTD
TfGM,Transport,Supported Bus Services,15/11/2013,1700018986,-523.96,ARRIVA MANCHESTER
TfGM,Transport,Supported Bus Services,15/11/2013,1900030570,124219.14,ARRIVA MANCHESTER
TfGM,Transport,Supported Bus Services,15/11/2013,1900030571,113290.43,ARRIVA MANCHESTER
TfGM,Transport,Supported Bus Services,15/11/2013,1900030579,5707.16,ARRIVA MANCHESTER
TfGM,Transport,Concessionary Reimbursement,15/11/2013,1900030587,377417,ARRIVA MANCHESTER
TfGM,Transport,Capital Costs - LRT Vehicles,15/11/2013,5100058287,2269,AURA GRAPHICS LIMITED
TfGM,Transport,Capital Costs - Capital Project Main Contract Works,15/11/2013,5100058569,620075.83,BALFOUR BEATTY CE LTD
TfGM,Transport,Supported Bus Services,15/11/2013,1900030555,108404.9,BELLE VUE (MANCHESTER) LTD
TfGM,Transport,Capital Costs - Legal Services,15/11/2013,5100057921,5000,BIRCHAM DYSON BELL
TfGM,Transport,Capital Costs - Legal Services,15/11/2013,5100057962,3116,BIRCHAM DYSON BELL
TfGM,Transport,Capital Costs - Architectural Services,15/11/2013,1900030632,25500,BRABNERS CHAFFE STREET LLP
TfGM,Transport,Telecommunications,15/11/2013,5100058667,9202.58,BT GLOBAL SERVICES
TfGM,Transport,Telecommunications,15/11/2013,5100058668,-1307.01,BT GLOBAL SERVICES
TfGM,Transport,Supported Bus Services,15/11/2013,1900030577,2020.83,BULLITT CARS
TfGM,Transport,Supported Bus Services,15/11/2013,1900030564,17365.45,BULLOCKS
TfGM,Transport,Supported Bus Services,15/11/2013,1900030565,1269.55,BULLOCKS
TfGM,Transport,Concessionary Reimbursement,15/11/2013,1900030588,2189,BULLOCKS
TfGM,Transport,Concessionary Reimbursement,15/11/2013,1900030589,12000,BURNLEY AND PENDLE
TfGM,Transport,Concessionary Reimbursement,15/11/2013,1900030591,15092,CENTREBUS LTD
TfGM,Transport,Supported Bus Services,15/11/2013,1900030537,10218.7,CHECKMATE TRANSPORT LTD
TfGM,Transport,Concessionary Reimbursement,15/11/2013,1900030593,3300,CHECKMATE TRANSPORT LTD
TfGM,Transport,Supported Bus Services,15/11/2013,1900030580,7772.72,CHESTERS COACHES
TfGM,Transport,Supported Bus Services,15/11/2013,1900030578,5872.73,CI WALLEY TA RINGWAY MINIBUS HIRE
TfGM,Transport,Supported Bus Services,15/11/2013,1900030551,27611.25,CUMFY BUS LTD
TfGM,Transport,Concessionary Reimbursement,15/11/2013,1900030594,26000,CUMFY BUS LTD
TfGM,Transport,Cycling Equipment,15/11/2013,5100057995,567,CYCLES RECYCLED CIC
TfGM,Corporate Services,Telecommunications,15/11/2013,5100058399,6053.63,DAISY COMMUNICATIONS
TfGM,Transport,Capital Costs - Legal Services,15/11/2013,5100058057,938,DLA PIPER UK LLP
TfGM,Transport,Supported Bus Services,15/11/2013,1900030550,12464.33,ECO TRAVEL
TfGM,Transport,Print & Media,15/11/2013,5100058579,1482.06,ESP SYSTEX LTD
TfGM,Transport,Equipment Hire,15/11/2013,5100058494,35756,EUROMEC CONTRACTS LTD
TfGM,Transport,Concessionary Reimbursement,15/11/2013,1900030597,4282,FE FINCH
TfGM,Transport,Supported Bus Services,15/11/2013,1900030538,27653.2,FINGLANDS
TfGM,Transport,Supported Bus Services,15/11/2013,1900030539,33077.12,FINGLANDS
TfGM,Transport,Concessionary Reimbursement,15/11/2013,1900030595,35000,FINGLANDS
TfGM,Transport,Concessionary Reimbursement,15/11/2013,1900030596,9000,FIRST CALDERLINE
TfGM,Transport,Secondment,15/11/2013,5100057743,7480,FIRST KEOLIS TRANSPENNINE LTD
TfGM,Transport,Supported Bus Services,15/11/2013,1700018975,-4480.61,FIRST MANCHESTER
TfGM,Transport,Pass Withdrawal Scheme,15/11/2013,1900030511,540,FIRST MANCHESTER
TfGM,Transport,Supported Bus Services,15/11/2013,1900030562,291590.66,FIRST MANCHESTER
TfGM,Transport,Supported Bus Services,15/11/2013,1900030563,338518.99,FIRST MANCHESTER
TfGM,Transport,Concessionary Reimbursement,15/11/2013,1900030598,145000,FIRST MANCHESTER
TfGM,Transport,Supported Bus Services,15/11/2013,1900030582,21723,GB COACHES
TfGM,Transport,Concessionary Reimbursement,15/11/2013,1900030498,8406.4,GMATL
TfGM,Transport,Supported Bus Services,15/11/2013,1900030549,11968.33,GMATL
TfGM,Transport,Accessible Transport,15/11/2013,1200026896,441667,GMATT
TfGM,Transport,Supported Bus Services,15/11/2013,1900030546,41362.55,GO GOODWINS COACHES LTD
TfGM,Transport,Supported Bus Services,15/11/2013,1900030547,93932.09,GO GOODWINS COACHES LTD
TfGM,Transport,Traffic Signal Works,15/11/2013,5100057923,574.8,GREATER MANCHESTER COMBINED AUTHORI
TfGM,Transport,Capital Costs - Traffic Signal Works,15/11/2013,5100057924,575.53,GREATER MANCHESTER COMBINED AUTHORI
TfGM,Transport,Capital Costs - Traffic Signal Works,15/11/2013,5100057927,749.97,GREATER MANCHESTER COMBINED AUTHORI
TfGM,Transport,Capital Costs - Traffic Signal Works,15/11/2013,5100057928,632.79,GREATER MANCHESTER COMBINED AUTHORI
TfGM,Transport,Capital Costs - Traffic Signal Works,15/11/2013,5100057929,1259.54,GREATER MANCHESTER COMBINED AUTHORI
TfGM,Transport,Capital Costs - Traffic Signal Works,15/11/2013,5100057930,575.53,GREATER MANCHESTER COMBINED AUTHORI
TfGM,Transport,Supported Bus Services,15/11/2013,1900030575,36446.7,GREEN TRIANGLE BUSES LTD
TfGM,Transport,Supported Bus Services,15/11/2013,1900030576,74054.11,GREEN TRIANGLE BUSES LTD
TfGM,Transport,Concessionary Reimbursement,15/11/2013,1900030599,79620,GREEN TRIANGLE BUSES LTD
TfGM,Transport,Capital Costs - Property Services,15/11/2013,5100058616,1975,GVA GRIMLEY
TfGM,Transport,Concessionary Reimbursement,15/11/2013,1900030499,700,HORWICH PRIVATE HIRE LIMITED
TfGM,Transport,Supported Bus Services,15/11/2013,1900030542,2333.33,HORWICH PRIVATE HIRE LIMITED
TfGM,Transport,Capital Costs - Mechanical & Engineering Support Services,15/11/2013,5100056486,1103.4,JACOBS UK LTD
TfGM,Transport,Supported Bus Services,15/11/2013,1900030573,9859.91,JIM STONES COACHES
TfGM,Transport,Supported Bus Services,15/11/2013,1900030574,11908.98,JIM STONES COACHES
TfGM,Transport,Concessionary Reimbursement,15/11/2013,1900030600,29500,JIM STONES COACHES
TfGM,Transport,Supported Bus Services,15/11/2013,1900030568,37517.36,JP EXECUTIVE
TfGM,Transport,Supported Bus Services,15/11/2013,1900030569,39746.75,JP EXECUTIVE
TfGM,Transport,Concessionary Reimbursement,15/11/2013,1900030601,49000,JP EXECUTIVE
TfGM,Corporate Services,Procurement Services,15/11/2013,5100058671,12075,JULIAN BENSON ASSOCIATES LTD
TfGM,Transport,Supported Bus Services,15/11/2013,1900030566,17208.54,LAINTON COACHES LTD
TfGM,Transport,Concessionary Reimbursement,15/11/2013,1900030602,16500,LANCASHIRE UTD
TfGM,Transport,Supported Bus Services,15/11/2013,1900030554,3285.91,LEISURE TRAVEL
TfGM,Transport,Supported Bus Services,15/11/2013,1900030556,42917.26,M TRAVEL
TfGM,Transport,Supported Bus Services,15/11/2013,1900030557,13941.67,M TRAVEL
TfGM,Transport,Concessionary Reimbursement,15/11/2013,1900030605,600,M TRAVEL
TfGM,Transport,Capital Costs - Programme and Project Management Services,15/11/2013,5100058463,5655,MACE LTD
TfGM,Transport,Concessionary Reimbursement,15/11/2013,1700018943,-7175.8,MANCHESTER COMMUNITY TRANSPORT
TfGM,Transport,Supported Bus Services,15/11/2013,1700018952,-843.21,MANCHESTER COMMUNITY TRANSPORT
TfGM,Transport,Supported Bus Services,15/11/2013,1900030543,25616.2,MANCHESTER COMMUNITY TRANSPORT
TfGM,Transport,Supported Bus Services,15/11/2013,1900030544,184501.4,MANCHESTER COMMUNITY TRANSPORT
TfGM,Transport,Concessionary Reimbursement,15/11/2013,1900030606,30000,MANCHESTER COMMUNITY TRANSPORT
TfGM,Transport,Capital Costs - Capital Project Main Contract Works,15/11/2013,1900030497,47075.67,METROLINK RATP DEV LTD
TfGM,Transport,Property & Equipment Maintenance,15/11/2013,5100056147,84230.52,METROLINK RATP DEV LTD
TfGM,Transport,Capital Costs - Capital Project Main Contract Works,15/11/2013,5100058555,52924.33,METROLINK RATP DEV LTD
TfGM,Transport,Capital Costs - Computer & Communications Equipment,15/11/2013,5100057919,1013,MISCO
TfGM,Transport,Capital Costs - Computer & Communications Equipment,15/11/2013,5100057971,2053.8,MISCO
TfGM,Transport,Capital Costs - Programme and Project Management Services,15/11/2013,5100057891,780,MORSON INTERNATIONAL
TfGM,Transport,Capital Costs - Programme and Project Management Services,15/11/2013,5100057892,1950,MORSON INTERNATIONAL
TfGM,Transport,Capital Costs - Programme and Project Management Services,15/11/2013,5100057894,1690,MORSON INTERNATIONAL
TfGM,Transport,Capital Costs - Programme and Project Management Services,15/11/2013,5100057895,1664,MORSON INTERNATIONAL
TfGM,Transport,Capital Costs - Project Management Services,15/11/2013,5100057918,1505,MORSON INTERNATIONAL
TfGM,Transport,Capital Costs - Project Management Services,15/11/2013,5100057954,2150,MORSON INTERNATIONAL
TfGM,Transport,Metrolink Operating Costs,15/11/2013,5100058602,291822.85,MPACT THALES
TfGM,Transport,Metrolink Operating Costs,15/11/2013,5100058603,66837.68,MPACT THALES
TfGM,Transport,Capital Costs - Project Support Services,15/11/2013,5100058481,1875,NEIL CLARKE LTD
TfGM,Transport,Capital Costs - Project Support Services,15/11/2013,5100058677,1875,NEIL CLARKE LTD
TfGM,Transport,Supported Bus Services,15/11/2013,1900030548,59768.45,OLYMPIA TRAVEL
TfGM,Transport,Print & Media,15/11/2013,5100058400,11544.4,OMEGA PRINT AND DESIGN LTD
TfGM,Corporate Services,Procurement Services,15/11/2013,5100058518,11550,OPUS BESTPAY LTD
TfGM,Transport,Occupational Health,15/11/2013,5100058437,5162.5,PAM WELLBEING
TfGM,Transport,Traffic and Transportation Surveys,15/11/2013,5100057863,5332.86,PLUSWORK LTD
TfGM,Transport,Traffic and Transportation Surveys,15/11/2013,5100057864,5134.86,PLUSWORK LTD
TfGM,Transport,Temporary Vacancy Cover,15/11/2013,5100057878,4570.5,PLUSWORK LTD
TfGM,Transport,Traffic and Transportation Surveys,15/11/2013,5100057882,562.4,PLUSWORK LTD
TfGM,Transport,Temporary Vacancy Cover,15/11/2013,5100057885,566.4,PLUSWORK LTD
TfGM,Corporate Services,IS Support Services,15/11/2013,5100058441,1120,PMA RECRUITMENT LTD
TfGM,Corporate Services,IS Support Services,15/11/2013,5100058442,12320,PMA RECRUITMENT LTD
TfGM,Transport,Smart Ticketing,15/11/2013,5100058261,2550,PRACTICUS LIMITED
TfGM,Transport,Passenger Shelters,15/11/2013,5100057932,7318.5,QUEENSBURY SHELTERS LIMITED
TfGM,Transport,Passenger Shelters,15/11/2013,5100057937,7318.5,QUEENSBURY SHELTERS LIMITED
TfGM,Transport,Passenger Shelters,15/11/2013,5100057939,7318.5,QUEENSBURY SHELTERS LIMITED
TfGM,Transport,Passenger Shelters,15/11/2013,5100057940,7318.5,QUEENSBURY SHELTERS LIMITED
TfGM,Transport,Passenger Shelters,15/11/2013,5100057941,7318.5,QUEENSBURY SHELTERS LIMITED
TfGM,Transport,Passenger Shelters,15/11/2013,5100057944,7318.5,QUEENSBURY SHELTERS LIMITED
TfGM,Transport,Capital Costs - Passenger Shelters,15/11/2013,5100057964,700,QUEENSBURY SHELTERS LIMITED
TfGM,Transport,Supported Bus Services,15/11/2013,1900030586,31667.09,R S TYRER LTD
TfGM,Transport,Concessionary Reimbursement,15/11/2013,1900030502,3176,RADIO CABS T/A ECO TRAVEL
TfGM,Transport,Supported Bus Services,15/11/2013,1900030545,30178.33,RADIO CABS T/A ECO TRAVEL
TfGM,Transport,Capital Costs - Print & Media,15/11/2013,5100058637,490,RCD
TfGM,Transport,Capital Costs - Print & Media,15/11/2013,5100058655,490,RCD
TfGM,Transport,Capital Costs - Programme and Project Management Services,15/11/2013,5100058298,1316.7,Robert Walters Plc
TfGM,Transport,Concessionary Reimbursement,15/11/2013,1900030501,7202.95,ROCHDALE COMMUNITY TRANSPORT
TfGM,Transport,Supported Bus Services,15/11/2013,1900030540,43284.59,ROCHDALE COMMUNITY TRANSPORT
TfGM,Transport,Supported Bus Services,15/11/2013,1900030541,42037.16,ROCHDALE COMMUNITY TRANSPORT
TfGM,Transport,Concessionary Reimbursement,15/11/2013,1900030620,4000,ROJAY SERVICES LTD T/A WIGAN COACHW
TfGM,Transport,Supported Bus Services,15/11/2013,1900030552,180534.03,ROSSENDALE TRANSPORT
TfGM,Transport,Supported Bus Services,15/11/2013,1900030553,67066.02,ROSSENDALE TRANSPORT
TfGM,Transport,Concessionary Reimbursement,15/11/2013,1900030608,100000,ROSSENDALE TRANSPORT
TfGM,Transport,Training,15/11/2013,5100058398,750,SAM FLYNN SOCIAL MEDIA
TfGM,Transport,Supported Bus Services,15/11/2013,1900030583,62933.28,SELWYNS TRAVEL LTD
TfGM,Transport,Bus Station & Shelter Consumables,15/11/2013,5100057955,417.42,SHORROCK TRICHEM
TfGM,Transport,Traffic Signal Works,15/11/2013,5100057893,93913.2,SIEMENS PLC
TfGM,Transport,Print & Media,15/11/2013,5100058563,1750,SPHERE UK
TfGM,Transport,Pass Withdrawal Scheme,15/11/2013,1900030512,975,STAGECOACH SERVICES LTD
TfGM,Transport,Supported Bus Services,15/11/2013,1900030559,233562.45,STAGECOACH SERVICES LTD
TfGM,Transport,Supported Bus Services,15/11/2013,1900030560,426162.61,STAGECOACH SERVICES LTD
TfGM,Transport,Concessionary Reimbursement,15/11/2013,1900030610,1338278,STAGECOACH SERVICES LTD
TfGM,Transport,Concessionary Reimbursement,15/11/2013,1900030611,22000,STAGECOACH SERVICES LTD
TfGM,Transport,Concessionary Reimbursement,15/11/2013,1900030612,247083,STAGECOACH SERVICES LTD
TfGM,Transport,Supported Bus Services,15/11/2013,1900030584,24339.88,STOTTS TOURS
TfGM,Transport,Supported Bus Services,15/11/2013,1900030585,42375.05,STOTTS TOURS
TfGM,Transport,Concessionary Reimbursement,15/11/2013,1900030614,11000,STOTTS TOURS
TfGM,Transport,Concessionary Reimbursement,15/11/2013,1900030613,4127,STREET CARS
TfGM,Transport,Concessionary Reimbursement,15/11/2013,1900030503,2036,TELECARS
TfGM,Transport,Supported Bus Services,15/11/2013,1900030572,12958.33,TELECARS
TfGM,Corporate Services,IS Consumables,15/11/2013,5100057795,949,TOTAL COMPUTERS LTD
TfGM,Corporate Services,Computer Support and Licences,15/11/2013,5100058133,2805,TRANSACTION NETWORK SERV (UK) LTD
TfGM,Corporate Services,Computer Support and Licences,15/11/2013,5100058147,825,TRANSACTION NETWORK SERV (UK) LTD
TfGM,Transport,Supported Bus Services,15/11/2013,1900030536,3243.45,TRAVELMASTER MCR LTD
TfGM,Transport,Concessionary Reimbursement,15/11/2013,1900030615,1800,TRAVELMASTER MCR LTD
TfGM,Transport,Supported Bus Services,15/11/2013,1900030558,2936.36,UK COACHWAYS LTD
TfGM,Transport,Capital Costs - Programme and Project Management Services,15/11/2013,5100058491,4900,UNIQUE CREATIVE COMMUNICATIONS
TfGM,Transport,Utilities & Energy,15/11/2013,1900030452,1286.25,UNITED UTILITIES WATER PLC
TfGM,Transport,Concessionary Reimbursement,15/11/2013,1900030616,1500,VALE OF LLANGOLLEN TRAVEL LTD
TfGM,Transport,Supported Bus Services,15/11/2013,1900030561,3436.36,VIKING COACHES
TfGM,Transport,Vehicle Repairs & Maintenance,15/11/2013,5100058653,1777.58,Walton Summit Truck Centre
TfGM,Transport,Vehicle Repairs & Maintenance,15/11/2013,5100058660,575.78,Walton Summit Truck Centre
TfGM,Transport,Concessionary Reimbursement,15/11/2013,1900030618,9000,WARRINGTON BOROUGH TRANSPORT LTD
TfGM,Transport,Supported Bus Services,15/11/2013,1900030581,26849,WIGAN BUSES LTD
TfGM,Transport,Concessionary Reimbursement,15/11/2013,1900030619,6300,WIGAN BUSES LTD
TfGM,Transport,Concessionary Reimbursement,15/11/2013,1900030504,4002.4,WIGAN COMMUNITY TRANSPORT
TfGM,Transport,Supported Bus Services,15/11/2013,1900030535,6533.17,WIGAN COMMUNITY TRANSPORT
TfGM,Transport,Transport Planning & Monitoring Services,19/11/2013,5100058222,13380,AECOM LTD
TfGM,Transport,Capital Costs - Project Management Services,19/11/2013,5100058391,2000,AJILON UK LIMITED T/A COMPUTER PEOP
TfGM,Transport,Paper and Printing Consumables,19/11/2013,5100058699,1446.7,ANTALIS LTD
TfGM,Transport,Capital Costs - Quantity Surveying Services,19/11/2013,5100057948,9910.57,ATKINS LTD
TfGM,Transport,Vehicle Costs,19/11/2013,5100058635,584,AUTO CHECK POINT LTD
TfGM,Corporate Services,IS Consumables,19/11/2013,5100058061,2173.6,BT ENGAGE IT
TfGM,Corporate Services,IS Software & Maintenance,19/11/2013,5100058176,950,BT ENGAGE IT
TfGM,Transport,Telecommunications,19/11/2013,5100058702,1756.35,BT GLOBAL SERVICES
TfGM,Transport,Capital Costs - Utility & Service Diversion Costs,19/11/2013,5100057920,7592.5,BT OPENREACH (SALFORD)
TfGM,Transport,Design Services,19/11/2013,5100057871,1500,BURY MBC
TfGM,Transport,Capital Costs - Project Support Services,19/11/2013,5100057884,2027.6,CDI ANDERSELITE LTD
TfGM,Transport,Capital Costs - Project Support Services,19/11/2013,5100057887,1125,CDI ANDERSELITE LTD
TfGM,Transport,Capital Costs - Project Support Services,19/11/2013,5100057889,1350,CDI ANDERSELITE LTD
TfGM,Transport,Hosting & Maintenance,19/11/2013,5100058484,22384.5,CHARGE YOUR CAR LTD
TfGM,Corporate Services,IS Support Services,19/11/2013,5100057917,2000,DREAMBANK SYSTEMS LTD
TfGM,Transport,Vehicle Repairs & Maintenance,19/11/2013,5100057825,508.12,ENZA MOTORS
TfGM,Transport,Capital Costs - Engineering Support Services,19/11/2013,5100058520,1750,FREMONT LTD
TfGM,Transport,Training,19/11/2013,5100058662,1500,GREENGAGE CONSULTING LIMITED
TfGM,Transport,Engineering Support Services,19/11/2013,5100058028,14162.5,GUTTERIDGE HASKINS AND DAVEY LTD
TfGM,Transport,Cycling Equipment,19/11/2013,5100058036,1419,ICYCLE LTD
TfGM,Transport,IS Support Services,19/11/2013,5100057866,2750,IGROUP LTD
TfGM,Transport,IS Support Services,19/11/2013,5100057867,3850,IGROUP LTD
TfGM,Transport,Capital Costs - Project Support Services,19/11/2013,5100057848,5462,ISS LABOUR LTD
TfGM,Transport,Capital Costs - Project Management Services,19/11/2013,5100058568,714,ISS LABOUR LTD
TfGM,Transport,Capital Costs - Capital Project Main Contract Works,19/11/2013,5100057874,5200,JAMIESON CONTRACTING (MCR) LTD
TfGM,Transport,Capital Costs - Capital Project Main Contract Works,19/11/2013,5100057875,750,JAMIESON CONTRACTING (MCR) LTD
TfGM,Transport,Capital Costs - Capital Project Main Contract Works,19/11/2013,5100058034,51601.64,JAMIESON CONTRACTING (MCR) LTD
TfGM,Corporate Services,Procurement Services,19/11/2013,5100058665,7150,JETFIRE ASSOCIATES LIMITED
TfGM,Transport,Capital Costs - Programme and Project Management Services,19/11/2013,5100058206,9675,JSLM PROGRAMME SERVICES LTD
TfGM,Transport,Print & Media,19/11/2013,5100057744,887.5,KREATIVE BOMB LIMITED
TfGM,Transport,Property Support Services,19/11/2013,5100058012,2100,LESLIE ROBERTS AND CO LTD
TfGM,Transport,Capital Costs - Programme and Project Management Services,19/11/2013,5100058443,6900,MACE LTD
TfGM,Transport,Capital Costs - Programme and Project Management Services,19/11/2013,5100058666,9135,MACE LTD
TfGM,Corporate Services,IS Support Services,19/11/2013,5100058365,8800,MAPSAR LTD
TfGM,Transport,Smart Ticketing,19/11/2013,5100058311,9450,MARBLE LTD
TfGM,Transport,Light Rail Support Services,19/11/2013,5100058149,13200,MASON LTD
TfGM,Transport,Capital Costs - Smart Ticketing,19/11/2013,5100058263,10000,MINT RECRUITMENT SOLUTIONS LTD
TfGM,Transport,Maintenance,19/11/2013,5100058130,27036.35,MPS (UK) LTD
TfGM,Transport,Capital Costs - Rail Construction Works,19/11/2013,5100057563,215945.19,NETWORK RAIL
TfGM,Transport,Concessionary Reimbursement,19/11/2013,1900030662,62000,NORTHERN RAIL LIMITED
TfGM,Transport,Capital Costs - Programme and Project Management Services,19/11/2013,5100058173,1361.4,PERTEMPS PROFESSIONAL STAFFING LTD
TfGM,Transport,Capital Costs - Infrastructure Support Services,19/11/2013,5100058027,1791.61,POD-TRAK LTD
TfGM,Transport,Capital Costs - Safety & Security Support Services,19/11/2013,5100058197,7397.5,POLICE & CRIME COMMISSIONER GTR MCR
TfGM,Transport,Smart Ticketing,19/11/2013,5100058038,1875,PRACTICUS LIMITED
TfGM,Transport,Smart Ticketing,19/11/2013,5100058085,2400.1,Robert Walters Plc
TfGM,Transport,Smart Ticketing,19/11/2013,5100058192,2400.1,Robert Walters Plc
TfGM,Transport,Smart Ticketing,19/11/2013,5100058193,2500,Robert Walters Plc
TfGM,Transport,Smart Ticketing,19/11/2013,5100058204,2950,Robert Walters Plc
TfGM,Transport,Print & Media,19/11/2013,5100058129,1215,THE IMAGE GROUP
TfGM,Transport,Concessionary Reimbursement,19/11/2013,1900030661,8750,TRANSPENNINE EXPRESS
TfGM,Transport,IS Support & Maintenance,19/11/2013,5100058674,1697.13,VIX ACIS LTD
TfGM,Transport,Telecommunications,19/11/2013,5100058686,2068.89,VODAFONE CONNECT LTD
TfGM,Transport,Capital Costs - QBC Support Services,19/11/2013,5100057958,489.32,WIGAN COUNCIL
TfGM,Transport,Capital Costs - Research Services,19/11/2013,5100058641,2535.35,WSP UK LTD
TfGM,Transport,Vehicle Costs,20/11/2013,1200026921,1173.98,ALLSTAR
TfGM,Transport,Vehicle Costs,21/11/2013,5100058278,500,ACTIA UK LTD
TfGM,Transport,Transport Planning & Monitoring Services,21/11/2013,5100058264,14730,AECOM LTD
TfGM,Transport,Capital Costs - Mechanical & Engineering Support Services,21/11/2013,5100054777,3750,ATKINS LTD
TfGM,Transport,Capital Costs - Engineering Support Services,21/11/2013,5100054925,4760,ATKINS LTD
TfGM,Transport,Capital Costs - Engineering Support Services,21/11/2013,5100056050,2300,ATKINS LTD
TfGM,Transport,Capital Costs - Consultation Support,21/11/2013,5100058136,2786.46,ATKINS LTD
TfGM,Transport,Capital Costs - Engineering Support Services,21/11/2013,5100058630,12807.9,ATKINS LTD
TfGM,Transport,Smart Ticketing,21/11/2013,5100058355,56274,ATOS IT SERVICES UK LTD
TfGM,Transport,Capital Costs - LRT Vehicles,21/11/2013,5100058143,2269,AURA GRAPHICS LIMITED
TfGM,Transport,Print & Media,21/11/2013,5100058139,459,BLUETREE DESIGN AND PRINT LTD
TfGM,Transport,Capital Costs - Design Support Services,21/11/2013,5100058425,3000,BOLTON METROPOLITAN BOROUGH COUNCIL
TfGM,Transport,Capital Costs - Architectural Services,21/11/2013,5100058329,2520.35,BOWKER SADLER PARTNERSHIP LIMITED
TfGM,Transport,Capital Costs - Capital Project Main Contract Works,21/11/2013,5100058331,809.93,BROXAP LTD
TfGM,Transport,IS Support Services,21/11/2013,5100058279,4500,BT ENGAGE IT
TfGM,Corporate Services,IS Support Services,21/11/2013,5100058281,5800,BT ENGAGE IT
TfGM,Transport,Capital Costs - IS Support Services,21/11/2013,5100058084,5336,BURY MBC
TfGM,Transport,Security Services,21/11/2013,5100058140,7010.52,CARLISLE SECURITY SERVICES LTD
TfGM,Corporate Services,Payroll Support Services,21/11/2013,5100058767,1018.2,CGI IT UK LTD
TfGM,Transport,Capital Costs - Capital Project Main Contract Works,21/11/2013,5100058485,5130,CHARGE YOUR CAR LTD
TfGM,Transport,Capital Costs - Utility & Service Diversion Costs,21/11/2013,1900030698,16228,CITY OF SALFORD
TfGM,Transport,Concessionary Reimbursement,21/11/2013,1900030685,1016,CRESTA CAR HIRE
TfGM,Transport,Training,21/11/2013,5100058216,1200,DARCY PRODUCTS LTD
TfGM,Transport,Postage Costs,21/11/2013,1200026921,3500,FP TELESET
TfGM,Transport,Signage Costs,21/11/2013,5100058336,19465.23,GR LABELS LTD
TfGM,Transport,Concessionary Reimbursement,21/11/2013,1900030684,660,H SHAKERI T/A EUROLYNX TAXIS
TfGM,Transport,Driver Intervention Course Delivery Costs,21/11/2013,5100058247,2479.17,HOLIDAY INN MANCHESTER EAST
TfGM,Transport,Print & Media,21/11/2013,5100058063,2088,HUDSON AND PEARSON LTD
TfGM,Transport,Print & Media,21/11/2013,5100058188,860,HUDSON AND PEARSON LTD
TfGM,Transport,Capital Costs - Architectural Services,21/11/2013,5100058722,13823,IAN SIMPSON ARCHITECTS
TfGM,Transport,Project Management Services,21/11/2013,5100058751,2000,INCITE SOLUTIONS LTD
TfGM,Transport,Project Management Services,21/11/2013,5100058752,2000,INCITE SOLUTIONS LTD
TfGM,Transport,Project Management Services,21/11/2013,5100058753,2000,INCITE SOLUTIONS LTD
TfGM,Transport,Project Management Services,21/11/2013,5100058754,4000,INCITE SOLUTIONS LTD
TfGM,Transport,Project Management Services,21/11/2013,5100058755,1200,INCITE SOLUTIONS LTD
TfGM,Transport,Capital Costs - Project Management Services,21/11/2013,5100058566,3333,ISS LABOUR LTD
TfGM,Corporate Services,Computer Support and Licences,21/11/2013,5100058229,4527.6,ITSO LTD
TfGM,Transport,Capital Costs - Quantity Surveying Services,21/11/2013,5100058145,480,JACOBS UK LTD
TfGM,Transport,Capital Costs - Capital Project Main Contract Works,21/11/2013,5100058644,578514.85,KIER CONSTRUCTION - NORTHERN
TfGM,Transport,Vehicle Costs,21/11/2013,5100058708,1293.79,LEX AUTOLEASE LTD
TfGM,Transport,Telecommunications,21/11/2013,5100058060,8530.34,MANCHESTER CITY COUNCIL
TfGM,Transport,Property & Equipment Maintenance,21/11/2013,5100058190,23868.56,MANCHESTER WORKING LTD
TfGM,Transport,Property & Equipment Maintenance,21/11/2013,5100058191,23868.56,MANCHESTER WORKING LTD
TfGM,Transport,Driver Intervention Course Delivery Costs,21/11/2013,5100058159,24925,MERSEYSIDE POLICE AUTHORITY
TfGM,Transport,Driver Intervention Course Delivery Costs,21/11/2013,5100058160,28640,MERSEYSIDE POLICE AUTHORITY
TfGM,Transport,Concessionary Reimbursement,21/11/2013,1900030683,1564,METRO TAXIS LTD
TfGM,Transport,Capital Costs - Computer & Communications Equipment,21/11/2013,5100058218,1050.6,MISCO
TfGM,Transport,Capital Costs - Programme and Project Management Services,21/11/2013,5100058198,2150,MORSON INTERNATIONAL
TfGM,Transport,Capital Costs - Project Management Services,21/11/2013,5100058199,1881.25,MORSON INTERNATIONAL
TfGM,Transport,Capital Costs - Project Management Services,21/11/2013,5100058200,2150,MORSON INTERNATIONAL
TfGM,Transport,Capital Costs - Programme and Project Management Services,21/11/2013,5100058201,1690,MORSON INTERNATIONAL
TfGM,Transport,Capital Costs - Programme and Project Management Services,21/11/2013,5100058202,1664,MORSON INTERNATIONAL
TfGM,Transport,Capital Costs - Programme and Project Management Services,21/11/2013,5100058205,5321.25,MORSON INTERNATIONAL
TfGM,Transport,Capital Costs - Mechanical & Engineering Support Services,21/11/2013,5100058187,3569.52,MOTT MACDONALD LTD
TfGM,Transport,Capital Costs - Programme and Project Management Services,21/11/2013,5100058324,5070,MOTT MACDONALD LTD
TfGM,Transport,Capital Costs - Capital Project Main Contract Works,21/11/2013,5100058782,125783.62,MPACT THALES
TfGM,Transport,Capital Costs - Capital Project Main Contract Works,21/11/2013,5100058783,2159.56,MPACT THALES
TfGM,Transport,Capital Costs - Capital Project Main Contract Works,21/11/2013,5100058784,8167.59,MPACT THALES
TfGM,Transport,Capital Costs - Capital Project Main Contract Works,21/11/2013,5100058785,15148.38,MPACT THALES
TfGM,Transport,Capital Costs - Capital Project Main Contract Works,21/11/2013,5100058786,8096.03,MPACT THALES
TfGM,Transport,Capital Costs - Capital Project Main Contract Works,21/11/2013,5100058787,350000,MPACT THALES
TfGM,Transport,Capital Costs - Capital Project Main Contract Works,21/11/2013,5100058788,75000,MPACT THALES
TfGM,Transport,Security Services,21/11/2013,5100058789,27000,MPACT THALES
TfGM,Transport,Security Services,21/11/2013,5100058790,65000,MPACT THALES
TfGM,Transport,Capital Costs - Capital Project Main Contract Works,21/11/2013,5100058791,813943.94,MPACT THALES
TfGM,Transport,Capital Costs - Capital Project Main Contract Works,21/11/2013,5100058792,61438.48,MPACT THALES
TfGM,Transport,Capital Costs - Capital Project Main Contract Works,21/11/2013,5100058793,400000,MPACT THALES
TfGM,Transport,Capital Costs - Capital Project Main Contract Works,21/11/2013,5100058794,4304100,MPACT THALES
TfGM,Transport,Capital Costs - Capital Project Main Contract Works,21/11/2013,5100058795,360000,MPACT THALES
TfGM,Transport,Capital Costs - Capital Project Main Contract Works,21/11/2013,5100058796,10000,MPACT THALES
TfGM,Transport,Capital Costs - Capital Project Main Contract Works,21/11/2013,5100058797,30000,MPACT THALES
TfGM,Transport,Capital Costs - Capital Project Main Contract Works,21/11/2013,5100058798,500000,MPACT THALES
TfGM,Transport,Capital Costs - Capital Project Main Contract Works,21/11/2013,5100058799,694707.12,MPACT THALES
TfGM,Transport,Capital Costs - Capital Project Main Contract Works,21/11/2013,5100058800,500000,MPACT THALES
TfGM,Transport,Capital Costs - Capital Project Main Contract Works,21/11/2013,5100058801,426000,MPACT THALES
TfGM,Transport,Capital Costs - Transport Planning & Monitoring Services,21/11/2013,5100058062,759.98,MVA LTD
TfGM,Transport,Property & Equipment Maintenance,21/11/2013,5100058004,36885.13,NOVUS PROPERTY SOLUTIONS LTD
TfGM,Transport,Property & Equipment Maintenance,21/11/2013,5100058005,11741.61,NOVUS PROPERTY SOLUTIONS LTD
TfGM,Transport,Paper and Printing Consumables,21/11/2013,5100058396,715.56,Oce
TfGM,Transport,Temporary Vacancy Cover,21/11/2013,5100058125,620.28,PLUSWORK LTD
TfGM,Transport,Temporary Vacancy Cover,21/11/2013,5100058219,566.4,PLUSWORK LTD
TfGM,Transport,Traffic and Transportation Surveys,21/11/2013,5100058225,585.2,PLUSWORK LTD
TfGM,Transport,Traffic and Transportation Surveys,21/11/2013,5100058334,2247.14,PLUSWORK LTD
TfGM,Transport,Traffic and Transportation Surveys,21/11/2013,5100058338,5133.34,PLUSWORK LTD
TfGM,Transport,Smart Ticketing,21/11/2013,5100058037,2600,PRACTICUS LIMITED
TfGM,Transport,Capital Costs - Programme and Project Management Services,21/11/2013,5100058170,1400,PRACTICUS LIMITED
TfGM,Transport,Smart Ticketing,21/11/2013,5100058171,2550,PRACTICUS LIMITED
TfGM,Transport,Capital Costs - Cycle Safety Equipment,21/11/2013,5100058184,34434.87,RITHERDON & CO LTD
TfGM,Transport,Smart Ticketing,21/11/2013,5100058299,3200,Robert Walters Plc
TfGM,Transport,Bus Station & Shelter Consumables,21/11/2013,5100058058,423.98,SHORROCK TRICHEM
TfGM,Transport,Traffic Signal Works,21/11/2013,5100058021,10556.79,SIEMENS PLC
TfGM,Transport,Traffic Signal Works,21/11/2013,5100058022,31292.92,SIEMENS PLC
TfGM,Transport,Traffic Signal Works,21/11/2013,5100058023,7664.27,SIEMENS PLC
TfGM,Transport,Traffic Signal Works,21/11/2013,5100058024,14969.09,SIEMENS PLC
TfGM,Transport,Traffic and Transportation Surveys,21/11/2013,5100058151,3795,SKY HIGH TECHNOLOGY LTD
TfGM,Transport,Capital Costs - IS Support Services,21/11/2013,5100058134,18592.4,SYMOLOGY LIMITED
TfGM,Transport,Capital Costs - LRT Vehicles,21/11/2013,5100058344,13000,TES LTD
TfGM,Transport,Concessionary Reimbursement,21/11/2013,1900030694,1753,TRAFFORD CARS LTD
TfGM,Transport,Quantity Surveying Services,21/11/2013,5100058186,2000,TURNER & TOWNSEND PROJECT MANAGEMEN
TfGM,Transport,Capital Costs - Programme and Project Management Services,21/11/2013,5100058559,18060,TURNER & TOWNSEND PROJECT MANAGEMEN
TfGM,Transport,Temporary Vacancy Cover,21/11/2013,5100058632,2746.25,TXM RECRUIT LIMITED
TfGM,Transport,Temporary Vacancy Cover,21/11/2013,5100058633,1647.75,TXM RECRUIT LIMITED
TfGM,Transport,Temporary Vacancy Cover,21/11/2013,5100058634,1098.5,TXM RECRUIT LIMITED
TfGM,Transport,Concessionary Reimbursement,21/11/2013,1900030695,556,UNITED - MILLENNIUM & BAMFORD CARS
TfGM,Transport,Vehicle Repairs & Maintenance,21/11/2013,5100058542,2914.14,Walton Summit Truck Centre
TfGM,Transport,Print & Media,21/11/2013,5100058551,5000,WSP UK LTD
TfGM,Transport,Capital Costs - Consultation Support,21/11/2013,5100058815,2041.05,WSP UK LTD
TfGM,Transport,Other Operational Costs,26/11/2013,5100058291,1045.59,1ST FOOD & DRINK
TfGM,Transport,Capital Costs - Project Management Services,26/11/2013,5100058822,10640,ACUITY PROGRAMME MANAGEMENT LTD
TfGM,Transport,Capital Costs - Programme and Project Management Services,26/11/2013,5100058823,8970,ACUITY PROGRAMME MANAGEMENT LTD
TfGM,Transport,Capital Costs - Project Management Services,26/11/2013,5100058529,2000,AJILON UK LIMITED T/A COMPUTER PEOP
TfGM,Transport,Paper and Printing Consumables,26/11/2013,5100058330,1446.7,ANTALIS LTD
TfGM,Transport,Capital Costs - Programme and Project Management Services,26/11/2013,5100058836,10751.12,ARK PROJECT MANAGEMENT LTD
TfGM,Transport,Capital Costs - Signage Costs,26/11/2013,5100058156,450,ASTRA SIGNS
TfGM,Transport,Capital Costs - Engineering Support Services,26/11/2013,5100057590,2284,ATKINS LTD
TfGM,Transport,Data Analysis,26/11/2013,5100058883,1500,ATKINS LTD
TfGM,Transport,Capital Costs - Engineering Support Services,26/11/2013,5100058341,6820,AUSTINSMITH LORD LLP
TfGM,Transport,Rail Support Services,26/11/2013,5100058352,6250,BENNETTS ASSOCIATES
TfGM,Transport,Driver Intervention Course Delivery Costs,26/11/2013,5100058502,5340,BOLTON MIDDLEBROOK LEISURE TRUST
TfGM,Transport,Capital Costs - LRT Vehicles,26/11/2013,5100058716,420439.83,BOMBARDIER TRANSPORTATION UK LTD
TfGM,Transport,Capital Costs - Land Acquisition and Related Costs,26/11/2013,1900030777,34179,BOWCOCK CUERDEN LLP
TfGM,Transport,Capital Costs - Capital Project Main Contract Works,26/11/2013,5100058319,14291.8,BROXAP LTD
TfGM,Transport,Print & Media,26/11/2013,5100058871,3476.48,CARAT MEDIA UK LIMITED
TfGM,Transport,Print & Media,26/11/2013,5100058886,9891.88,CARAT MEDIA UK LIMITED
TfGM,Transport,Print & Media,26/11/2013,5100058890,14451.49,CARAT MEDIA UK LIMITED
TfGM,Transport,Print & Media,26/11/2013,5100058904,10982.87,CARAT MEDIA UK LIMITED
TfGM,Transport,Driver Intervention Course Delivery Costs,26/11/2013,5100058650,8140,CARRINGTON BUSINESS PARK (CBPK)
TfGM,Transport,Capital Costs - Project Support Services,26/11/2013,5100058165,1125,CDI ANDERSELITE LTD
TfGM,Transport,Capital Costs - Project Support Services,26/11/2013,5100058166,1698.8,CDI ANDERSELITE LTD
TfGM,Transport,Print & Media,26/11/2013,5100058347,2854,CHAPEL PRESS LTD
TfGM,Transport,Property & Equipment Maintenance,26/11/2013,5100058421,500,COOLAIR SERVICES LIMITED
TfGM,Transport,Print & Media,26/11/2013,5100058237,1125,CREATIVE LYNX LTD
TfGM,Transport,Telecommunications,26/11/2013,5100058383,6706.48,DAISY COMMUNICATIONS
TfGM,Corporate Services,Telecommunications,26/11/2013,5100058401,7587.95,DAISY COMMUNICATIONS
TfGM,Transport,Print & Media,26/11/2013,5100058853,1500,DIDSBURY ARTS FESTIVAL
TfGM,Transport,Capital Costs - Programme and Project Management Services,26/11/2013,5100058333,8047.5,FIRCROFT ENGINEERING SERVICES LTD
TfGM,Transport,Capital Costs - Engineering Support Services,26/11/2013,5100058724,1750,FREMONT LTD
TfGM,Transport,Security Services,26/11/2013,5100058701,1653.58,G4S CASH SERVICES UK LTD
TfGM,Transport,Capital Costs - Architectural Services,26/11/2013,5100058571,7113.78,GILLESPIES
TfGM,Transport,Capital Costs - Architectural Services,26/11/2013,5100058574,6045.31,GILLESPIES
TfGM,Transport,Capital Costs - Architectural Services,26/11/2013,5100058577,6289.49,GILLESPIES
TfGM,Transport,Exhibitions and Conferences,26/11/2013,5100058332,781,GRAPHIC AD
TfGM,Transport,Cleaning Equipment,26/11/2013,5100058459,7075.17,HAKO MACHINES LTD
TfGM,Transport,Capital Costs - Engineering Support Services,26/11/2013,5100058390,5120,HALCROW GROUP LTD
TfGM,Transport,Temporary Vacancy Cover,26/11/2013,1900030749,7503.16,HAYS SPECIALIST RECRUITMENT LTD
TfGM,Transport,Driver Intervention Course Delivery Costs,26/11/2013,5100058168,4680,HOLIDAY INN EXPRESS
TfGM,Transport,Capital Costs - Environmental & Ecological Support Services,26/11/2013,5100058089,1625.59,HYDER CONSULTING LTD
TfGM,Transport,Capital Costs - Engineering Support Services,26/11/2013,5100058303,2181.95,ITS Testing Services (UK) Ltd
TfGM,Transport,Capital Costs - Quantity Surveying Services,26/11/2013,5100058601,538,JACOBS UK LTD
TfGM,Transport,Traffic Signal Works,26/11/2013,5100058505,463.98,JONES LIGHTING
TfGM,Transport,Capital Costs - Traffic Signal Works,26/11/2013,5100058513,463.98,JONES LIGHTING
TfGM,Transport,Traffic Signal Works,26/11/2013,5100058515,463.98,JONES LIGHTING
TfGM,Transport,Traffic Signal Works,26/11/2013,5100058517,463.98,JONES LIGHTING
TfGM,Transport,Capital Costs - Land Acquisition and Related Costs,26/11/2013,5100058561,800,LAMBERT SMITH HAMPTON
TfGM,Transport,Bus Support Services,26/11/2013,5100058357,6160,Lloyd Morgan Group
TfGM,Transport,Driver Intervention Course Delivery Costs,26/11/2013,5100058385,1117.7,MANCHESTER CITY COUNCIL
TfGM,Transport,Driver Intervention Course Delivery Costs,26/11/2013,5100058386,1656.85,MANCHESTER CITY COUNCIL
TfGM,Transport,Print & Media,26/11/2013,5100058405,4950,MERE PR
TfGM,Transport,Capital Costs - Project Support Services,26/11/2013,5100058372,500,METROLINK RATP DEV LTD
TfGM,Transport,Capital Costs - Project Support Services,26/11/2013,5100058543,10427.07,METROLINK RATP DEV LTD
TfGM,Transport,Capital Costs - Project Support Services,26/11/2013,5100058619,2468,METROLINK RATP DEV LTD
TfGM,Transport,Replacement Bus Services,26/11/2013,5100058625,675,METROLINK RATP DEV LTD
TfGM,Transport,Metrolink Operating Costs,26/11/2013,5100058652,4715,METROLINK RATP DEV LTD
TfGM,Transport,Capital Costs - Project Support Services,26/11/2013,5100058711,10376.27,METROLINK RATP DEV LTD
TfGM,Transport,Capital Costs - Project Support Services,26/11/2013,5100058713,9896.01,METROLINK RATP DEV LTD
TfGM,Transport,Cleaning,26/11/2013,5100058018,7734.61,MITIE CLEANING & SUPPORT SERVS LTD
TfGM,Transport,Cleaning,26/11/2013,5100058119,535.82,MITIE CLEANING & SUPPORT SERVS LTD
TfGM,Transport,Capital Costs - Mechanical & Engineering Support Services,26/11/2013,5100058445,3111.66,MOTT MACDONALD LTD
TfGM,Transport,Capital Costs - Mechanical & Engineering Support Services,26/11/2013,5100058446,488,MOTT MACDONALD LTD
TfGM,Transport,Capital Costs - Mechanical & Engineering Support Services,26/11/2013,5100058447,868,MOTT MACDONALD LTD
TfGM,Transport,Capital Costs - Mechanical & Engineering Support Services,26/11/2013,5100058449,1283,MOTT MACDONALD LTD
TfGM,Transport,Capital Costs - Mechanical & Engineering Support Services,26/11/2013,5100058450,4659.34,MOTT MACDONALD LTD
TfGM,Transport,Capital Costs - Mechanical & Engineering Support Services,26/11/2013,5100058451,635.6,MOTT MACDONALD LTD
TfGM,Transport,Capital Costs - Design Support Services,26/11/2013,5100058453,452.2,MOTT MACDONALD LTD
TfGM,Transport,Capital Costs - Mechanical & Engineering Support Services,26/11/2013,5100058454,15021.99,MOTT MACDONALD LTD
TfGM,Transport,Capital Costs - Design Support Services,26/11/2013,5100058455,457.63,MOTT MACDONALD LTD
TfGM,Transport,Capital Costs - Mechanical & Engineering Support Services,26/11/2013,5100058456,7506,MOTT MACDONALD LTD
TfGM,Transport,Capital Costs - Programme and Project Management Services,26/11/2013,5100058457,6657.36,MOTT MACDONALD LTD
TfGM,Transport,Capital Costs - Programme and Project Management Services,26/11/2013,5100058460,4430.93,MOTT MACDONALD LTD
TfGM,Transport,Capital Costs - Site Access,26/11/2013,5100058434,8799.84,NCP LTD
TfGM,Transport,Vehicle Repairs & Maintenance,26/11/2013,5100058325,18666.58,OPTARE LTD
TfGM,Transport,Vehicle Repairs & Maintenance,26/11/2013,5100058326,4785,OPTARE LTD
TfGM,Transport,Vehicle Repairs & Maintenance,26/11/2013,5100058327,1749.99,OPTARE LTD
TfGM,Transport,Vehicle Repairs & Maintenance,26/11/2013,5100058375,6435,OPTARE LTD
TfGM,Transport,Property & Equipment Maintenance,26/11/2013,5100058522,1785.25,P WARD BUILDING SERVICES LTD
TfGM,Transport,Occupational Health,26/11/2013,5100058392,5162.5,PAM WELLBEING
TfGM,Transport,Capital Costs - Programme and Project Management Services,26/11/2013,5100058414,6160,PARSONS BRINCKERHOFF LTD
TfGM,Transport,Capital Costs - Programme and Project Management Services,26/11/2013,5100058849,298392,PARSONS BRINCKERHOFF LTD
TfGM,Transport,Temporary Vacancy Cover,26/11/2013,5100058214,4902.9,PLUSWORK LTD
TfGM,Transport,Smart Ticketing,26/11/2013,5100058256,5425,PRACTICUS LIMITED
TfGM,Transport,Smart Ticketing,26/11/2013,5100058257,3875,PRACTICUS LIMITED
TfGM,Transport,Smart Ticketing,26/11/2013,5100058260,7750,PRACTICUS LIMITED
TfGM,Transport,Smart Ticketing,26/11/2013,5100058262,7750,PRACTICUS LIMITED
TfGM,Transport,Driver Intervention Course Delivery Costs,26/11/2013,5100058464,800,PROFESSIONAL DRIVER SERVICES LTD
TfGM,Transport,Driver Intervention Course Delivery Costs,26/11/2013,5100058465,1964,PROFESSIONAL DRIVER SERVICES LTD
TfGM,Transport,Driver Intervention Course Delivery Costs,26/11/2013,5100058466,5543,PROFESSIONAL DRIVER SERVICES LTD
TfGM,Transport,Driver Intervention Course Delivery Costs,26/11/2013,5100058467,800,PROFESSIONAL DRIVER SERVICES LTD
TfGM,Transport,Driver Intervention Course Delivery Costs,26/11/2013,5100058468,4041,PROFESSIONAL DRIVER SERVICES LTD
TfGM,Transport,Driver Intervention Course Delivery Costs,26/11/2013,5100058469,7400,PROFESSIONAL DRIVER SERVICES LTD
TfGM,Transport,Capital Costs - Print & Media,26/11/2013,5100058858,490,RCD
TfGM,Transport,Capital Costs - Print & Media,26/11/2013,5100058860,490,RCD
TfGM,Transport,Travel and Accommodation,26/11/2013,1900030746,536.85,Redacted
TfGM,Transport,Capital Costs - Cycle Safety Equipment,26/11/2013,5100058270,15630.63,RITHERDON & CO LTD
TfGM,Transport,Capital Costs - Cycle Safety Equipment,26/11/2013,5100058271,15000,RITHERDON & CO LTD
TfGM,Transport,Smart Ticketing,26/11/2013,5100058292,2500,Robert Walters Plc
TfGM,Transport,Smart Ticketing,26/11/2013,5100058294,2400.1,Robert Walters Plc
TfGM,Transport,Smart Ticketing,26/11/2013,5100058295,2950,Robert Walters Plc
TfGM,Transport,Traffic Signal Works,26/11/2013,5100058146,1848.34,ROSGAL LTD
TfGM,Transport,Print & Media,26/11/2013,5100058428,870,SERVICE GRAPHICS LTD
TfGM,Transport,Traffic Signal Works,26/11/2013,5100058580,9490.93,SIEMENS PLC
TfGM,Transport,Traffic Signal Works,26/11/2013,5100058581,5321.46,SIEMENS PLC
TfGM,Transport,Traffic Signal Works,26/11/2013,5100058583,14282.82,SIEMENS PLC
TfGM,Transport,Traffic Signal Works,26/11/2013,5100058585,8127.09,SIEMENS PLC
TfGM,Transport,Traffic Signal Works,26/11/2013,5100058618,33616.81,SIEMENS PLC
TfGM,Transport,Traffic Signal Works,26/11/2013,5100058645,3000.82,SIEMENS PLC
TfGM,Transport,Traffic Signal Works,26/11/2013,5100058646,21337.55,SIEMENS PLC
TfGM,Transport,Traffic Signal Works,26/11/2013,5100058647,16275.74,SIEMENS PLC
TfGM,Transport,Capital Costs - Capital Project Main Contract Works,26/11/2013,5100058915,950697,THALES TRANSPORT & SECURITY LTD
TfGM,Transport,Capital Costs - IS Support Services,26/11/2013,5100058613,1398.45,THE RAILWAY ENGINEERING CO.
TfGM,Transport,Cleaning,26/11/2013,5100058068,679.52,TUDOR CONTRACT CLEANERS LTD
TfGM,Transport,Cleaning,26/11/2013,5100058069,1707.29,TUDOR CONTRACT CLEANERS LTD
TfGM,Transport,Cleaning,26/11/2013,5100058071,679.49,TUDOR CONTRACT CLEANERS LTD
TfGM,Transport,Cleaning,26/11/2013,5100058072,679.49,TUDOR CONTRACT CLEANERS LTD
TfGM,Transport,Cleaning,26/11/2013,5100058073,770.85,TUDOR CONTRACT CLEANERS LTD
TfGM,Transport,Cleaning,26/11/2013,5100058074,8709.75,TUDOR CONTRACT CLEANERS LTD
TfGM,Transport,Cleaning,26/11/2013,5100058075,531.96,TUDOR CONTRACT CLEANERS LTD
TfGM,Transport,Cleaning,26/11/2013,5100058076,587.31,TUDOR CONTRACT CLEANERS LTD
TfGM,Transport,Cleaning,26/11/2013,5100058080,829.92,TUDOR CONTRACT CLEANERS LTD
TfGM,Transport,Cleaning,26/11/2013,5100058081,532.48,TUDOR CONTRACT CLEANERS LTD
TfGM,Transport,Cleaning,26/11/2013,5100058092,679.49,TUDOR CONTRACT CLEANERS LTD
TfGM,Transport,Cleaning,26/11/2013,5100058096,622.44,TUDOR CONTRACT CLEANERS LTD
TfGM,Transport,Cleaning,26/11/2013,5100058102,5668.49,TUDOR CONTRACT CLEANERS LTD
TfGM,Transport,Cleaning,26/11/2013,5100058103,432,TUDOR CONTRACT CLEANERS LTD
TfGM,Transport,Cleaning,26/11/2013,5100058189,725.17,TUDOR CONTRACT CLEANERS LTD
TfGM,Transport,Cleaning,26/11/2013,5100058489,15149.12,TUDOR CONTRACT CLEANERS LTD
TfGM,Transport,Capital Costs - Utility & Service Diversion Costs,26/11/2013,5100058768,28224.79,UNITED UTILITIES WATER PLC
TfGM,Transport,Capital Costs - Consultation Support,26/11/2013,5100058269,29050.31,URBAN VISION PARTNERSHIP LTD
TfGM,Transport,Capital Costs - Project Management Services,26/11/2013,5100058340,2625,URBAN VISION PARTNERSHIP LTD
TfGM,Corporate Services,IS Consumables,26/11/2013,5100058302,5490,VIGLEN
TfGM,Transport,Capital Costs - Sign Maintenance,26/11/2013,5100058394,10175,W T JENKINS LTD
TfGM,Transport,Print & Media,26/11/2013,5100058427,2828.62,W8DATA LTD
TfGM,Transport,Vehicle Repairs & Maintenance,26/11/2013,5100058360,1738.29,Walton Summit Truck Centre
TfGM,Transport,Vehicle Repairs & Maintenance,26/11/2013,5100058361,1450.94,Walton Summit Truck Centre
TfGM,Transport,Vehicle Costs,27/11/2013,1200026993,1157.23,ALLSTAR
TfGM,Transport,Capital Costs - Programme and Project Management Services,29/11/2013,5100058947,8455,ACUITY PROGRAMME MANAGEMENT LTD
TfGM,Transport,Capital Costs - Infrastructure Support Services,29/11/2013,5100058500,15288.14,APPLIED CARD TECHNOLOGIES
TfGM,Transport,Capital Costs - Programme and Project Management Services,29/11/2013,5100058429,11655,ATKINS LTD
TfGM,Transport,Capital Costs - Programme and Project Management Services,29/11/2013,5100058523,8320.7,ATKINS LTD
TfGM,Transport,Capital Costs - Project Management Services,29/11/2013,5100058598,679.8,ATKINS LTD
TfGM,Transport,Research Services,29/11/2013,5100058289,12400,BDRC CONTINENTAL LTD
TfGM,Transport,Capital Costs - LRT Vehicles,29/11/2013,5100058942,317087.41,BOMBARDIER TRANSPORTATION UK LTD
TfGM,Transport,Telecommunications,29/11/2013,5100059125,2324.5,BT GLOBAL SERVICES
TfGM,Transport,Security Services,29/11/2013,5100057011,15375,CITY OF SALFORD
TfGM,Transport,Secondment,29/11/2013,5100057321,4560,CTC
TfGM,Transport,Project Management Services,29/11/2013,5100059158,1250,E KELLY
TfGM,Corporate Services,Programme Management,29/11/2013,5100058956,4800,EDGERTON MANAGEMENT SERVICES LTD
TfGM,Corporate Services,Programme Assurance Services,29/11/2013,5100058691,103396,ERNST & YOUNG
TfGM,Transport,Capital Costs - Health & Safety Services,29/11/2013,5100058276,33563,ESG ASBESTOS LTD
TfGM,Transport,Property & Equipment Maintenance,29/11/2013,5100059128,427.54,GILBEY ELECTRICAL WHOLESALERS LTD
TfGM,Transport,Capital Costs - Quantity Surveying Services,29/11/2013,5100058432,799.51,JACOBS UK LTD
TfGM,Transport,Temporary Vacancy Cover,29/11/2013,5100058582,15666,JACOBS UK LTD
TfGM,Corporate Services,Procurement Services,29/11/2013,5100059156,5687,JETFIRE ASSOCIATES LIMITED
TfGM,Transport,Capital Costs - Programme and Project Management Services,29/11/2013,5100059077,19125,JJD LTD
TfGM,Transport,Capital Costs - Programme and Project Management Services,29/11/2013,5100059078,9350,JJD LTD
TfGM,Transport,Driver Intervention Course Delivery Costs,29/11/2013,5100059039,780,K EKERT
TfGM,Transport,Capital Costs - Capital Project Main Contract Works,29/11/2013,5100059043,324992.38,LAING O'ROURKE CONSTRUCTION LTD
TfGM,Transport,Concessionary Reimbursement,29/11/2013,1900030855,521,LYNCH PRIVATE HIRE
TfGM,Transport,Vehicle Costs,29/11/2013,5100058939,1702,MANCHESTER COMMUNITY TRANSPORT
TfGM,Transport,Concessionary Reimbursement,29/11/2013,1900030852,1085,METRO TAXIS LTD
TfGM,Transport,Capital Costs - Project Management Services,29/11/2013,5100058533,2150,MORSON INTERNATIONAL
TfGM,Transport,Capital Costs - Programme and Project Management Services,29/11/2013,5100058534,1950,MORSON INTERNATIONAL
TfGM,Transport,Capital Costs - Programme and Project Management Services,29/11/2013,5100058536,1950,MORSON INTERNATIONAL
TfGM,Transport,Capital Costs - Programme and Project Management Services,29/11/2013,5100058537,1664,MORSON INTERNATIONAL
TfGM,Transport,Capital Costs - Programme and Project Management Services,29/11/2013,5100058538,2150,MORSON INTERNATIONAL
TfGM,Transport,Capital Costs - Programme and Project Management Services,29/11/2013,5100058539,1881.25,MORSON INTERNATIONAL
TfGM,Transport,Capital Costs - Programme and Project Management Services,29/11/2013,5100058540,1690,MORSON INTERNATIONAL
TfGM,Transport,Capital Costs - Project Management Services,29/11/2013,5100058775,1881.25,MORSON INTERNATIONAL
TfGM,Transport,Metrolink Operating Costs,29/11/2013,5100059060,80170.44,MPACT THALES
TfGM,Transport,Metrolink Operating Costs,29/11/2013,5100059063,4028.12,MPACT THALES
TfGM,Transport,Metrolink Operating Costs,29/11/2013,5100059067,15478.74,MPACT THALES
TfGM,Transport,Capital Costs - Project Support Services,29/11/2013,5100058936,2250,NEIL CLARKE LTD
TfGM,Transport,Capital Costs - Capital Project Main Contract Works,29/11/2013,5100058975,23703.47,NETWORK RAIL
TfGM,Transport,Capital Costs - Capital Project Main Contract Works,29/11/2013,5100058976,1066738.25,NETWORK RAIL
TfGM,Transport,Capital Costs - Capital Project Main Contract Works,29/11/2013,5100058978,-401836.59,NETWORK RAIL
TfGM,Transport,Research Services,29/11/2013,5100059157,1175,NORTH WEST REGIONAL YOUTH WORK UNIT
TfGM,Transport,Property & Equipment Maintenance,29/11/2013,5100059115,22143.24,NOVUS PROPERTY SOLUTIONS LTD
TfGM,Transport,Property & Equipment Maintenance,29/11/2013,5100059116,12497.87,NOVUS PROPERTY SOLUTIONS LTD
TfGM,Transport,Temporary Vacancy Cover,29/11/2013,5100058275,496.22,PLUSWORK LTD
TfGM,Transport,Traffic and Transportation Surveys,29/11/2013,5100058570,5504.78,PLUSWORK LTD
TfGM,Transport,Temporary Vacancy Cover,29/11/2013,5100058572,4487.4,PLUSWORK LTD
TfGM,Transport,Traffic and Transportation Surveys,29/11/2013,5100058587,585.2,PLUSWORK LTD
TfGM,Transport,Temporary Vacancy Cover,29/11/2013,5100058687,566.4,PLUSWORK LTD
TfGM,Transport,Smart Ticketing,29/11/2013,5100058411,2550,PRACTICUS LIMITED
TfGM,Transport,Smart Ticketing,29/11/2013,5100058412,1125,PRACTICUS LIMITED
TfGM,Transport,Smart Ticketing,29/11/2013,5100058413,2080,PRACTICUS LIMITED
TfGM,Transport,Property & Equipment Maintenance,29/11/2013,5100058954,2931.88,REDSPEED INTERNATIONAL LTD
TfGM,Transport,Property & Equipment Maintenance,29/11/2013,5100059113,4921.65,REDSPEED INTERNATIONAL LTD
TfGM,Transport,Capital Costs - Cycle Safety Equipment,29/11/2013,5100058595,7500,RITHERDON & CO LTD
TfGM,Transport,Supported Bus Services,29/11/2013,1900030842,0,ROCHDALE COMMUNITY TRANSPORT
TfGM,Transport,Capital Costs - Engineering Support Services,29/11/2013,5100058417,4566.98,ROSGAL LTD
TfGM,Transport,Print & Media,29/11/2013,5100059009,2578.99,SERVICEPOINT UK
TfGM,Transport,Capital Costs -  Project Support Services,29/11/2013,5100059165,2471.95,SOIL ENGINEERING GEOSERVICES LIMITE
TfGM,Transport,IS Support Services,29/11/2013,5100059038,1298,STEPHEN TRAVIS LTD
TfGM,Corporate Services,Procurement Services,29/11/2013,5100058709,9359,TRAFFORD MBC
TfGM,Transport,Supported Bus Services,29/11/2013,1900030828,5837.45,TRANSPORT & TRAVEL RESEARCH LTD
TfGM,Transport,Computer Support and Licences,29/11/2013,5100058305,12850,TRAPEZE GROUP (UK) LTD
TfGM,Transport,Temporary Vacancy Cover,29/11/2013,5100058600,1647.75,TXM RECRUIT LIMITED
TfGM,Transport,Utilities & Energy,29/11/2013,1900030840,582.97,UNITED UTILITIES WATER PLC
TfGM,Corporate Services,Cyclescheme,02/12/2013,5100059199,828.25,CYCLESCHEME LTD
TfGM,Transport,Capital Costs - Capital Project Main Contract Works,02/12/2013,5100059162,325000,THALES TRANSPORT & SECURITY LTD
TfGM,Transport,Engineering Support Services,04/12/2013,5100058471,16720,AECOM LTD
TfGM,Transport,Traffic Management Services,04/12/2013,5100058524,6400,AECOM LTD
TfGM,Transport,Capital Costs - Planning Support Services,04/12/2013,5100058592,6670,AECOM LTD
TfGM,Transport,Capital Costs - Project Management Services,04/12/2013,5100058806,1800,AJILON UK LIMITED T/A COMPUTER PEOP
TfGM,Transport,Vehicle Costs,04/12/2013,1200027213,1365.31,ALLSTAR
TfGM,Transport,Supported Bus Services,04/12/2013,5100058492,1373.97,ARRIVA MANCHESTER
TfGM,Transport,Capital Costs - LRT Vehicles,04/12/2013,5100058715,168175.93,BOMBARDIER TRANSPORTATION UK LTD
TfGM,Transport,Capital Costs - LRT Vehicles,04/12/2013,5100059227,168175.93,BOMBARDIER TRANSPORTATION UK LTD
TfGM,Transport,Other Operational Costs,04/12/2013,5100058614,1201.75,BRAKE BROS LTD
TfGM,Transport,Other Operational Costs,04/12/2013,5100058615,1420.85,BRAKE BROS LTD
TfGM,Corporate Services,IS Support & Maintenance,04/12/2013,5100058514,2815.75,BT ENGAGE IT
TfGM,Corporate Services,IS Support & Maintenance,04/12/2013,5100058519,1170.75,BT ENGAGE IT
TfGM,Corporate Services,IS Support & Maintenance,04/12/2013,5100058521,10988.25,BT ENGAGE IT
TfGM,Corporate Services,IS Consumables,04/12/2013,5100058661,2454.2,BT ENGAGE IT
TfGM,Transport,Driver Intervention Course Delivery Costs,04/12/2013,5100058688,6400,BURY MBC
TfGM,Corporate Services,IS Software & Maintenance,04/12/2013,5100059117,125975,CGI IT UK LTD
TfGM,Corporate Services,IS Software & Maintenance,04/12/2013,5100059234,82823,EP MORRIS
TfGM,Transport,Capital Costs - Engineering Support Services,04/12/2013,5100058950,2100,FREMONT LTD
TfGM,Transport,Print & Media,04/12/2013,5100058435,520,FRETWELL PRINT AND DIRECT MAIL
TfGM,Transport,IS Support & Maintenance,04/12/2013,5100058593,750,GMATL
TfGM,Transport,Cleaning Equipment,04/12/2013,5100058470,7075.17,HAKO MACHINES LTD
TfGM,Transport,Cleaning Equipment,04/12/2013,5100058472,7075.17,HAKO MACHINES LTD
TfGM,Transport,Cleaning Equipment,04/12/2013,5100058473,7075.17,HAKO MACHINES LTD
TfGM,Transport,Cleaning Equipment,04/12/2013,5100058477,7075.17,HAKO MACHINES LTD
TfGM,Transport,Cleaning Equipment,04/12/2013,5100058478,7075.17,HAKO MACHINES LTD
TfGM,Transport,Cleaning Equipment,04/12/2013,5100058480,7075.17,HAKO MACHINES LTD
TfGM,Transport,Computer Support and Licences,04/12/2013,5100059205,11250,INTERACT COMPUTER SERVICES LTD
TfGM,Transport,Capital Costs - Programme and Project Management Services,04/12/2013,5100058594,11220,JACOBS UK LTD
TfGM,Transport,Capital Costs - Capital Project Main Contract Works,04/12/2013,5100059090,16747,KIER CONSTRUCTION - NORTHERN
TfGM,Transport,Capital Costs - Capital Project Main Contract Works,04/12/2013,5100059091,28427,KIER CONSTRUCTION - NORTHERN
TfGM,Transport,Property Support Services,04/12/2013,5100058462,720,LAMBERT SMITH HAMPTON
TfGM,Transport,Capital Costs - Property Support Services,04/12/2013,5100058642,4607,LESLIE ROBERTS AND CO LTD
TfGM,Transport,Insurance,04/12/2013,5100059224,7737.15,LOCKTON COMPANIES LLP
TfGM,Transport,Capital Costs - Vehicle Costs,04/12/2013,5100058643,799.48,MANCHESTER CITY COUNCIL
TfGM,Transport,Metrolink Operating Costs,04/12/2013,5100059064,13641.91,MPACT THALES
TfGM,Transport,Metrolink Operating Costs,04/12/2013,5100059065,15478.74,MPACT THALES
TfGM,Transport,Metrolink Operating Costs,04/12/2013,5100059066,80170.44,MPACT THALES
TfGM,Transport,Capital Costs - Utility & Service Diversion Costs,04/12/2013,5100059167,34681.74,NATIONAL GRID PLC
TfGM,Transport,Driver Intervention Course Delivery Costs,04/12/2013,5100058807,335440,NDORS LTD
TfGM,Transport,Capital Costs - Rail Construction Works,04/12/2013,5100058825,18748.82,NETWORK RAIL
TfGM,Transport,Rail Access and Maintenance,04/12/2013,5100058885,98116.64,NETWORK RAIL
TfGM,Transport,Capital Costs - Rail Construction Works,04/12/2013,5100059122,-9734.5,NETWORK RAIL
TfGM,Transport,Heavy Rail Support Services,04/12/2013,5100058565,7431.88,OVE ARUP & PARTNERS INTERNATIONAL L
TfGM,Transport,Capital Costs - Infrastructure Support Services,04/12/2013,5100058826,1165,POD-TRAK LTD
TfGM,Transport,Capital Costs - Print & Media,04/12/2013,5100059140,490,RCD
TfGM,Transport,Capital Costs - Print & Media,04/12/2013,5100059141,490,RCD
TfGM,Transport,Smart Ticketing,04/12/2013,5100058501,2500,Robert Walters Plc
TfGM,Transport,Smart Ticketing,04/12/2013,5100058503,2360,Robert Walters Plc
TfGM,Transport,Equipment - Fixtures and Fittings,04/12/2013,5100058564,2032.17,SENATOR INTERNATIONAL LTD
TfGM,Transport,Capital Costs - Traffic Monitoring Equipment & Services,04/12/2013,5100058562,4200,TDC SYSTEMS LTD
TfGM,Transport,Capital Costs - Traffic Monitoring Equipment & Services,04/12/2013,5100058606,4665,TDC SYSTEMS LTD
TfGM,Transport,Capital Costs - Traffic Monitoring Equipment & Services,04/12/2013,5100058608,630,TDC SYSTEMS LTD
TfGM,Transport,Capital Costs - Traffic Monitoring Equipment & Services,04/12/2013,5100058610,1155,TDC SYSTEMS LTD
TfGM,Transport,Capital Costs - Traffic Monitoring Equipment & Services,04/12/2013,5100058611,840,TDC SYSTEMS LTD
TfGM,Transport,Capital Costs - Traffic Monitoring Equipment & Services,04/12/2013,5100058680,1100,TDC SYSTEMS LTD
TfGM,Transport,Temporary Vacancy Cover,04/12/2013,5100058832,2746.25,TXM RECRUIT LIMITED
TfGM,Transport,Transport Planning & Monitoring Services,04/12/2013,5100058816,6630,WSP UK LTD
TfGM,Transport,Bus Support Services,04/12/2013,5100058599,9750,YOURBUS LTD
TfGM,Transport,Smart Ticketing,05/12/2013,5100057347,2600,PRACTICUS LIMITED
TfGM,Transport,Smart Ticketing,05/12/2013,5100057348,1687.5,PRACTICUS LIMITED
TfGM,Transport,Smart Ticketing,05/12/2013,5100057544,2600,PRACTICUS LIMITED
TfGM,Transport,Smart Ticketing,05/12/2013,5100057545,1875,PRACTICUS LIMITED
TfGM,Transport,Smart Ticketing,05/12/2013,5100057798,1875,PRACTICUS LIMITED
TfGM,Transport,Smart Ticketing,05/12/2013,5100057799,2080,PRACTICUS LIMITED
TfGM,Transport,Capital Costs - Programme and Project Management Services,05/12/2013,5100057800,1400,PRACTICUS LIMITED
TfGM,Transport,Smart Ticketing,05/12/2013,5100058620,1875,PRACTICUS LIMITED
TfGM,Transport,Smart Ticketing,05/12/2013,5100058621,2600,PRACTICUS LIMITED
TfGM,Transport,Capital Costs - Programme and Project Management Services,05/12/2013,5100059332,2800,PRACTICUS LIMITED
TfGM,Transport,Capital Costs - Programme and Project Management Services,05/12/2013,5100059333,2520,PRACTICUS LIMITED
TfGM,Transport,"Capital Costs - Rent, Rates & Service Charges",06/12/2013,1900030958,2750,A.H. YOUSHANI
TfGM,Transport,Capital Costs -  Light Rail Support Services,06/12/2013,5100059263,11400,AD2 LTD
TfGM,Transport,Capital Costs - Architectural Services,06/12/2013,5100055116,13402.66,AEDAS ARCHITECTS LTD
TfGM,Transport,Smart Ticketing,06/12/2013,5100059347,6300,AMSACOM LIMITED
TfGM,Corporate Services,IS Software & Maintenance,06/12/2013,5100058689,19408.48,APPLIED CARD TECHNOLOGIES
TfGM,Corporate Services,Procurement Services,06/12/2013,5100058654,12000,ATKINS LTD
TfGM,Transport,Financial and Contract Management Services,06/12/2013,5100059271,7129.9,AUTUS LTD
TfGM,Transport,Supported Bus Services,06/12/2013,1900030962,850,BELLE VUE (MANCHESTER) LTD
TfGM,Transport,Print & Media,06/12/2013,5100058728,1070,BLUETREE DESIGN AND PRINT LTD
TfGM,Transport,Print & Media,06/12/2013,5100058729,801,BLUETREE DESIGN AND PRINT LTD
TfGM,Transport,Training,06/12/2013,5100059285,1970,BOLTON COMMUNITY TRANSPORT
TfGM,Transport,Capital Costs - Computer & Communications Equipment,06/12/2013,5100059288,29777.56,BT ENGAGE IT
TfGM,Transport,Capital Costs - Protective Clothing,06/12/2013,5100058769,611.55,BURLINGTON UNIFORMS LTD
TfGM,Transport,Concessionary Reimbursement,06/12/2013,1900030992,997,CALL A CAR PRIVATE HIRE LTD
TfGM,Transport,Print & Media,06/12/2013,5100059204,2187.19,CARAT MEDIA UK LIMITED
TfGM,Corporate Services,Employee Reimbursed Costs,06/12/2013,5100059345,7244,CHILDCARE VOUCHERS LTD
TfGM,Transport,Concessionary Reimbursement,06/12/2013,1900030999,595,CONNECT CARS LTD
TfGM,Transport,Capital Costs - Utility & Service Diversion Costs,06/12/2013,5100059226,839981.64,ELECTRICITY NORTH WEST EHV
TfGM,Transport,Capital Costs - Environmental & Ecological Support Services,06/12/2013,5100058742,15642.8,FORESTRY COMMISSION
TfGM,Transport,Supported Bus Services,06/12/2013,5100059380,7473.6,GB COACHES
TfGM,Transport,Capital Costs - Quantity Surveying Services,06/12/2013,5100058706,2496.68,HALCROW GROUP LTD
TfGM,Transport,Street Furniture Equipment,06/12/2013,5100058969,7005.3,HALSALL SIGNS LTD
TfGM,Transport,Capital Costs - Programme and Project Management Services,06/12/2013,1900030959,8975.85,HAYS SPECIALIST RECRUITMENT LTD
TfGM,Transport,Temporary Vacancy Cover,06/12/2013,1900030960,11683.22,HAYS SPECIALIST RECRUITMENT LTD
TfGM,Transport,Temporary Vacancy Cover,06/12/2013,1900030961,9946.48,HAYS SPECIALIST RECRUITMENT LTD
TfGM,Transport,Print & Media,06/12/2013,5100058857,2138,HOWITT LTD
TfGM,Corporate Services,Printer Consumables,06/12/2013,5100058705,610.61,M2 DIGITAL LTD
TfGM,Transport,Concessionary Reimbursement,06/12/2013,1900030998,1586,MAGNUM WHITELINE PRIVATE HIRE
TfGM,Transport,Insurance,06/12/2013,1900031009,26757.62,MANCHESTER CITY COUNCIL
TfGM,Transport,Capital Costs - Legal Services,06/12/2013,5100058499,1447.79,MANCHESTER CITY COUNCIL
TfGM,Transport,Print & Media,06/12/2013,5100059294,1000,MANDY MARTINEZ
TfGM,Corporate Services,Computer Support and Licences,06/12/2013,5100055295,2160,MESSAGELABS LTD
TfGM,Transport,Metrolink Operating Costs,06/12/2013,5100055974,658555.6,METROLINK RATP DEV LTD
TfGM,Transport,Metrolink Operating Costs,06/12/2013,5100058008,627468.99,METROLINK RATP DEV LTD
TfGM,Transport,Metrolink Operating Costs,06/12/2013,5100058651,8160,METROLINK RATP DEV LTD
TfGM,Transport,Capital Costs - Programme and Project Management Services,06/12/2013,5100058693,1950,MORSON INTERNATIONAL
TfGM,Transport,Capital Costs - Programme and Project Management Services,06/12/2013,5100058694,1950,MORSON INTERNATIONAL
TfGM,Transport,Capital Costs - Programme and Project Management Services,06/12/2013,5100058695,1664,MORSON INTERNATIONAL
TfGM,Transport,Capital Costs - Programme and Project Management Services,06/12/2013,5100058696,1690,MORSON INTERNATIONAL
TfGM,Transport,Capital Costs - Programme and Project Management Services,06/12/2013,5100058703,3547.5,MORSON INTERNATIONAL
TfGM,Transport,Capital Costs - Utility & Service Diversion Costs,06/12/2013,5100059166,184245.81,NATIONAL GRID PLC
TfGM,Transport,Capital Costs - Project Support Services,06/12/2013,5100059273,2250,NEIL CLARKE LTD
TfGM,Transport,"Rent, Rates & Service Charges",06/12/2013,1900030885,5625,NETWORK RAIL
TfGM,Transport,"Rent, Rates & Service Charges",06/12/2013,1900030886,1250,NETWORK RAIL
TfGM,Transport,Rail Franchise,06/12/2013,1200027213,5331286.21,NORTHERN RAIL LTD
TfGM,Transport,Property & Equipment Maintenance,06/12/2013,5100058764,2800,NOVUS PROPERTY SOLUTIONS LTD
TfGM,Transport,Capital Costs - Programme and Project Management Services,06/12/2013,5100059317,7940,PEAK PERFORMANCE PROFESSIONAL CONTR
TfGM,Transport,Financial and Commercial Support Services,06/12/2013,5100059343,11732.5,PEAK PERFORMANCE PROFESSIONAL CONTR
TfGM,Transport,Driver Intervention Course Delivery Costs,06/12/2013,5100059282,1889.76,PETERS DRIVING SCHOOL
TfGM,Transport,Temporary Vacancy Cover,06/12/2013,5100058605,620.28,PLUSWORK LTD
TfGM,Transport,Temporary Vacancy Cover,06/12/2013,5100058732,566.4,PLUSWORK LTD
TfGM,Transport,Traffic and Transportation Surveys,06/12/2013,5100058736,532,PLUSWORK LTD
TfGM,Transport,Temporary Vacancy Cover,06/12/2013,5100058744,4902.9,PLUSWORK LTD
TfGM,Transport,Traffic and Transportation Surveys,06/12/2013,5100058747,5015.26,PLUSWORK LTD
TfGM,Transport,Traffic and Transportation Surveys,06/12/2013,5100058750,5612.78,PLUSWORK LTD
TfGM,Corporate Services,IS Software & Maintenance,06/12/2013,5100059336,1200,PORTECH SYSTEMS LTD
TfGM,Transport,Capital Costs - Print & Media,06/12/2013,5100059369,490,RCD
TfGM,Transport,Smart Ticketing,06/12/2013,5100058818,2400.1,Robert Walters Plc
TfGM,Transport,Smart Ticketing,06/12/2013,5100058819,2400.1,Robert Walters Plc
TfGM,Transport,Smart Ticketing,06/12/2013,5100058820,2950,Robert Walters Plc
TfGM,Transport,Traffic Signal Works,06/12/2013,5100058854,20000,ROSGAL LTD
TfGM,Transport,Capital Costs -  Project Management Services,06/12/2013,5100059316,10120,SB PROJECT MANAGEMENT LTD
TfGM,Transport,Concessionary Reimbursement,06/12/2013,1900030995,727,SWINTON PRIVATE HIRE
TfGM,Transport,CCTV Support Services,06/12/2013,5100059309,4500,SYSTEM VISION LTD
TfGM,Corporate Services,Printer Consumables,06/12/2013,5100058476,1784.78,TOTAL COMPUTERS LTD
TfGM,Transport,"Rent, Rates & Service Charges",06/12/2013,1900030888,540,TOWN CENTRE CAR PARKS LTD
TfGM,Transport,Capital Costs - Computer & Communications Equipment,06/12/2013,5100058927,22992.7,WACHTER LIMITED
TfGM,Transport,Postage Costs,09/12/2013,1200027239,3500,FP TELESET
TfGM,Transport,Capital Costs - Programme and Project Management Services,10/12/2013,5100059384,8190,ACUITY PROGRAMME MANAGEMENT LTD
TfGM,Transport,Capital Costs - Project Management Services,10/12/2013,5100059107,2000,AJILON UK LIMITED T/A COMPUTER PEOP
TfGM,Transport,Vehicle Costs,10/12/2013,1200027239,1112.15,ALLSTAR
TfGM,Corporate Services,IS Software & Maintenance,10/12/2013,5100058949,5474.74,APTUS SOLUTIONS LIMITED
TfGM,Transport,Capital Costs - Signage Costs,10/12/2013,5100058185,7236,ASTRA SIGNS
TfGM,Transport,Driver Intervention Course Delivery Costs,10/12/2013,5100059469,1212.5,BEACON LANGUAGES LTD
TfGM,Transport,Driver Intervention Course Delivery Costs,10/12/2013,5100059467,2059.2,BOLTON WHITES HOTEL LTD
TfGM,Transport,"Capital Costs - Rent, Rates & Service Charges",10/12/2013,1900031019,4488.03,Bruntwood LG Ltd
TfGM,Transport,Print & Media,10/12/2013,5100058810,3367.36,CARAT MEDIA UK LIMITED
TfGM,Transport,Print & Media,10/12/2013,5100058810,3367.36,CARAT MEDIA UK LIMITED
TfGM,Transport,Print & Media,10/12/2013,5100059540,10365.36,CARAT MEDIA UK LIMITED
TfGM,Transport,Print & Media,10/12/2013,5100059541,13939.63,CARAT MEDIA UK LIMITED
TfGM,Transport,Print & Media,10/12/2013,5100059541,13939.63,CARAT MEDIA UK LIMITED
TfGM,Transport,"Rent, Rates & Service Charges",10/12/2013,1900031014,13100,CARILLION SERVICES SOLUTIONS (OPG R
TfGM,Transport,Capital Costs - Project Support Services,10/12/2013,5100058714,1644,CDI ANDERSELITE LTD
TfGM,Transport,Print & Media,10/12/2013,5100058725,684,CESTRIAN
TfGM,Transport,Print & Media,10/12/2013,5100058726,684,CESTRIAN
TfGM,Transport,Print & Media,10/12/2013,5100059431,485,ESP SYSTEX LTD
TfGM,Transport,Secondment,10/12/2013,5100058808,7480,FIRST KEOLIS TRANSPENNINE LTD
TfGM,Transport,Capital Costs - Land Acquisition and Related Costs,10/12/2013,1900031033,6100,GOODMAN DEVELOPMENT MANAGMENT LTD
TfGM,Transport,Capital Costs - Traffic Signal Works,10/12/2013,5100058980,7227.74,GREATER MANCHESTER COMBINED AUTHORI
TfGM,Transport,Capital Costs - Traffic Signal Works,10/12/2013,5100058981,23954.87,GREATER MANCHESTER COMBINED AUTHORI
TfGM,Transport,Capital Costs - Traffic Signal Works,10/12/2013,5100058982,18710.97,GREATER MANCHESTER COMBINED AUTHORI
TfGM,Transport,Capital Costs - Traffic Signal Works,10/12/2013,5100058983,8448.05,GREATER MANCHESTER COMBINED AUTHORI
TfGM,Transport,Capital Costs - Traffic Signal Works,10/12/2013,5100058984,16089.29,GREATER MANCHESTER COMBINED AUTHORI
TfGM,Transport,Capital Costs - Traffic Signal Works,10/12/2013,5100058985,19610.12,GREATER MANCHESTER COMBINED AUTHORI
TfGM,Transport,Capital Costs - Traffic Signal Works,10/12/2013,5100058986,13765.32,GREATER MANCHESTER COMBINED AUTHORI
TfGM,Transport,Capital Costs - Traffic Signal Works,10/12/2013,5100058987,1638.57,GREATER MANCHESTER COMBINED AUTHORI
TfGM,Transport,Capital Costs - Traffic Signal Works,10/12/2013,5100058988,6695.51,GREATER MANCHESTER COMBINED AUTHORI
TfGM,Transport,Capital Costs - Traffic Signal Works,10/12/2013,5100058989,6695.52,GREATER MANCHESTER COMBINED AUTHORI
TfGM,Transport,Capital Costs - Traffic Signal Works,10/12/2013,5100058990,6695.52,GREATER MANCHESTER COMBINED AUTHORI
TfGM,Transport,Capital Costs - Traffic Signal Works,10/12/2013,5100058991,14969.09,GREATER MANCHESTER COMBINED AUTHORI
TfGM,Transport,Capital Costs - Traffic Signal Works,10/12/2013,5100058992,21471.62,GREATER MANCHESTER COMBINED AUTHORI
TfGM,Transport,Capital Costs - Programme and Project Management Services,10/12/2013,5100058838,2647.05,HAYS SPECIALIST RECRUITMENT LTD
TfGM,Transport,Capital Costs - Programme and Project Management Services,10/12/2013,5100058839,2647.05,HAYS SPECIALIST RECRUITMENT LTD
TfGM,Transport,Capital Costs - Programme and Project Management Services,10/12/2013,5100058842,2647.05,HAYS SPECIALIST RECRUITMENT LTD
TfGM,Transport,Capital Costs - Safety & Security Support Services,10/12/2013,5100059468,10158,IAN ALLAN ASSOCIATES (UK) LTD
TfGM,Corporate Services,IS Support Services,10/12/2013,5100058746,1098,INTERCONNECT NETWORK SYSTEMS LTD
TfGM,Corporate Services,Computer Support and Licences,10/12/2013,5100059206,9999,IT GOVERNANCE LTD
TfGM,Transport,Capital Costs - Programme and Project Management Services,10/12/2013,5100059385,8120,JACOBS UK LTD
TfGM,Transport,Capital Costs - Programme and Project Management Services,10/12/2013,5100059386,8120,JACOBS UK LTD
TfGM,Transport,Maintenance,10/12/2013,5100058406,12390.56,JC DECAUX UK LTD
TfGM,Transport,Traffic Signal Works,10/12/2013,5100058506,811.97,JONES LIGHTING
TfGM,Transport,Traffic Signal Works,10/12/2013,5100058821,463.98,JONES LIGHTING
TfGM,Transport,Supported Bus Services,10/12/2013,1900031038,45000,JP EXECUTIVE
TfGM,Transport,Capital Costs - Programme and Project Management Services,10/12/2013,5100059392,9000,JSLM PROGRAMME SERVICES LTD
TfGM,Transport,Print & Media,10/12/2013,5100058576,925,KREATIVE BOMB LIMITED
TfGM,Transport,Capital Costs - Land Acquisition and Related Costs,10/12/2013,5100058721,990,LESLIE ROBERTS AND CO LTD
TfGM,Corporate Services,IS Support Services,10/12/2013,5100059274,9075,MAPSAR LTD
TfGM,Transport,Print & Media,10/12/2013,5100058397,2695,MERE PR
TfGM,Transport,Metrolink Operating Costs,10/12/2013,5100058867,1221783,METROLINK RATP DEV LTD
TfGM,Transport,Metrolink Operating Costs,10/12/2013,5100058868,82299.43,METROLINK RATP DEV LTD
TfGM,Transport,Metrolink Operating Costs,10/12/2013,5100058869,440032,METROLINK RATP DEV LTD
TfGM,Transport,Metrolink Operating Costs,10/12/2013,5100058960,16909.67,METROLINK RATP DEV LTD
TfGM,Transport,Metrolink Operating Costs,10/12/2013,5100058961,283948,METROLINK RATP DEV LTD
TfGM,Transport,Metrolink Operating Costs,10/12/2013,5100059047,14280,METROLINK RATP DEV LTD
TfGM,Transport,Metrolink Operating Costs,10/12/2013,5100059048,14280,METROLINK RATP DEV LTD
TfGM,Transport,Metrolink Operating Costs,10/12/2013,5100059050,1980,METROLINK RATP DEV LTD
TfGM,Transport,Metrolink Operating Costs,10/12/2013,5100059057,9997.16,METROLINK RATP DEV LTD
TfGM,Transport,Metrolink Operating Costs,10/12/2013,5100059058,10029.16,METROLINK RATP DEV LTD
TfGM,Transport,Metrolink Operating Costs,10/12/2013,5100059059,9887.03,METROLINK RATP DEV LTD
TfGM,Transport,Metrolink Operating Costs,10/12/2013,5100059081,9815.53,METROLINK RATP DEV LTD
TfGM,Transport,Metrolink Operating Costs,10/12/2013,5100059082,10079.8,METROLINK RATP DEV LTD
TfGM,Transport,Metrolink Operating Costs,10/12/2013,5100059094,12240,METROLINK RATP DEV LTD
TfGM,Transport,Metrolink Operating Costs,10/12/2013,5100059096,10038.21,METROLINK RATP DEV LTD
TfGM,Transport,Metrolink Operating Costs,10/12/2013,5100059545,9694.74,METROLINK RATP DEV LTD
TfGM,Transport,Metrolink Operating Costs,10/12/2013,5100059434,38370.32,MPACT THALES
TfGM,Transport,Metrolink Operating Costs,10/12/2013,5100059437,47023.49,MPACT THALES
TfGM,Transport,Metrolink Operating Costs,10/12/2013,5100059439,47023.49,MPACT THALES
TfGM,Transport,Metrolink Operating Costs,10/12/2013,5100059440,67097.9,MPACT THALES
TfGM,Transport,Metrolink Operating Costs,10/12/2013,5100059441,299443.69,MPACT THALES
TfGM,Transport,Capital Costs - Project Support Services,10/12/2013,5100059470,1875,NEIL CLARKE LTD
TfGM,Transport,"Rent, Rates & Service Charges",10/12/2013,1900031016,750,NETWORK RAIL
TfGM,Transport,"Capital Costs - Rent, Rates & Service Charges",10/12/2013,1900031040,1859.01,NETWORK RAIL
TfGM,Transport,Capital Costs - Project Management Services,10/12/2013,5100058681,14445.42,PARSONS BRINCKERHOFF LTD
TfGM,Transport,Capital Costs - Programme and Project Management Services,10/12/2013,5100059042,5450,PARSONS BRINCKERHOFF LTD
TfGM,Transport,Capital Costs - Programme and Project Management Services,10/12/2013,5100059099,3404.68,PARSONS BRINCKERHOFF LTD
TfGM,Transport,Capital Costs - Programme and Project Management Services,10/12/2013,5100059100,117153.74,PARSONS BRINCKERHOFF LTD
TfGM,Transport,Capital Costs - Programme and Project Management Services,10/12/2013,5100059101,6566.1,PARSONS BRINCKERHOFF LTD
TfGM,Transport,Capital Costs - Programme and Project Management Services,10/12/2013,5100059102,7320.18,PARSONS BRINCKERHOFF LTD
TfGM,Transport,Capital Costs - Programme and Project Management Services,10/12/2013,5100059103,10505.76,PARSONS BRINCKERHOFF LTD
TfGM,Transport,Capital Costs - Programme and Project Management Services,10/12/2013,5100059104,13624.74,PARSONS BRINCKERHOFF LTD
TfGM,Transport,Capital Costs - Programme and Project Management Services,10/12/2013,5100059105,11503.14,PARSONS BRINCKERHOFF LTD
TfGM,Transport,Capital Costs - Programme and Project Management Services,10/12/2013,5100059217,520424.75,PARSONS BRINCKERHOFF LTD
TfGM,Transport,Capital Costs - Programme and Project Management Services,10/12/2013,5100059229,58738,PARSONS BRINCKERHOFF LTD
TfGM,Transport,Capital Costs - Programme and Project Management Services,10/12/2013,5100058833,1701.75,PERTEMPS PROFESSIONAL STAFFING LTD
TfGM,Transport,Smart Ticketing,10/12/2013,5100058813,5100,PRACTICUS LIMITED
TfGM,Transport,Smart Ticketing,10/12/2013,5100058830,2600,PRACTICUS LIMITED
TfGM,Transport,Smart Ticketing,10/12/2013,5100058841,7750,PRACTICUS LIMITED
TfGM,Transport,Smart Ticketing,10/12/2013,5100058923,2125,PRACTICUS LIMITED
TfGM,Transport,Capital Costs - Print & Media,10/12/2013,5100059413,490,RCD
TfGM,Transport,Capital Costs - Print & Media,10/12/2013,5100059414,490,RCD
TfGM,Transport,Capital Costs - Print & Media,10/12/2013,5100059490,490,RCD
TfGM,Transport,Capital Costs - Engineering Support Services,10/12/2013,5100059272,675,STEPHEN J FIRTH
TfGM,Transport,Capital Costs - Traffic Monitoring Equipment & Services,10/12/2013,5100058707,43014.1,TDC SYSTEMS LTD
TfGM,Transport,Print & Media,10/12/2013,5100058852,785,THE IMAGE GROUP
TfGM,Transport,Capital Costs - Legal Services,10/12/2013,1900031035,600,TROWERS & HAMLINS LLP
TfGM,Transport,Temporary Vacancy Cover,10/12/2013,5100058958,2197,TXM RECRUIT LIMITED
TfGM,Transport,Utilities & Energy,10/12/2013,1900031027,1128.14,UNITED UTILITIES WATER PLC
TfGM,Corporate Services,IS Support Services,10/12/2013,5100058596,4021.97,VIRGIN MEDIA BUSINESS
TfGM,Transport,IS Support & Maintenance,10/12/2013,5100058675,5611.5,VIX ACIS LTD
TfGM,Transport,Capital Costs - Land Acquisition and Related Costs,10/12/2013,1900031034,32466.88,WORKMAN LLP
TfGM,Transport,Equipment - Fixtures and Fittings,10/12/2013,5100059307,15399,XL OFFICE SOLUTIONS
TfGM,Transport,Capital Costs - Land Acquisition and Related Costs,12/12/2013,1900031086,16937.26,RIPPLEGLEN LIMITED
TfGM,Transport,Other Operational Costs,13/12/2013,5100059481,441.68,1ST FOOD & DRINK
TfGM,Transport,Driver Intervention Course Delivery Costs,13/12/2013,1900030924,516.2,A MACK
TfGM,Transport,Driver Intervention Course Delivery Costs,13/12/2013,1900030944,1294.16,A WOODWARD
TfGM,Transport,Vehicle Costs,13/12/2013,5100059405,500,ACTIA UK LTD
TfGM,Transport,Capital Costs - Programme and Project Management Services,13/12/2013,5100058803,11030.6,ACUITY PROGRAMME MANAGEMENT LTD
TfGM,Transport,Research Services,13/12/2013,5100058761,8860,AECOM LTD
TfGM,Transport,Capital Costs - Design Support Services,13/12/2013,5100058840,5012.09,AECOM LTD
TfGM,Transport,Capital Costs -  Project Support Services,13/12/2013,5100058847,11865.6,AECOM LTD
TfGM,Transport,Capital Costs - Capital Project Main Contract Works,13/12/2013,5100059032,736,AECOM LTD
TfGM,Transport,Transport Planning & Monitoring Services,13/12/2013,5100059194,15686.2,AECOM LTD
TfGM,Transport,Research Services,13/12/2013,5100059578,22500,AECOM LTD
TfGM,Transport,Research Services,13/12/2013,5100059580,7602,AECOM LTD
TfGM,Transport,Driver Intervention Course Delivery Costs,13/12/2013,1900030941,2558.32,AIM TO PASS SCHOOL OF MOTORING
TfGM,Transport,Capital Costs - Project Management Services,13/12/2013,5100059563,2000,AJILON UK LIMITED T/A COMPUTER PEOP
TfGM,Transport,IS Support Services,13/12/2013,5100059304,3375,AMAZE COMMUNICATION SERVICES LTD
TfGM,Transport,Training,13/12/2013,5100058848,3000,ANS GROUP PLC
TfGM,Transport,Paper and Printing Consumables,13/12/2013,5100059651,1446.7,ANTALIS LTD
TfGM,Corporate Services,IS Software & Maintenance,13/12/2013,5100059558,19408.48,APPLIED CARD TECHNOLOGIES
TfGM,Transport,Print & Media,13/12/2013,5100058908,1413,ASHTONS SHEFFIELD LTD
TfGM,Transport,Capital Costs - Print & Media,13/12/2013,5100058962,1125,ASTRA SIGNS
TfGM,Transport,Print & Media,13/12/2013,5100058966,500,ASTRA SIGNS
TfGM,Transport,Capital Costs - Print & Media,13/12/2013,5100058968,660,ASTRA SIGNS
TfGM,Transport,Print & Media,13/12/2013,5100059112,495,ASTRA SIGNS
TfGM,Transport,Capital Costs - Quantity Surveying Services,13/12/2013,5100059152,9184,ATKINS LTD
TfGM,Transport,Capital Costs - Engineering Support Services,13/12/2013,5100059164,15200,ATKINS LTD
TfGM,Transport,Capital Costs - Engineering Support Services,13/12/2013,5100059223,2934.75,ATKINS LTD
TfGM,Transport,Capital Costs - Health & Safety Support Services,13/12/2013,5100059327,1680,ATKINS LTD
TfGM,Transport,Capital Costs - Engineering Support Services,13/12/2013,5100059401,1423.99,ATKINS LTD
TfGM,Transport,Data Analysis,13/12/2013,5100059406,2000,ATKINS LTD
TfGM,Transport,Capital Costs - Architectural Services,13/12/2013,5100059458,5150,ATKINS LTD
TfGM,Transport,Capital Costs - Programme and Project Management Services,13/12/2013,5100059485,11655,ATKINS LTD
TfGM,Transport,Smart Ticketing,13/12/2013,5100059337,53887,ATOS IT SERVICES UK LTD
TfGM,Transport,Capital Costs - LRT Vehicles,13/12/2013,5100058814,2269,AURA GRAPHICS LIMITED
TfGM,Transport,Driver Intervention Course Delivery Costs,13/12/2013,1900030911,1099.68,AVRILS DRIVING SCHOOL
TfGM,Transport,Driver Intervention Course Delivery Costs,13/12/2013,1900030922,637.75,B LONERGAN
TfGM,Transport,Driver Intervention Course Delivery Costs,13/12/2013,1900030925,516.2,B MAGUIRE
TfGM,Transport,Research Services,13/12/2013,5100059073,12050,BDRC CONTINENTAL LTD
TfGM,Transport,Rail Support Services,13/12/2013,5100059225,3125,BENNETTS ASSOCIATES
TfGM,Corporate Services,Insurance,13/12/2013,5100059549,806,BERRYMANS LACE MAWER LLP
TfGM,Transport,Cycle Training Scheme,13/12/2013,5100059514,420,BIKE RIGHT!
TfGM,Transport,Print & Media,13/12/2013,5100059160,795,BLUETREE DESIGN AND PRINT LTD
TfGM,Transport,Driver Intervention Course Delivery Costs,13/12/2013,5100059562,3090,BOLTON MIDDLEBROOK LEISURE TRUST
TfGM,Transport,Other Operational Costs,13/12/2013,5100059640,1601.73,BRAKE BROS LTD
TfGM,Transport,Driver Intervention Course Delivery Costs,13/12/2013,1900030905,1780.4,BRECK SCHOOL OF MOTORING
TfGM,Transport,Capital Costs - Computer & Communications Equipment,13/12/2013,5100056773,99773.92,BT ENGAGE IT
TfGM,Corporate Services,IS Consumables,13/12/2013,5100058953,11162.84,BT ENGAGE IT
TfGM,Transport,Capital Costs - Computer & Communications Equipment,13/12/2013,5100059138,9559.68,BT ENGAGE IT
TfGM,Transport,Capital Costs - Computer & Communications Equipment,13/12/2013,5100059198,30214.25,BT ENGAGE IT
TfGM,Corporate Services,IS Support & Maintenance,13/12/2013,5100059220,17213.64,BT ENGAGE IT
TfGM,Transport,Capital Costs - Computer & Communications Equipment,13/12/2013,5100059377,4003.28,BT ENGAGE IT
TfGM,Corporate Services,IS Consumables,13/12/2013,5100059378,2439.36,BT ENGAGE IT
TfGM,Transport,Capital Costs - Computer & Communications Equipment,13/12/2013,5100059383,1052.81,BT ENGAGE IT
TfGM,Corporate Services,IS Support Services,13/12/2013,5100059419,7200,BT ENGAGE IT
TfGM,Transport,Capital Costs - Computer & Communications Equipment,13/12/2013,5100059463,15082.26,BT ENGAGE IT
TfGM,Transport,Capital Costs - Computer & Communications Equipment,13/12/2013,5100059564,-483.1,BT ENGAGE IT
TfGM,Corporate Services,IS Consumables,13/12/2013,5100059583,1722.78,BT ENGAGE IT
TfGM,Corporate Services,IS Support Services,13/12/2013,5100059584,800,BT ENGAGE IT
TfGM,Corporate Services,Capital Costs - Computer & Communications Equipment,13/12/2013,5100059623,38464.38,BT ENGAGE IT
TfGM,Transport,"Rent, Rates & Service Charges",13/12/2013,1900031085,11069.79,BURY MBC
TfGM,Transport,Driver Intervention Course Delivery Costs,13/12/2013,5100059524,1756.04,C JEFFREY
TfGM,Transport,Driver Intervention Course Delivery Costs,13/12/2013,1900030923,783.64,C MACCORMACK
TfGM,Transport,Print & Media,13/12/2013,5100058897,8918.91,CARAT MEDIA UK LIMITED
TfGM,Transport,Print & Media,13/12/2013,5100058900,587.59,CARAT MEDIA UK LIMITED
TfGM,Transport,Print & Media,13/12/2013,5100058901,1430.84,CARAT MEDIA UK LIMITED
TfGM,Transport,Print & Media,13/12/2013,5100058922,8957.75,CARAT MEDIA UK LIMITED
TfGM,Transport,Print & Media,13/12/2013,5100058929,2282.28,CARAT MEDIA UK LIMITED
TfGM,Transport,Print & Media,13/12/2013,5100058955,2282.28,CARAT MEDIA UK LIMITED
TfGM,Transport,Print & Media,13/12/2013,5100059202,549.22,CARAT MEDIA UK LIMITED
TfGM,Transport,Print & Media,13/12/2013,5100059537,6987.19,CARAT MEDIA UK LIMITED
TfGM,Transport,"Rent, Rates & Service Charges",13/12/2013,1900031013,2847.33,CARILLION SERVICES SOLUTIONS (OPG S
TfGM,Transport,Utilities & Energy,13/12/2013,1900031020,1251.79,CARILLION SERVICES SOLUTIONS (OPG S
TfGM,Transport,Security Services,13/12/2013,5100059293,7271.55,CARLISLE SECURITY SERVICES LTD
TfGM,Transport,"Rent, Rates & Service Charges",13/12/2013,1900030896,7828.8,CB RICHARD ELLIS LTD (CBRE)
TfGM,Transport,Driver Intervention Course Delivery Costs,13/12/2013,1900030946,1342.8,CENTURION DRIVER TRAINING
TfGM,Transport,Print & Media,13/12/2013,5100059144,588,CHAPEL PRESS LTD
TfGM,Transport,Print & Media,13/12/2013,5100059329,2761,CHAPEL PRESS LTD
TfGM,Transport,Print & Media,13/12/2013,5100059418,713,CHAPEL PRESS LTD
TfGM,Transport,Driver Intervention Course Delivery Costs,13/12/2013,1900030908,1233.4,COWLEY DRIVING SCHOOL
TfGM,Transport,Driver Intervention Course Delivery Costs,13/12/2013,5100059244,1950.56,CPC TRAINING PROVIDER LTD
TfGM,Transport,Driver Intervention Course Delivery Costs,13/12/2013,1900030909,2570.48,CRUISE DRIVER TRAINING
TfGM,Transport,Driver Intervention Course Delivery Costs,13/12/2013,1900030913,1111.81,D ELLIS
TfGM,Transport,Driver Intervention Course Delivery Costs,13/12/2013,1900030953,778.55,D HEATHCOTE
TfGM,Transport,Driver Intervention Course Delivery Costs,13/12/2013,1900030943,1792.52,D WALSH
